{"text_format":"1","workbook":"xlsx","n_sheets":5,"sheets":["_com.sap.ip.bi.xl.hiddensheet","Portada","Instrucciones","Productos principales","Productos adicionales"],"not_rendered":{"charts":0,"images":36,"macros":1,"external_links":0,"defined_names":10,"comments":0,"pivot_tables":0},"unopened":[],"bounds":{"document_bytes":16777216,"sheet_cells":100000,"rows_first":2000,"rows_last":500,"rows_between":2000,"halvings":0,"cell_chars":16384,"cell_head_chars":4096},"cells_cut":0,"cells_raw":0,"read":"whole","date_system":"1900"}

{"sheet":"_com.sap.ip.bi.xl.hiddensheet","index":0,"n_rows":0,"n_cols":0,"rows_kept":0,"cut":false,"hidden":true,"merged":[]}

{"sheet":"Portada","index":1,"n_rows":0,"n_cols":0,"rows_kept":0,"cut":false,"hidden":false,"merged":[]}

{"sheet":"Instrucciones","index":2,"n_rows":19,"n_cols":13,"rows_kept":19,"cut":false,"hidden":false,"merged":[[2,2,2,4]]}
[]
[]
[null,null,"PEDIDO RAPIDO HOL",null,null,null,null,null,null,null,null,"SCANNER DE CODIGO DE BARRAS"]
[]
[null,null,null,"Asegurese que no haya cantidades no deseadas de pedidos anteriores (columna H)\n■ Ingrese las cantidades deseadas de cada producto en las casillas verdes (columna H)",null,null,null,null,null,null,null,null,"Asegúrese de que el escáner este correctamente instalado y sea dispositivo de ingreso de información de codigos tipo 39"]
[null,null,null,"■ Tenga en cuenta que existen dos hojas de productos; principales por su oficio, y adicionales"]
[null,null,null,"■ Tenga en cuenta que el sistema aproximara hacia arriba por la unidad de empaque del producto (columna G)"]
[null,null,null,null,null,null,null,null,null,null,null,null,"Haga clic en el enlace que lo lleva directamente a la pagina de Pedido Rápido"]
[]
[null,null,null,"■ Seleccione las celdas con data en la columna L y presione el boton COPIAR"]
[null,null,null,"■ Haga clic en el enlace que lo lleva directamente a la pagina de Pedido Rápido",null,null,null,null,null,null,null,null,"Ubíquese en la casilla de ingreso"]
[null,null,null,null,null,null,null,null,null,null,null,null,"Seleccione el escáner como dispositivo de ingreso de información"]
[]
[]
[null,null,null,null,null,null,null,null,null,null,null,null,"Escanee los ítems relevantes"]
[null,null,null,null,null,null,null,null,null,null,null,null,"Para productos de multi packs (MP), recuerde que debe escanear el código las veces necesarias"]
[]
[null,null,null,"Ubíquese en la casilla de ingreso y pegue (presione Ctrl + V)",null,null,null,null,null,null,null,null,"Presione AÑADIR AL CARRITO"]
[null,null,null,"Presione AÑADIR AL CARRITO"]

{"sheet":"Productos principales","index":3,"n_rows":511,"n_cols":13,"rows_kept":511,"cut":false,"hidden":false,"merged":[[5,1,5,6]]}
[]
[]
[]
[null,"PLANTILLA DE PEDIDO RÁPIDO"]
[null,"PRODUCTOS PRINCIPALES"]
[null,"MECÁNICO ELÉCTRICO",null,null,null,null,null,null,null,null,null,null,"www.hilti.com.mx"]
[]
[null,"Brocas para encastre SDS-PLUS"]
[null,"Ítem #","Descripción","Diámetro","Longitud utilizable","Denomicacion","Tamaño embalaje","Cantidad a ordenar","Cantidad ajustada a embalaje","Código de barras",null,{"$f":"IF(ISNUMBER(I9),IF($I9 <> \"\",ROW(),\"\"),\"\")","v":""},"Pedido Rápido HOL"]
[1,2038073,"Broca para taladro TE-C 1/4\"-6\"","1/4\"","4\" (10cm)","2 gavilanes",1,null,{"$f":"IF(CEILING(H10,G10)=0,\"\",CEILING(H10,G10))","v":""},null,null,{"$f":"IF(ISNUMBER(I10),IF($I10 <> \"\",ROW(),\"\"),\"\")","v":""},{"$f":"IFERROR(OFFSET($B$1,SMALL(L:L,$A10 )-1,0),\"\")&\" \"&IFERROR(OFFSET($I$1,SMALL(L:L,$A10 )-1,0),\"\")","v":"2038093 8"}]
[{"$f":"A10+1","v":2},2038093,"Broca para taladro TE-C 1/4\"-6\" MP8","1/4\"","4\" (10cm)","2 gavilanes",8,3,{"$f":"IF(CEILING(H11,G11)=0,\"\",CEILING(H11,G11))","v":8},null,null,11,"2038074 6"]
[{"$f":"A11+1","v":3},2038074,"Broca para taladro TE-C 5/16\"-6\"","5/16\"","4\" (10cm)","2 gavilanes",1,6,{"$f":"IF(CEILING(H12,G12)=0,\"\",CEILING(H12,G12))","v":6},null,null,12,"3610135 4"]
[4,3610135,"Broca para taladro TE-C 5/16\"-6\" MP4","5/16\"","4\" (10cm)","2 gavilanes",4,2,4,null,null,13,"2038076 78"]
[5,2038076,"Broca para taladro TE-C 3/8\"-6\"","3/8\"","4\" (10cm)","2 gavilanes",1,78,78,null,null,14,"2038094 8"]
[6,2038094,"Broca para taladro TE-C 3/8\"-6\" MP8","3/8\"","4\" (10cm)","2 gavilanes",8,8,8,null,null,15,"2038077 3"]
[7,2038077,"Broca para taladro TE-C 3/8\"-12\"","3/8\"","10\" (25cm)","2 gavilanes",1,3,3,null,null,16,"3610136 8"]
[8,3610136,"Broca para taladro TE-C 3/8\"-12\"MP8","3/8\"","10\" (25cm)","2 gavilanes",8,2,8,null,null,17,"2038080 2"]
[9,2038080,"Broca para taladro TE-C 1/2\"-6\"","1/2\"","4\" (10cm)","2 gavilanes",1,2,2,null,null,18," "]
[10,2038095,"Broca para taladro TE-C 1/2\"-6\" MP8","1/2\"","4\" (10cm)","2 gavilanes",8,null,"",null,null,""," "]
[11,2038082,"Broca para taladro TE-C 1/2\"-12\"","1/2\"","10\" (25cm)","2 gavilanes",1,null,"",null,null,""," "]
[12,3610137,"Broca para taladro TE-C 1/2\"-12\" MP8","1/2\"","10\" (25cm)","2 gavilanes",8,null,"",null,null,""," "]
[13,2038086,"Broca para taladro TE-C 5/8\"-8\"","5/8\"","6\" (15cm)","2 gavilanes",1,null,"",null,null,""," "]
[14,3610138,"Broca para taladro TE-C 5/8\"-8\" MP4","5/8\"","6\" (15cm)","2 gavilanes",4,null,"",null,null,""," "]
[15,2038087,"Broca para taladro TE-C 5/8\"-12\"","5/8\"","10\" (25cm)","2 gavilanes",1,null,"",null,null,""," "]
[16,3610139,"Broca para taladro TE-C 5/8\"-12\" MP4","5/8\"","10\" (25cm)","2 gavilanes",4,null,"",null,null,""," "]
[17,355326,"Broca para taladro TE-C 3/4\"-8\"","3/4\"","6\" (15cm)","2 gavilanes",1,null,"",null,null,""," "]
[18,3610140,"Broca para taladro TE-C 3/4\"-8\" MP4","3/4\"","6\" (15cm)","2 gavilanes",4,null,"",null,null,""," "]
[19,355327,"Broca para taladro TE-C 3/4\"-12\"","3/4\"","10\" (25cm)","2 gavilanes",1,null,"",null,null,""," "]
[20,3610141,"Broca para taladro TE-C 3/4\"-12\" MP4","3/4\"","10\" (25cm)","2 gavilanes",4,null,"",null,null,""," "]
[21,355329,"Broca para taladro TE-C 7/8\"-10\"","7/8\"","8\" (20cm)","2 gavilanes",1,null,"",null,null,""," "]
[22,3610803,"Broca para taladro TE-C 7/8\"-10\" MP4","7/8\"","8\" (20cm)","2 gavilanes",4,null,"",null,null,""," "]
[{"$f":"#REF!+1","v":{"$error":"#REF!"}},434995,"Broca para taladro TE-CX 3/16\"-6\"","3/16\"","4\" (10cm)","4 gavilanes",1,null,"",null,null,""," "]
[{"$error":"#REF!"},435000,"Broca para taladro TE-CX 1/4\"-6\"","1/4\"","4\" (10cm)","4 gavilanes",1,null,"",null,null,""," "]
[{"$error":"#REF!"},435002,"Broca para taladro TE-CX 1/4\"-12\"","1/4\"","10\" (25cm)","4 gavilanes",1,null,"",null,null,""," "]
[{"$error":"#REF!"},435003,"Broca para taladro TE-CX 5/16\"-6\"","5/16\"","4\" (10cm)","4 gavilanes",1,null,"",null,null,""," "]
[{"$error":"#REF!"},435006,"Broca para taladro TE-CX 3/8\"-6\"","3/8\"","4\" (10cm)","4 gavilanes",1,null,"",null,null,""," "]
[{"$error":"#REF!"},435007,"Broca para taladro TE-CX 3/8\"-12\"","3/8\"","10\" (25cm)","4 gavilanes",1,null,"",null,null,""," "]
[{"$error":"#REF!"},435008,"Broca para taladro TE-CX 3/8\"-18\"","3/8\"","16\" (40cm)","4 gavilanes",1,null,"",null,null,""," "]
[{"$error":"#REF!"},435009,"Broca para taladro TE-CX 3/8\"-24\"","3/8\"","22\" (55cm)","4 gavilanes",1,null,"",null,null,""," "]
[{"$error":"#REF!"},435010,"Broca para taladro TE-CX 7/16\"-6\"","7/16\"","4\" (10cm)","4 gavilanes",1,null,"",null,null,""," "]
[{"$error":"#REF!"},435012,"Broca para taladro TE-CX 1/2\"-6\"","1/2\"","4\" (10cm)","4 gavilanes",1,null,"",null,null,""," "]
[{"$error":"#REF!"},435013,"Broca para taladro TE-CX 1/2\"-12\"","1/2\"","10\" (25cm)","4 gavilanes",1,null,"",null,null,"",{"$f":"IFERROR(OFFSET($B$1,SMALL(L:L,$A42 )-1,0),\"\")&\" \"&IFERROR(OFFSET($I$1,SMALL(L:L,$A42 )-1,0),\"\")","v":" "}]
[{"$error":"#REF!"},435014,"Broca para taladro TE-CX 1/2\"-18\"","1/2\"","16\" (40cm)","4 gavilanes",1,null,"",null,null,""," "]
[{"$error":"#REF!"},435015,"Broca para taladro TE-CX 9/16\"-6\"","9/16\"","4\" (10cm)","4 gavilanes",1,null,"",null,null,""," "]
[{"$error":"#REF!"},435016,"Broca para taladro TE-CX 9/16\"-12\"","9/16\"","10\" (25cm)","4 gavilanes",1,null,"",null,null,""," "]
[{"$error":"#REF!"},435018,"Broca para taladro TE-CX 5/8\"-8\"","5/8\"","6\" (15cm)","4 gavilanes",1,null,"",null,null,""," "]
[{"$error":"#REF!"},435019,"Broca para taladro TE-CX 5/8\"-12\"","5/8\"","10\" (25cm)","4 gavilanes",1,null,"",null,null,""," "]
[{"$error":"#REF!"},435020,"Broca para taladro TE-CX 5/8\"-18\"","5/8\"","16\" (40cm)","4 gavilanes",1,null,"",null,null,""," "]
[{"$error":"#REF!"},426821,"Broca para taladro TE-CX 11/16\"-12\"","11/16\"","10\" (25cm)","4 gavilanes",1,null,"",null,null,""," "]
[{"$error":"#REF!"},426823,"Broca para taladro TE-CX 3/4\"-8\"","3/4\"","6\" (15cm)","4 gavilanes",1,null,"",null,null,""," "]
[{"$error":"#REF!"},426824,"Broca para taladro TE-CX 3/4\"-12\"","3/4\"","10\" (25cm)","4 gavilanes",1,null,"",null,null,""," "]
[{"$error":"#REF!"},426825,"Broca para taladro TE-CX 3/4\"-18\"","3/4\"","16\" (40cm)","4 gavilanes",1,null,"",null,null,""," "]
[{"$error":"#REF!"},426827,"Broca para taladro TE-CX 27/32\"-10\"","27/32\"","8\" (20cm)","4 gavilanes",1,null,"",null,null,""," "]
[{"$error":"#REF!"},426829,"Broca para taladro TE-CX 7/8\"-10\"","7/8\"","8\" (20cm)","4 gavilanes",1,null,"",null,null,""," "]
[{"$error":"#REF!"},421979,"Broca para taladro TE-CX 26/27, 1\"-10\"","1\"","8\" (20cm)","4 gavilanes",1,null,"",null,null,""," "]
[{"$error":"#REF!"},421980,"Broca para taladro TE-CX 26/48, 1\"-18\"","1\"","16\" (40cm)","4 gavilanes",1,null,"",null,null,""," "]
[{"$f":"#REF!+1","v":{"$error":"#REF!"}},433788,"Broca para taladro TE-CX 6/12 (Métrica)","6mm","5cm","4 gavilanes",1,null,"",null,null,""," "]
[{"$error":"#REF!"},409177,"Broca para taladro TE-CX 8/22 (Métrica)","8mm","15cm","4 gavilanes",1,null,"",null,null,""," "]
[{"$error":"#REF!"},409198,"Broca para taladro TE-CX 12/22 (Métrica)","12mm","15cm","4 gavilanes",1,null,"",null,null,""," "]
[{"$error":"#REF!"},409199,"Broca para taladro TE-CX 12/27 (Métrica)","12mm","20cm","4 gavilanes",1,null,"",null,null,""," "]
[{"$error":"#REF!"},421963,"Broca para taladro TE-CX 20/22 (Métrica)","20mm","15cm","4 gavilanes",1,null,"",null,null,""," "]
[{"$error":"#REF!"},421971,"Broca para taladro TE-CX 24/27 (Métrica)","24mm","20cm","4 gavilanes",1,null,"",null,null,""," "]
[null,null,null,null,null,null,null,null,null,null,null,null," "]
[null,null,null,null,null,null,null,null,null,null,null,null," "]
[null,"Cinceles para encastre SDS-PLUS",null,null,null,null,null,null,null,null,null,null," "]
[null,"Ítem #","Descripción","Tipo de punta","Longitud utilizable","Encastre","Tamaño embalaje","Cantidad a ordenar","Cantidad ajustada a embalaje","Código de barras",null,null," "]
[null,282301,"Cincel plano TE-CP FM 25","Puntero","25cm","SDS-PLUS",1,null,"",null,null,null," "]
[null,282299,"Cincel puntero TE-CP SM 25","Plano","25cm","SDS-PLUS",1,null,"",null,null,null," "]
[null,30221,"Cincel acanalado TE-C KM 2/25","Concavo","25cm","SDS-PLUS",1,null,"",null,null,null," "]
[null,282311,"Juego Cincel TE-CP 2","Puntero / Plano","25 cm","SDS-PLUS",1,null,"",null,null,null," "]
[null,282264,"Cincel puntero TE-YP SM 36","Puntero","36cm","SDS-MAX",1,null,{"$f":"IF(CEILING(H71,G71)=0,\"\",CEILING(H71,G71))","v":""},null,null,null," "]
[null,282265,"Cincel puntero TE-YP SM 50","Puntero","50cm","SDS-MAX",1,null,"",null,null,null," "]
[null,282266,"Cincel puntero TE-YP SM 70","Puntero","70cm","SDS-MAX",1,null,"",null,null,null," "]
[null,411057,"Cincel puntero TE-YP SM 36 MP4","Puntero","36cm","SDS-MAX",4,null,"",null,null,null," "]
[null,411058,"Cincel puntero TE-YP SM 50 MP4","Puntero","50cm","SDS-MAX",4,null,"",null,null,null," "]
[null,282268,"Cincel plano TE-YP FM 36","Plano","36cm","SDS-MAX",1,null,"",null,null,null," "]
[null,282269,"Cincel plano TE-YP FM 50","Plano","50cm","SDS-MAX",1,null,"",null,null,null," "]
[null,282270,"Cincel plano TE-YP FM 70","Plano","70cm","SDS-MAX",1,null,"",null,null,null," "]
[null,"62893","Bujarda TE-Y SKHM","Bujarda","25cm","SDS-MAX",1,null,"",null,null,null," "]
[null,259560,"Cincel concavo TE-Y HM 2.8/28","Concavo","28cm","SDS-MAX",1,null,"",null,null,null," "]
[null,259562,"Cincel acanalado TE-Y KM 3.6/28","Concavo","28cm","SDS-MAX",1,null,"",null,null,null," "]
[null,282271,"Cincel espátula TE-YP SPM 5/28","Plano ancho","28cm","SDS-MAX",1,null,"",null,null,null," "]
[null,282275,"Cincel espátula TE-YP SPM 12/50","Plano ancho","50cm","SDS-MAX",1,null,"",null,null,null," "]
[{"$f":"#REF!+1","v":{"$error":"#REF!"}},null,null,null,null,null,null,null,null,null,null,""," "]
[null,null,null,null,null,null,null,null,null,null,null,null," "]
[{"$f":"A84+1","v":{"$error":"#REF!"}},"Discos abrasivos para esmeril",null,null,null,null,null,null,null,null,null,""," "]
[{"$error":"#REF!"},"Ítem #","Descripción","Diámetro","Espesor","Denominacion","Tamaño embalaje","Cantidad a ordenar","Cantidad ajustada a embalaje","Código de barras",null,""," "]
[{"$error":"#REF!"},2126587,"Disco de corte AC-D UP 115x3.0mm","4.5\" (115mm)","3.0mm","Corte","25",null,"",null,null,""," "]
[null,3612567,"Disco de corte AC-D UP 115x3.0mm MP100","4.5\" (115mm)","3.0mm","Corte",100,null,"",null,null,null," "]
[{"$f":"A88+1","v":{"$error":"#REF!"}},2126589,"Disco de corte AC-D SP 115x1.0mm","4.5\" (115mm)","1.0mm","Corte fino","25",null,"",null,null,""," "]
[null,3612565,"Disco de corte AC-D SP 115x1.0mm MP100","4.5\" (115mm)","1.0mm","Corte fino",100,null,"",null,null,null," "]
[{"$f":"A90+1","v":{"$error":"#REF!"}},2126611,"Disco de corte AC-D UP 180x3.0mm","7\" (180mm)","3.0mm","Corte","25",null,"",null,null,""," "]
[null,null,"Disco de corte AC-D UP 180x3.0mm MP50","7\" (180mm)","3.0mm","Corte",50,null,"",null,null,null," "]
[{"$f":"A92+1","v":{"$error":"#REF!"}},2126613,"Disco de corte AC-D SP 180x1.6mm","7\" (180mm)","1.6mm","Corte fino","25",null,"",null,null,""," "]
[null,3612566,"Disco de corte AC-D SP 180x1.6mm MP100","7\" (180mm)","1.6mm","Corte fino",100,null,"",null,null,null," "]
[{"$f":"A94+1","v":{"$error":"#REF!"}},2126615,"Disco de corte AC-D UP 230x3.0mm","9\" (230mm)","3.0mm","Corte","25",null,"",null,null,""," "]
[null,null,"Disco de corte AC-D UP 230x3.0mm MP50","9\" (230mm)","3.0mm","Corte",50,null,"",null,null,null," "]
[{"$f":"A96+1","v":{"$error":"#REF!"}},2126616,"Disco de corte AC-D SP 230x2.0mm","9\" (230mm)","2.0mm","Corte","25",null,"",null,null,""," "]
[null,null,"Disco de corte AC-D SP 230x2.0mm MP50","9\" (230mm)","2.0mm","Corte",50,null,"",null,null,null," "]
[{"$f":"#REF!+1","v":{"$error":"#REF!"}},2126619,"Disco de desbaste AG-D UP 115x6.4mm","4.5\" (115mm)","6.4mm","Desbaste","10",null,"",null,null,""," "]
[null,null,"Disco de desbaste AG-D UP 115x6.4mm MP50","4.5\" (115mm)","6.4mm","Desbaste",50,null,"",null,null,null," "]
[{"$f":"A100+1","v":{"$error":"#REF!"}},2126620,"Disco de desbaste AG-D UP 180x6.4mm","7\" (180mm)","6.4mm","Desbaste","10",null,"",null,null,""," "]
[null,null,"Disco de desbaste AG-D UP 180x6.4mm MP50","7\" (180mm)","6.4mm","Desbaste",50,null,"",null,null,null," "]
[{"$f":"A102+1","v":{"$error":"#REF!"}},2126618,"Disco de desbaste AG-D UP 230x6.4mm","9\" (230mm)","6.4mm","Desbaste","10",null,"",null,null,{"$f":"IF(ISNUMBER(I104),IF($I104 <> \"\",ROW(),\"\"),\"\")","v":""}," "]
[null,null,"Disco de desbaste AG-D UP 230x6.4mm MP50","9\" (230mm)","6.4mm","Desbaste",50,null,"",null,null,null," "]
[{"$f":"#REF!+1","v":{"$error":"#REF!"}},null,null,null,null,null,null,null,null,null,null,"",{"$f":"IFERROR(OFFSET($B$1,SMALL(L:L,$A106 )-1,0),\"\")&\" \"&IFERROR(OFFSET($I$1,SMALL(L:L,$A106 )-1,0),\"\")","v":" "}]
[null,null,null,null,null,null,null,null,null,null,null,null," "]
[{"$f":"A106+1","v":{"$error":"#REF!"}},"Discos segmentados de diamante",null,null,null,null,null,null,null,null,null,""," "]
[{"$f":"A108+1","v":{"$error":"#REF!"}},"Ítem #","Descripción","Diámetro","Material base","Denominacion","Tamaño embalaje","Cantidad a ordenar","Cantidad ajustada a embalaje","Código de barras",null,""," "]
[{"$error":"#REF!"},2118559,"Disco de corte P-S 115/22.2 universal","4.5\" (115mm)","Universal","Esmeril",1,null,"",null,null,""," "]
[{"$f":"A116+1","v":{"$error":"#REF!"}},2118702,"Disco de corte P-S 115/22.2 universal MP6","4.5\" (115mm)","Universal","Esmeril",6,null,"",null,null,{"$f":"IF(ISNUMBER(I111),IF($I111 <> \"\",ROW(),\"\"),\"\")","v":""}," "]
[{"$f":"A117+1","v":{"$error":"#REF!"}},"3604775","Disco de corte P-S 115/22.2 universal MP30","4.5\" (115mm)","Universal","Esmeril",30,null,"",null,null,{"$f":"IF(ISNUMBER(I112),IF($I112 <> \"\",ROW(),\"\"),\"\")","v":""}," "]
[{"$f":"A110+1","v":{"$error":"#REF!"}},2118671,"Disco de corte P-S 180/22.2 universal","7\" (180mm)","Universal","Esmeril",1,null,"",null,null,""," "]
[{"$error":"#REF!"},2118704,"Disco de corte P-S 180/22.2 universal MP6","7\" (180mm)","Universal","Esmeril",6,null,"",null,null,{"$f":"IF(ISNUMBER(I114),IF($I114 <> \"\",ROW(),\"\"),\"\")","v":""}," "]
[{"$error":"#REF!"},"3604783","Disco de corte P-S 180/22.2 universal MP30","7\" (180mm)","Universal","Esmeril",30,null,"",null,null,{"$f":"IF(ISNUMBER(I115),IF($I115 <> \"\",ROW(),\"\"),\"\")","v":""}," "]
[{"$error":"#REF!"},2118672,"Disco de corte P-S 230/22.2 universal","9\" (230mm)","Universal","Esmeril",1,null,"",null,null,""," "]
[{"$error":"#REF!"},2118705,"Disco de corte P-S 230/22.2 universal MP6","9\" (230mm)","Universal","Esmeril",6,null,"",null,null,{"$f":"IF(ISNUMBER(I117),IF($I117 <> \"\",ROW(),\"\"),\"\")","v":""}," "]
[{"$error":"#REF!"},"3604784","Disco de corte P-S 230/22.2 universal MP30","9\" (230mm)","Universal","Esmeril",30,null,"",null,null,{"$f":"IF(ISNUMBER(I118),IF($I118 <> \"\",ROW(),\"\"),\"\")","v":""}," "]
[null,"2118046","Disco corte diamante DC-D 125 SE C1 (2)","5\"(125mm)","Concreto","Acanaladora",2,null,"",null,null,null," "]
[null,2118048,"Disco de corte EQD SPX-SL125 (2) mampo.","5\"(125mm)","Mamposteria","Acanaladora",2,null,"",null,null,null," "]
[null,"2118046","Disco de corte EQD SPX-SL125 (2) univers","5\"(125mm)","Universal","Acanaladora",2,null,"",null,null,null," "]
[null,2117966,"Disco de corte EQD SPX 305/22 universal","12\"","Universal","Cortadora eje 22mm",1,null,"",null,null,null," "]
[null,2118012,"Disco de corte EQD SPX 12\"x1\" DCH univer","12\"","Universal","Cortadora eje 1\"",1,null,"",null,null,null," "]
[null,null,null,null,null,null,null,null,null,null,null,null," "]
[null,null,null,null,null,null,null,null,null,null,null,null," "]
[null,"Brocas diamantadas UCL ",null,null,null,null,null,null,null,null,null,null," "]
[null,"Ítem #","Descripción","Diámetro","Longitud utilizable","Conexion","Tamaño embalaje","Cantidad a ordenar","Cantidad ajustada a embalaje","Código de barras",null,null," "]
[null,2080053,"Broca corona diam DD-BI+ 12/320 UCL","12mm","32cm","BI Incluida",1,null,{"$f":"IF(CEILING(H128,G128)=0,\"\",CEILING(H128,G128))","v":""},null,null,null," "]
[null,2080054,"Broca corona diam DD-BI+ 14/320 UCL","14mm","32cm","BI Incluida",1,null,"",null,null,null," "]
[null,2080055,"Broca corona diam DD-BI+ 16/320 UCL","16mm","32cm","BI Incluida",1,null,"",null,null,null," "]
[null,2080056,"Broca corona diam DD-BI+ 18/320 UCL","18mm","32cm","BI Incluida",1,null,"",null,null,null," "]
[null,2080057,"Broca corona diam DD-BI+ 20/320 UCL","20mm","32cm","BI Incluida",1,null,""]
[null,2080058,"Broca corona diam DD-BI+ 22/320 UCL","22mm","32cm","BI Incluida",1,null,""]
[null,2080059,"Broca corona diam DD-BI+ 24/320 UCL","24mm","32cm","BI Incluida",1,null,""]
[null,2080130,"Broca corona diam DD-BI+ 25/320 UCL","25mm","32cm","BI Incluida",1,null,""]
[null,2080131,"Broca corona diam DD-BI+ 28/320 UCL","28mm","32cm","BI Incluida",1,null,""]
[null,2080132,"Broca corona diam DD-BI+ 30/320 UCL","30mm","32cm","BI Incluida",1,null,""]
[null,2080133,"Broca corona diam DD-BI+ 32/320 UCL","32mm","32cm","BI Incluida",1,null,""]
[null,2078086,"Broca corona diam DD-B 35/430 UCL","35mm","43cm","No incluida",1,null,""]
[null,2078087,"Broca corona diam DD-B 37/430 UCL","37mm","43cm","No incluida",1,null,""]
[null,2078088,"Broca corona diam DD-B 42/430 UCL","42mm","43cm","No incluida",1,null,""]
[null,2078089,"Broca corona diam DD-B 47/430 UCL","47mm","43cm","No incluida",1,null,""]
[null,2078070,"Broca corona diam DD-B 52/430 UCL","52mm","43cm","No incluida",1,null,""]
[null,2078071,"Broca corona diam DD-B 62/430 UCL","62mm","43cm","No incluida",1,null,""]
[null,2093998,"Broca corona diam DD-B 67/430 UCL","67mm","43cm","No incluida",1,null,""]
[null,2078072,"Broca corona diam DD-B 72/430 UCL","72mm","43cm","No incluida",1,null,""]
[null,2078073,"Broca corona diam DD-B 77/430 UCL","77mm","43cm","No incluida",1,null,""]
[null,2078074,"Broca corona diam DD-B 82/430 UCL","82mm","43cm","No incluida",1,null,""]
[null,2078075,"Broca corona diam DD-B 92/430 UCL","92mm","43cm","No incluida",1,null,""]
[null,2078076,"Broca corona diam DD-B 102/430 UCL","102mm","43cm","No incluida",1,null,""]
[null,2078077,"Broca corona diam DD-B 107/430 UCL","107mm","43cm","No incluida",1,null,""]
[null,2078078,"Broca corona diam DD-B 112/430 UCL","112mm","43cm","No incluida",1,null,""]
[null,2093999,"Broca corona diam DD-B 117/430 UCL","117mm","43cm","No incluida",1,null,""]
[null,2078079,"Broca corona diam DD-B 122/430 UCL","122mm","43cm","No incluida",1,null,""]
[null,2078080,"Broca corona diam DD-B 127/430 UCL","127mm","43cm","No incluida",1,null,""]
[null,2078081,"Broca corona diam DD-B 132/430 UCL","132mm","43cm","No incluida",1,null,""]
[null,2078082,"Broca corona diam DD-B 152/430 UCL","152mm","43cm","No incluida",1,null,""]
[null,2078083,"Broca corona diam DD-B 162/430 UCL","162mm","43cm","No incluida",1,null,""]
[null,2078084,"Broca corona diam DD-B 172/430 UCL","172mm","43cm","No incluida",1,null,""]
[null,2078085,"Broca corona diam DD-B 202/430 UCL","202mm","43cm","No incluida",1,null,""]
[null,2078090,"Broca corona diam DD-B 225/430 UCL","225mm","43cm","No incluida",1,null,""]
[null,2078091,"Broca corona diam DD-B 250/430 UCL","250mm","43cm","No incluida",1,null,""]
[null,2078092,"Broca corona diam DD-B 300/430 UCL","30mm","43cm","No incluida",1,null,""]
[null,236120,"Extremo de inserción BI-1",null,null,null,null,null,{"$f":"IF(CEILING(H164,G164)=0,\"\",CEILING(H164,G164))","v":""}]
[]
[]
[{"$f":"#REF!+1","v":{"$error":"#REF!"}},"Discos para sierra circular de metal",null,null,null,null,null,null,null,null,null,"",{"$f":"IFERROR(OFFSET($B$1,SMALL(L:L,$A167 )-1,0),\"\")&\" \"&IFERROR(OFFSET($I$1,SMALL(L:L,$A167 )-1,0),\"\")","v":" "}]
[{"$error":"#REF!"},"Ítem #","Descripción","Diámetro","Material Base","# dientes","Tamaño embalaje","Cantidad a ordenar","Cantidad ajustada a embalaje","Código de barras",null,""," "]
[{"$error":"#REF!"},"2014794","Hoja sierra circ. SCB M Xcut 165x20 z48 A","165mm","Acero/Hierro/Inox",48,"1",null,"",null,null,""," "]
[{"$error":"#REF!"},2014797,"Hoja sierra circ. SC-C MU 165x20 z40 A","165mm","Acero/Hierro",40,"1",null,"",null,null,""," "]
[{"$error":"#REF!"},2023990,"Hoja sierra circ. SC-C MS AL 165x20 z48","165mm","No ferrosos",48,1,null,"",null,null,""," "]
[{"$f":"#REF!+1","v":{"$error":"#REF!"}},null,null,null,null,null,null,null,null,null,null,""," "]
[]
[{"$f":"A172+1","v":{"$error":"#REF!"}},"Copas sierra para zanco liso",null,null,null,null,null,null,null,null,null,""]
[{"$error":"#REF!"},"Item #","Descripcion","Diametro","Profundidad","Denominacion","Tamaño embalaje","Cantidad a ordenar","Cantidad ajustada a embalaje","Codigo de barras",null,"",{"$f":"IFERROR(OFFSET($B$1,SMALL(L:L,$A175 )-1,0),\"\")&\" \"&IFERROR(OFFSET($I$1,SMALL(L:L,$A175 )-1,0),\"\")","v":" "}]
[{"$error":"#REF!"},"283871","Vástago para corona de aserrar","-","-",null,"1",null,{"$f":"IF(CEILING(H176,G176)=0,\"\",CEILING(H176,G176))","v":""},null,null,""," "]
[{"$error":"#REF!"},"283870","Broca de centrado 6 mm","6mm","-",null,5,null,"",null,null,""," "]
[{"$error":"#REF!"},"417562","Corona bimetal de aserrar 27mm-1 1/16\" M","1 1/16\" (27mm)","28mm","Metal","1",null,"",null,null,""," "]
[{"$error":"#REF!"},"417567","Corona bimetal de aserrar 32mm-1 1/4\" Me","1 1/4\" (32mm)","28mm","Metal","1",null,"",null,null,""," "]
[{"$error":"#REF!"},"417568","Corona bimetal de aserrar 33mm-1 5/16\" M","1 5/16\" (33mm)","28mm","Metal","1",null,"",null,null,""," "]
[{"$error":"#REF!"},"417569","Corona bimetal de aserrar 35mm-1 3/8\" Me","1 3/8\" (35mm)","28mm","Metal","1",null,"",null,null,""," "]
[{"$error":"#REF!"},"417570","Corona bimetal de aserrar 38mm-1 1/2\" Me","1 1/2\" (38mm)","28mm","Metal","1",null,"",null,null,""," "]
[{"$error":"#REF!"},"417574","Corona bimetal de aserrar 44mm-1 3/4\" Me","1 3/4\" (44mm)","28mm","Metal","1",null,"",null,null,""," "]
[{"$error":"#REF!"},"417576","Corona bimetal de aserrar 48mm-1 7/8\" Me","1 7/8\" (48mm)","28mm","Metal","1",null,"",null,null,""," "]
[{"$error":"#REF!"},"417577","Corona bimetal de aserrar 51mm-2\" MetalC","2\" (51mm)","28mm","Metal","1",null,"",null,null,""," "]
[{"$error":"#REF!"},"417578","Corona bimetal de aserrar 54mm-2 1/8\" Me","2 1/8\" (54mm)","28mm","Metal","1",null,"",null,null,""," "]
[{"$error":"#REF!"},"417580","Corona bimetal de aserrar 60mm-2 3/8 Met","2 3/8\" (60mm)","28mm","Metal","1",null,"",null,null,""," "]
[{"$error":"#REF!"},"417581","Corona bimetal de aserrar 64mm-2 1/2\" Me","2 1/2\" (64mm)","28mm","Metal","1",null,"",null,null,""," "]
[{"$error":"#REF!"},"417583","Corona bimetal de aserrar 67mm-2 5/8\" Me","2 5/8\" (67mm)","28mm","Metal","1",null,"",null,null,""," "]
[]
[]
[null,"Hojas para sierra sable (reciprocante)"]
[null,"Item #","Descripcion","Longitud","Dientes x pulgada","Denomicaion","Tamaño embalaje","Cantidad a ordenar","Cantidad ajustada a embalaje","Codigo de barras"]
[null,2099279,"Hoja sierra sable MD 15 10 (40)","15cm","10TPI","Metal premium",40,null,""]
[null,2099293,"Hoja sierra sable MD 15 10 (5)","15cm","10TPI","Metal premium",5,null,""]
[null,2099294,"Hoja sierra sable MD 23 10 (5)","23cm","10TPI","Metal premium",5,null,""]
[null,2099295,"Hoja sierra sable MD 30 10 (5)","30cm","10TPI","Metal premium",5,null,""]
[null,2099296,"Hoja sierra sable MD 15 14 (5)","15cm","14TPI","Metal premium",5,null,""]
[null,2099297,"Hoja sierra sable MD 23 14 (5)","23cm","14TPI","Metal premium",5,null,""]
[null,2099298,"Hoja sierra sable MD 30 14 (5)","30cm","14TPI","Metal premium",5,null,""]
[null,2099299,"Hoja sierra sable MD 15 18 (5)","15cm","18TPI","Metal premium",5,null,""]
[null,2099340,"Hoja sierra sable MD 23 10 (40)","23cm","10TPI","Metal premium",40,null,""]
[null,2099341,"Hoja sierra sable MD 30 10 (40)","30cm","10TPI","Metal premium",40,null,""]
[null,2099342,"Hoja sierra sable MD 15 14 (40)","15cm","14TPI","Metal premium",40,null,""]
[null,2099343,"Hoja sierra sable MD 23 14 (40)","23cm","14TPI","Metal premium",40,null,""]
[null,2099344,"Hoja sierra sable MD 30 14 (40)","30cm","14TPI","Metal premium",40,null,""]
[null,2099345,"Hoja sierra sable MD 15 18 (40)","15cm","18TPI","Metal premium",40,null,""]
[null,2099346,"Hoja sierra sable MD 23 18 (40)","23cm","18TPI","Metal premium",40,null,""]
[null,2099347,"Hoja sierra sable MD 20 18 (40)","20cm","18TPI","Metal premium",40,null,""]
[null,2099390,"Hoja sierra sable MD 23 18 (5)","23cm","18TPI","Metal premium",5,null,""]
[null,2099391,"Hoja sierra sable MD 20 18 (5)","20cm","18TPI","Metal premium",5,null,""]
[null,2099392,"Hoja sierra sable MFR 15 10 (5)","15cm","18TPI","Demolicion y rescate",5,null,""]
[null,2099393,"Hoja sierra sable MFR 23 10 (5)","23cm","10TPI","Demolicion y rescate",5,null,""]
[null,2099394,"Hoja sierra sable MFR 30 10 (5)","30cm","10TPI","Demolicion y rescate",5,null,""]
[null,2099395,"Hoja sierra sable MB 15 14 (5)","15cm","14TPI","Metal basico",5,null,""]
[null,2099406,"Hoja sierra sable UD 15 1014 (5)","15cm","10/14TPI","Universal premium",5,null,""]
[null,2099408,"Hoja sierra sable UD 30 1014 (5)","30cm","10/14TPI","Universal premium",5,null,""]
[null,2099409,"Hoja sierra sable UB 15 1014 (5)","15cm","10/14TPI","Universal basico",5,null,""]
[{"$f":"A189+1","v":{"$error":"#REF!"}},null,null,null,null,null,null,null,null,null,null,"",{"$f":"IFERROR(OFFSET($B$1,SMALL(L:L,$A219 )-1,0),\"\")&\" \"&IFERROR(OFFSET($I$1,SMALL(L:L,$A219 )-1,0),\"\")","v":" "}]
[]
[{"$f":"A219+1","v":{"$error":"#REF!"}},"Brocas de mamposteria para zanco liso",null,null,null,null,null,null,null,null,null,"",{"$f":"IFERROR(OFFSET($B$1,SMALL(L:L,$A221 )-1,0),\"\")&\" \"&IFERROR(OFFSET($I$1,SMALL(L:L,$A221 )-1,0),\"\")","v":" "}]
[{"$error":"#REF!"},"Item #","Descripcion","Diametro","Longitud utilizable","Tipo de cabeza","Tamaño embalaje","Cantidad a ordenar","Cantidad ajustada a embalaje","Codigo de barras",null,""," "]
[{"$error":"#REF!"},61466,"Broca para mampostería TM 3/16\"-6\"","3/16\"","4\" (10cm)","2 gavilanes","1",null,"",null,null,""," "]
[{"$error":"#REF!"},61470,"Broca para mampostería TM 1/4\"-6\"","1/4\"","4\" (10cm)","3 gavilanes","1",null,"",null,null,""," "]
[{"$error":"#REF!"},61474,"Broca para mampostería TM 5/16\"-6\"","5/16\"","4\" (10cm)","4 gavilanes",1,null,"",null,null,""," "]
[{"$error":"#REF!"},61477,"Broca para mampostería TM 3/8\"-6\"","3/8\"","4\" (10cm)","5 gavilanes",1,null,"",null,null,""," "]
[{"$error":"#REF!"},61483,"Broca para mampostería TM 1/2\"-6\"","1/2\"","4\" (10cm)","6 gavilanes","1",null,"",null,null,""," "]
[{"$error":"#REF!"},62898,"Broca para mampostería TM 5/8\"-8\"","5/8\"","6\" (15cm)","7 gavilanes","1",null,"",null,null,""," "]
[{"$error":"#REF!"},null,null,null,null,null,null,null,null,null,null,""," "]
[]
[{"$f":"A229+1","v":{"$error":"#REF!"}},"Brocas de acero rapido (HSS) para zanco liso",null,null,null,null,null,null,null,null,null,"",{"$f":"IFERROR(OFFSET($B$1,SMALL(L:L,$A231 )-1,0),\"\")&\" \"&IFERROR(OFFSET($I$1,SMALL(L:L,$A231 )-1,0),\"\")","v":" "}]
[{"$error":"#REF!"},"Item #","Descripcion","Diametro","Longitud utilizable","Denominacion","Tamaño embalaje","Cantidad a ordenar","Cantidad ajustada a embalaje","Codigo de barras",null,""," "]
[{"$error":"#REF!"},233868,"Broca helicoidal HSS 1/16\" MP12","1/16\"","2.2cm","Estandar",12,null,"",null,null,""," "]
[{"$error":"#REF!"},234421,"Broca helicoidal HSS 1/8\"   MP12","1/8\"","4.1cm","Estandar",12,null,"",null,null,""," "]
[{"$f":"A234+1","v":{"$error":"#REF!"}},246474,"Broca helicoidal HSS 1/4\"   MP12","1/4\"","7.0cm","Estandar",12,null,"",null,null,""," "]
[{"$error":"#REF!"},273328,"Broca helicoidal HSS 5/16\"   MP6","5/16\"","8.1cm","Estandar",6,null,"",null,null,""," "]
[{"$error":"#REF!"},383956,"Broca helicoidal HSS 3/8\"   MP6","3/8\"","8.2cm","Estandar",6,null,{"$f":"IF(CEILING(H237,G237)=0,\"\",CEILING(H237,G237))","v":""},null,null,""," "]
[{"$error":"#REF!"},410605,"Broca helicoidal HSS 1/2\"   MP6","1/2\"","11.4cm","Estandar",6,null,"",null,null,""," "]
[null,"410606","Broca helicoidal HSS 1/16\"   MP12","1/16\"","2.2cm","Cobalto",12,null,"",null,null,""]
[null,"410610","Broca helicoidal HSS 1/8\"   MP12","1/8\"","4.1cm","Cobalto",12,null,"",null,null,""]
[null,"410614","Broca helicoidal HSS 3/16\"   MP12","3/16\"","5.6cm","Cobalto",12,null,"",null,null,""]
[null,"410618","Broca helicoidal HSS 1/4\"   MP12","1/4\"","7.0cm","Cobalto",12,null,"",null,null,""]
[null,"410622","Broca helicoidal HSS 5/16\"   MP6","5/16\"","8.1cm","Cobalto",6,null,"",null,null,""]
[null,"410626","Broca helicoidal HSS 3/8\"   MP6","3/8\"","8.2cm","Cobalto",6,null,"",null,null,""]
[null,"410630","Broca helicoidal HSS 7/16\"   MP6","7/16\"","9.8cm","Cobalto",6,null,"",null,null,""]
[null,"410635","Broca helicoidal HSS 1/2\"   MP6","1/2\"","11.4cm","Cobalto",6,null,"",null,null,""]
[]
[]
[null,"Vasos de impacto"]
[null,"Item #","Descripcion","Conexion","Longitud","Conexion","Tamaño embalaje","Cantidad a ordenar","Cantidad ajustada a embalaje","Codigo de barras"]
[null,289146,"Vaso de impacto S-NSD 1/2\"-3/8\" S","3/8\"","4.0cm","1/2\"",1,null,""]
[null,304750,"Vaso de impacto S-NSD 1/2\"-1/2\" S","1/2\"","4.0cm","1/2\"",1,null,""]
[null,305114,"Vaso de impacto S-NSD 1/2\"-9/16\" S","9/16\"","4.0cm","1/2\"",1,null,""]
[null,305683,"Vaso de impacto S-NSD 1/2\"-3/4\" S","3/4\"","4.0cm","1/2\"",1,null,""]
[null,315703,"Vaso de impacto S-NSD 1/2\"-15/16\" S","15/16\"","4.0cm","1/2\"",1,null,""]
[null,315704,"Vaso de impacto S-NSD 1/2\"-1\" S","1\"","4.0cm","1/2\"",1,null,""]
[{"$f":"#REF!+1","v":{"$error":"#REF!"}},331444,"Vaso de impacto S-NSD 1/2\"-1-1/8\" S","1 1/8\"","4.0cm","1/2\"",1,null,"",null,null,"",{"$f":"IFERROR(OFFSET($B$1,SMALL(L:L,$A257 )-1,0),\"\")&\" \"&IFERROR(OFFSET($I$1,SMALL(L:L,$A257 )-1,0),\"\")","v":" "}]
[{"$f":"#REF!+1","v":{"$error":"#REF!"}},null,null,null,null,null,null,null,"",null,null,{"$f":"IF(ISNUMBER(I258),IF($I258 <> \"\",ROW(),\"\"),\"\")","v":""}," "]
[{"$f":"A258+1","v":{"$error":"#REF!"}},{"$f":"'Productos adicionales'!B8","v":"Cinceles"},{"$f":"'Productos adicionales'!C8","v":0},{"$f":"'Productos adicionales'!D8","v":0},{"$f":"'Productos adicionales'!E8","v":0},{"$f":"'Productos adicionales'!F8","v":0},{"$f":"'Productos adicionales'!G8","v":0},{"$f":"'Productos adicionales'!H8","v":0},"",null,null,""," "]
[{"$error":"#REF!"},{"$f":"'Productos adicionales'!B9","v":"Ítem #"},{"$f":"'Productos adicionales'!C9","v":"Descripción"},{"$f":"'Productos adicionales'!D9","v":"Tipo de punta"},{"$f":"'Productos adicionales'!E9","v":"Longitud utilizable"},{"$f":"'Productos adicionales'!F9","v":"Encastre"},{"$f":"'Productos adicionales'!G9","v":"Tamaño embalaje"},{"$f":"'Productos adicionales'!H9","v":"Cantidad a ordenar"},{"$error":"#VALUE!"},null,null,""," "]
[{"$error":"#REF!"},{"$f":"'Productos adicionales'!B10","v":2126923},{"$f":"'Productos adicionales'!C10","v":"TE-H28P SM-FM40 SET"},{"$f":"'Productos adicionales'!D10","v":"Juego"},{"$f":"'Productos adicionales'!E10","v":"40cm"},{"$f":"'Productos adicionales'!F10","v":"H28"},{"$f":"'Productos adicionales'!G10","v":1},{"$f":"'Productos adicionales'!H10","v":0},"",null,null,""," "]
[{"$error":"#REF!"},{"$f":"'Productos adicionales'!B11","v":2126924},{"$f":"'Productos adicionales'!C11","v":"TE-H28P SM-FM50 SET"},{"$f":"'Productos adicionales'!D11","v":"Juego"},{"$f":"'Productos adicionales'!E11","v":"50cm"},{"$f":"'Productos adicionales'!F11","v":"H28"},{"$f":"'Productos adicionales'!G11","v":1},{"$f":"'Productos adicionales'!H11","v":0},"",null,null,""," "]
[{"$error":"#REF!"},{"$f":"'Productos adicionales'!B12","v":417826},{"$f":"'Productos adicionales'!C12","v":"Cincel plano TE-H28P FM 40"},{"$f":"'Productos adicionales'!D12","v":"Plano"},{"$f":"'Productos adicionales'!E12","v":"40cm"},{"$f":"'Productos adicionales'!F12","v":"H28"},{"$f":"'Productos adicionales'!G12","v":1},{"$f":"'Productos adicionales'!H12","v":0},"",null,null,""," "]
[{"$error":"#REF!"},{"$f":"'Productos adicionales'!B13","v":417827},{"$f":"'Productos adicionales'!C13","v":"Cincel plano TE-H28P FM 50"},{"$f":"'Productos adicionales'!D13","v":"Plano"},{"$f":"'Productos adicionales'!E13","v":"50cm"},{"$f":"'Productos adicionales'!F13","v":"H28"},{"$f":"'Productos adicionales'!G13","v":1},{"$f":"'Productos adicionales'!H13","v":0},"",null,null,""," "]
[{"$error":"#REF!"},{"$f":"'Productos adicionales'!B14","v":417834},{"$f":"'Productos adicionales'!C14","v":"Cincel plano TE-H28P FM 40 MP4"},{"$f":"'Productos adicionales'!D14","v":"Plano"},{"$f":"'Productos adicionales'!E14","v":"40cm"},{"$f":"'Productos adicionales'!F14","v":"H28"},{"$f":"'Productos adicionales'!G14","v":4},{"$f":"'Productos adicionales'!H14","v":0},"",null,null,""," "]
[{"$error":"#REF!"},{"$f":"'Productos adicionales'!B15","v":417835},{"$f":"'Productos adicionales'!C15","v":"Cincel plano TE-H28P FM 50 MP4"},{"$f":"'Productos adicionales'!D15","v":"Plano"},{"$f":"'Productos adicionales'!E15","v":"50cm"},{"$f":"'Productos adicionales'!F15","v":"H28"},{"$f":"'Productos adicionales'!G15","v":4},{"$f":"'Productos adicionales'!H15","v":0},"",null,null,""," "]
[{"$error":"#REF!"},{"$f":"'Productos adicionales'!B16","v":2126919},{"$f":"'Productos adicionales'!C16","v":"Cincel puntero TE-H28P SM40 Wave"},{"$f":"'Productos adicionales'!D16","v":"Puntero"},{"$f":"'Productos adicionales'!E16","v":"40cm"},{"$f":"'Productos adicionales'!F16","v":"H28"},{"$f":"'Productos adicionales'!G16","v":1},{"$f":"'Productos adicionales'!H16","v":0},"",null,null,""," "]
[{"$error":"#REF!"},{"$f":"'Productos adicionales'!B17","v":2126920},{"$f":"'Productos adicionales'!C17","v":"Cincel puntero TE-H28P SM50 Wave"},{"$f":"'Productos adicionales'!D17","v":"Puntero"},{"$f":"'Productos adicionales'!E17","v":"50cm"},{"$f":"'Productos adicionales'!F17","v":"H28"},{"$f":"'Productos adicionales'!G17","v":1},{"$f":"'Productos adicionales'!H17","v":0},"",null,null,""," "]
[{"$error":"#REF!"},{"$f":"'Productos adicionales'!B18","v":2126921},{"$f":"'Productos adicionales'!C18","v":"Cincel puntero TE-H28P SM40 Wave MP4"},{"$f":"'Productos adicionales'!D18","v":"Puntero"},{"$f":"'Productos adicionales'!E18","v":"40cm"},{"$f":"'Productos adicionales'!F18","v":"H28"},{"$f":"'Productos adicionales'!G18","v":4},{"$f":"'Productos adicionales'!H18","v":0},"",null,null,""," "]
[{"$error":"#REF!"},{"$f":"'Productos adicionales'!B19","v":2126922},{"$f":"'Productos adicionales'!C19","v":"Cincel puntero TE-H28P SM50 Wave MP4"},{"$f":"'Productos adicionales'!D19","v":"Puntero"},{"$f":"'Productos adicionales'!E19","v":"50cm"},{"$f":"'Productos adicionales'!F19","v":"H28"},{"$f":"'Productos adicionales'!G19","v":4},{"$f":"'Productos adicionales'!H19","v":0},"",null,null,""," "]
[{"$error":"#REF!"},{"$f":"'Productos adicionales'!B20","v":417828},{"$f":"'Productos adicionales'!C20","v":"Cincel espátula TE-H28P SPM 8/40"},{"$f":"'Productos adicionales'!D20","v":"Puntero"},{"$f":"'Productos adicionales'!E20","v":"40cm"},{"$f":"'Productos adicionales'!F20","v":"H28"},{"$f":"'Productos adicionales'!G20","v":1},{"$f":"'Productos adicionales'!H20","v":0},"",null,null,""," "]
[{"$error":"#REF!"},{"$f":"'Productos adicionales'!B21","v":2017604},{"$f":"'Productos adicionales'!C21","v":"Cincel espátula TE-H28P SPMA 125/38"},{"$f":"'Productos adicionales'!D21","v":"Espátula"},{"$f":"'Productos adicionales'!E21","v":"38cm"},{"$f":"'Productos adicionales'!F21","v":"H28"},{"$f":"'Productos adicionales'!G21","v":1},{"$f":"'Productos adicionales'!H21","v":0},"",null,null,""," "]
[{"$error":"#REF!"},{"$f":"'Productos adicionales'!#REF!","v":{"$error":"#REF!"}},{"$f":"'Productos adicionales'!#REF!","v":{"$error":"#REF!"}},{"$f":"'Productos adicionales'!#REF!","v":{"$error":"#REF!"}},{"$f":"'Productos adicionales'!#REF!","v":{"$error":"#REF!"}},{"$f":"'Productos adicionales'!#REF!","v":{"$error":"#REF!"}},{"$f":"'Productos adicionales'!#REF!","v":{"$error":"#REF!"}},{"$f":"'Productos adicionales'!#REF!","v":{"$error":"#REF!"}},{"$error":"#REF!"},null,null,""," "]
[{"$error":"#REF!"},{"$f":"'Productos adicionales'!#REF!","v":{"$error":"#REF!"}},{"$f":"'Productos adicionales'!#REF!","v":{"$error":"#REF!"}},{"$f":"'Productos adicionales'!#REF!","v":{"$error":"#REF!"}},{"$f":"'Productos adicionales'!#REF!","v":{"$error":"#REF!"}},{"$f":"'Productos adicionales'!#REF!","v":{"$error":"#REF!"}},{"$f":"'Productos adicionales'!#REF!","v":{"$error":"#REF!"}},{"$f":"'Productos adicionales'!#REF!","v":{"$error":"#REF!"}},{"$error":"#REF!"},null,null,""," "]
[{"$error":"#REF!"},{"$f":"'Productos adicionales'!B22","v":"2168874"},{"$f":"'Productos adicionales'!C22","v":"Cincel TE-SPX FM 36 cincel plano"},{"$f":"'Productos adicionales'!D22","v":"Plano"},{"$f":"'Productos adicionales'!E22","v":"36cm"},{"$f":"'Productos adicionales'!F22","v":"S"},{"$f":"'Productos adicionales'!G22","v":1},{"$f":"'Productos adicionales'!H22","v":0},"",null,null,""," "]
[{"$error":"#REF!"},{"$f":"'Productos adicionales'!B23","v":2168875},{"$f":"'Productos adicionales'!C23","v":"Cincel plano TE-SPX FM 43"},{"$f":"'Productos adicionales'!D23","v":"Plano"},{"$f":"'Productos adicionales'!E23","v":"43cm"},{"$f":"'Productos adicionales'!F23","v":"S"},{"$f":"'Productos adicionales'!G23","v":1},{"$f":"'Productos adicionales'!H23","v":0},"",null,null,""," "]
[{"$error":"#REF!"},{"$f":"'Productos adicionales'!B24","v":2168876},{"$f":"'Productos adicionales'!C24","v":"Cincel TE-SPX FM 50 cincel plano"},{"$f":"'Productos adicionales'!D24","v":"Plano"},{"$f":"'Productos adicionales'!E24","v":"50cm"},{"$f":"'Productos adicionales'!F24","v":"S"},{"$f":"'Productos adicionales'!G24","v":1},{"$f":"'Productos adicionales'!H24","v":0},"",null,null,""," "]
[{"$error":"#REF!"},{"$f":"'Productos adicionales'!B25","v":2168877},{"$f":"'Productos adicionales'!C25","v":"Cincel TE-SPX FM 70 cincel plano"},{"$f":"'Productos adicionales'!D25","v":"Plano"},{"$f":"'Productos adicionales'!E25","v":"70cm"},{"$f":"'Productos adicionales'!F25","v":"S"},{"$f":"'Productos adicionales'!G25","v":1},{"$f":"'Productos adicionales'!H25","v":0},"",null,null,""," "]
[{"$error":"#REF!"},{"$f":"'Productos adicionales'!B26","v":"2168870"},{"$f":"'Productos adicionales'!C26","v":"Cincel TE-SPX SM 36 cincel puntero"},{"$f":"'Productos adicionales'!D26","v":"Puntero"},{"$f":"'Productos adicionales'!E26","v":"36cm"},{"$f":"'Productos adicionales'!F26","v":"S"},{"$f":"'Productos adicionales'!G26","v":1},{"$f":"'Productos adicionales'!H26","v":0},"",null,null,""," "]
[{"$error":"#REF!"},{"$f":"'Productos adicionales'!B27","v":2168871},{"$f":"'Productos adicionales'!C27","v":"Cincel puntero TE-SPX SM 43"},{"$f":"'Productos adicionales'!D27","v":"Puntero"},{"$f":"'Productos adicionales'!E27","v":"43cm"},{"$f":"'Productos adicionales'!F27","v":"S"},{"$f":"'Productos adicionales'!G27","v":1},{"$f":"'Productos adicionales'!H27","v":0},"",null,null,""," "]
[{"$error":"#REF!"},{"$f":"'Productos adicionales'!B28","v":"2168872"},{"$f":"'Productos adicionales'!C28","v":"Cincel TE-SPX SM 50 cincel puntero"},{"$f":"'Productos adicionales'!D28","v":"Puntero"},{"$f":"'Productos adicionales'!E28","v":"50cm"},{"$f":"'Productos adicionales'!F28","v":"S"},{"$f":"'Productos adicionales'!G28","v":1},{"$f":"'Productos adicionales'!H28","v":0},"",null,null,""," "]
[{"$error":"#REF!"},{"$f":"'Productos adicionales'!B29","v":"2168873"},{"$f":"'Productos adicionales'!C29","v":"Cincel TE-SPX SM 70 cincel puntero"},{"$f":"'Productos adicionales'!D29","v":"Puntero"},{"$f":"'Productos adicionales'!E29","v":"70cm"},{"$f":"'Productos adicionales'!F29","v":"S"},{"$f":"'Productos adicionales'!G29","v":1},{"$f":"'Productos adicionales'!H29","v":0},"",null,null,""," "]
[{"$error":"#REF!"},{"$f":"'Productos adicionales'!B30","v":"2065559"},{"$f":"'Productos adicionales'!C30","v":"Cincel puntero TE SP SM 36 MP4"},{"$f":"'Productos adicionales'!D30","v":"Puntero"},{"$f":"'Productos adicionales'!E30","v":"36cm"},{"$f":"'Productos adicionales'!F30","v":"S"},{"$f":"'Productos adicionales'!G30","v":4},{"$f":"'Productos adicionales'!H30","v":0},"",null,null,""," "]
[{"$error":"#REF!"},{"$f":"'Productos adicionales'!B31","v":2168888},{"$f":"'Productos adicionales'!C31","v":"Cincel puntero TE-SPX SM 43 MP4"},{"$f":"'Productos adicionales'!D31","v":"Puntero"},{"$f":"'Productos adicionales'!E31","v":"43cm"},{"$f":"'Productos adicionales'!F31","v":"S"},{"$f":"'Productos adicionales'!G31","v":4},{"$f":"'Productos adicionales'!H31","v":0},"",null,null,""," "]
[{"$error":"#REF!"},{"$f":"'Productos adicionales'!B32","v":"2168889"},{"$f":"'Productos adicionales'!C32","v":"Cincel TE-SPX SM 50 MP4 cincel puntero"},{"$f":"'Productos adicionales'!D32","v":"Puntero"},{"$f":"'Productos adicionales'!E32","v":"50cm"},{"$f":"'Productos adicionales'!F32","v":"S"},{"$f":"'Productos adicionales'!G32","v":4},{"$f":"'Productos adicionales'!H32","v":0},"",null,null,""," "]
[{"$error":"#REF!"},{"$f":"'Productos adicionales'!B33","v":"2168890"},{"$f":"'Productos adicionales'!C33","v":"Cincel TE-SPX FM 36 MP4"},{"$f":"'Productos adicionales'!D33","v":"Plano"},{"$f":"'Productos adicionales'!E33","v":"36cm"},{"$f":"'Productos adicionales'!F33","v":"S"},{"$f":"'Productos adicionales'!G33","v":4},{"$f":"'Productos adicionales'!H33","v":0},"",null,null,""," "]
[{"$error":"#REF!"},{"$f":"'Productos adicionales'!B34","v":2168878},{"$f":"'Productos adicionales'!C34","v":"Cincel TE-SPX SPM 5/36 cincel espátula"},{"$f":"'Productos adicionales'!D34","v":"Espatula"},{"$f":"'Productos adicionales'!E34","v":"36cm"},{"$f":"'Productos adicionales'!F34","v":"S"},{"$f":"'Productos adicionales'!G34","v":1},{"$f":"'Productos adicionales'!H34","v":0},"",null,null,""," "]
[{"$error":"#REF!"},{"$f":"'Productos adicionales'!B35","v":2168885},{"$f":"'Productos adicionales'!C35","v":"Cincel TE-SPX SPM 8/50 cincel espátula"},{"$f":"'Productos adicionales'!D35","v":"Espatula"},{"$f":"'Productos adicionales'!E35","v":"50cm"},{"$f":"'Productos adicionales'!F35","v":"S"},{"$f":"'Productos adicionales'!G35","v":1},{"$f":"'Productos adicionales'!H35","v":0},"",null,null,""," "]
[{"$error":"#REF!"},{"$f":"'Productos adicionales'!B36","v":2168886},{"$f":"'Productos adicionales'!C36","v":"Cincel TE-SPX SPM 12/50 cincel espátula"},{"$f":"'Productos adicionales'!D36","v":"Espatula"},{"$f":"'Productos adicionales'!E36","v":"50cm"},{"$f":"'Productos adicionales'!F36","v":"S"},{"$f":"'Productos adicionales'!G36","v":1},{"$f":"'Productos adicionales'!H36","v":0},"",null,null,"",{"$f":"IFERROR(OFFSET($B$1,SMALL(L:L,$A289 )-1,0),\"\")&\" \"&IFERROR(OFFSET($I$1,SMALL(L:L,$A289 )-1,0),\"\")","v":" "}]
[{"$error":"#REF!"},{"$f":"'Productos adicionales'!B37","v":2168894},{"$f":"'Productos adicionales'!C37","v":"Cincel TE-SPX SM-FM 36 juego"},{"$f":"'Productos adicionales'!D37","v":"Plano"},{"$f":"'Productos adicionales'!E37","v":"36cm"},{"$f":"'Productos adicionales'!F37","v":"S"},{"$f":"'Productos adicionales'!G37","v":1},{"$f":"'Productos adicionales'!H37","v":0},"",null,null,""," "]
[{"$error":"#REF!"},{"$f":"'Productos adicionales'!B38","v":2168895},{"$f":"'Productos adicionales'!C38","v":"Cincel TE-SPX SM-FM 50 juego"},{"$f":"'Productos adicionales'!D38","v":"Plano"},{"$f":"'Productos adicionales'!E38","v":"50cm"},{"$f":"'Productos adicionales'!F38","v":"S"},{"$f":"'Productos adicionales'!G38","v":1},{"$f":"'Productos adicionales'!H38","v":0},"",null,null,""," "]
[{"$error":"#REF!"},{"$f":"'Productos adicionales'!B39","v":1829},{"$f":"'Productos adicionales'!C39","v":"Cabeza de bujarda TP-SKHM 40"},{"$f":"'Productos adicionales'!D39","v":"Bujarda"},{"$f":"'Productos adicionales'!E39","v":"40cm"},{"$f":"'Productos adicionales'!F39","v":"S"},{"$f":"'Productos adicionales'!G39","v":1},{"$f":"'Productos adicionales'!H39","v":0},"",null,null,""," "]
[{"$error":"#REF!"},{"$f":"'Productos adicionales'!B40","v":312056},{"$f":"'Productos adicionales'!C40","v":"Porta varilla TE-S-RD 5/8\""},{"$f":"'Productos adicionales'!D40","v":0},{"$f":"'Productos adicionales'!E40","v":0},{"$f":"'Productos adicionales'!F40","v":"S"},{"$f":"'Productos adicionales'!G40","v":1},{"$f":"'Productos adicionales'!H40","v":0},"",null,null,""," "]
[{"$error":"#REF!"},{"$f":"'Productos adicionales'!B41","v":312057},{"$f":"'Productos adicionales'!C41","v":"Porta varilla TE-S-RD 3/4\""},{"$f":"'Productos adicionales'!D41","v":0},{"$f":"'Productos adicionales'!E41","v":0},{"$f":"'Productos adicionales'!F41","v":"S"},{"$f":"'Productos adicionales'!G41","v":1},{"$f":"'Productos adicionales'!H41","v":0},"",null,null,""," "]
[{"$error":"#REF!"},{"$f":"'Productos adicionales'!B43","v":"Brocas encastre SDS-MAX (Y)"},{"$f":"'Productos adicionales'!C43","v":0},{"$f":"'Productos adicionales'!D43","v":0},{"$f":"'Productos adicionales'!E43","v":0},{"$f":"'Productos adicionales'!F43","v":0},{"$f":"'Productos adicionales'!G43","v":0},{"$f":"'Productos adicionales'!H43","v":0},"",null,null,""," "]
[{"$error":"#REF!"},{"$f":"'Productos adicionales'!B44","v":"Ítem #"},{"$f":"'Productos adicionales'!C44","v":"Descripción"},{"$f":"'Productos adicionales'!D44","v":"Diámetro"},{"$f":"'Productos adicionales'!E44","v":"Longitud utilizable"},{"$f":"'Productos adicionales'!F44","v":"Denomicacion"},{"$f":"'Productos adicionales'!G44","v":"Tamaño embalaje"},{"$f":"'Productos adicionales'!H44","v":"Cantidad a ordenar"},{"$error":"#VALUE!"},null,null,""," "]
[{"$error":"#REF!"},{"$f":"'Productos adicionales'!B45","v":206509},{"$f":"'Productos adicionales'!C45","v":"Broca para taladro TE-YX 1/2\"-14\""},{"$f":"'Productos adicionales'!D45","v":"1/2\""},{"$f":"'Productos adicionales'!E45","v":"14\""},{"$f":"'Productos adicionales'!F45","v":"4 gavilanes"},{"$f":"'Productos adicionales'!G45","v":1},{"$f":"'Productos adicionales'!H45","v":0},"",null,null,""," "]
[{"$error":"#REF!"},{"$f":"'Productos adicionales'!B46","v":206510},{"$f":"'Productos adicionales'!C46","v":"Broca para taladro TE-YX 1/2\"-22\""},{"$f":"'Productos adicionales'!D46","v":"1/2\""},{"$f":"'Productos adicionales'!E46","v":"22\""},{"$f":"'Productos adicionales'!F46","v":"4 gavilanes"},{"$f":"'Productos adicionales'!G46","v":1},{"$f":"'Productos adicionales'!H46","v":0},"",null,null,""," "]
[{"$error":"#REF!"},{"$f":"'Productos adicionales'!B47","v":206511},{"$f":"'Productos adicionales'!C47","v":"Broca para taladro TE-YX 9/16\"-14\""},{"$f":"'Productos adicionales'!D47","v":"9/16\""},{"$f":"'Productos adicionales'!E47","v":"14\""},{"$f":"'Productos adicionales'!F47","v":"4 gavilanes"},{"$f":"'Productos adicionales'!G47","v":1},{"$f":"'Productos adicionales'!H47","v":0},"",null,null,""," "]
[{"$error":"#REF!"},{"$f":"'Productos adicionales'!B48","v":206512},{"$f":"'Productos adicionales'!C48","v":"Broca para taladro TE-YX 9/16\"-22\""},{"$f":"'Productos adicionales'!D48","v":"9/16\""},{"$f":"'Productos adicionales'!E48","v":"22\""},{"$f":"'Productos adicionales'!F48","v":"4 gavilanes"},{"$f":"'Productos adicionales'!G48","v":1},{"$f":"'Productos adicionales'!H48","v":0},"",null,null,""," "]
[{"$error":"#REF!"},{"$f":"'Productos adicionales'!B49","v":206513},{"$f":"'Productos adicionales'!C49","v":"Broca para taladro TE-YX 5/8\"-14\""},{"$f":"'Productos adicionales'!D49","v":"5/8\""},{"$f":"'Productos adicionales'!E49","v":"14\""},{"$f":"'Productos adicionales'!F49","v":"4 gavilanes"},{"$f":"'Productos adicionales'!G49","v":1},{"$f":"'Productos adicionales'!H49","v":0},{"$f":"IF(CEILING(H301,G301)=0,\"\",CEILING(H301,G301))","v":""},null,null,""," "]
[{"$error":"#REF!"},{"$f":"'Productos adicionales'!B50","v":206514},{"$f":"'Productos adicionales'!C50","v":"Broca para taladro TE-YX 5/8\"-22\""},{"$f":"'Productos adicionales'!D50","v":"5/8\""},{"$f":"'Productos adicionales'!E50","v":"22\""},{"$f":"'Productos adicionales'!F50","v":"4 gavilanes"},{"$f":"'Productos adicionales'!G50","v":1},{"$f":"'Productos adicionales'!H50","v":0},"",null,null,""," "]
[{"$error":"#REF!"},{"$f":"'Productos adicionales'!B51","v":206515},{"$f":"'Productos adicionales'!C51","v":"Broca para taladro TE-YX 5/8\"-36\""},{"$f":"'Productos adicionales'!D51","v":"5/8\""},{"$f":"'Productos adicionales'!E51","v":"36\""},{"$f":"'Productos adicionales'!F51","v":"4 gavilanes"},{"$f":"'Productos adicionales'!G51","v":1},{"$f":"'Productos adicionales'!H51","v":0},"",null,null,""," "]
[{"$error":"#REF!"},{"$f":"'Productos adicionales'!B52","v":2165747},{"$f":"'Productos adicionales'!C52","v":"Broca para taladro TE-YX 11/16\"-13\""},{"$f":"'Productos adicionales'!D52","v":"11/16\""},{"$f":"'Productos adicionales'!E52","v":"13\""},{"$f":"'Productos adicionales'!F52","v":"4 gavilanes"},{"$f":"'Productos adicionales'!G52","v":1},{"$f":"'Productos adicionales'!H52","v":0},"",null,null,""," "]
[{"$error":"#REF!"},{"$f":"'Productos adicionales'!#REF!","v":{"$error":"#REF!"}},{"$f":"'Productos adicionales'!#REF!","v":{"$error":"#REF!"}},{"$f":"'Productos adicionales'!#REF!","v":{"$error":"#REF!"}},{"$f":"'Productos adicionales'!#REF!","v":{"$error":"#REF!"}},{"$f":"'Productos adicionales'!#REF!","v":{"$error":"#REF!"}},{"$f":"'Productos adicionales'!#REF!","v":{"$error":"#REF!"}},{"$f":"'Productos adicionales'!#REF!","v":{"$error":"#REF!"}},{"$error":"#REF!"},null,null,""," "]
[{"$error":"#REF!"},{"$f":"'Productos adicionales'!B53","v":2165748},{"$f":"'Productos adicionales'!C53","v":"Broca para taladro TE-YX 11/16\"-21\""},{"$f":"'Productos adicionales'!D53","v":"11/16\""},{"$f":"'Productos adicionales'!E53","v":"21\""},{"$f":"'Productos adicionales'!F53","v":"4 gavilanes"},{"$f":"'Productos adicionales'!G53","v":1},{"$f":"'Productos adicionales'!H53","v":0},"",null,null,""," "]
[{"$error":"#REF!"},{"$f":"'Productos adicionales'!#REF!","v":{"$error":"#REF!"}},{"$f":"'Productos adicionales'!#REF!","v":{"$error":"#REF!"}},{"$f":"'Productos adicionales'!#REF!","v":{"$error":"#REF!"}},{"$f":"'Productos adicionales'!#REF!","v":{"$error":"#REF!"}},{"$f":"'Productos adicionales'!#REF!","v":{"$error":"#REF!"}},{"$f":"'Productos adicionales'!#REF!","v":{"$error":"#REF!"}},{"$f":"'Productos adicionales'!#REF!","v":{"$error":"#REF!"}},{"$error":"#REF!"},null,null,""," "]
[{"$error":"#REF!"},{"$f":"'Productos adicionales'!B54","v":2165749},{"$f":"'Productos adicionales'!C54","v":"Broca para taladro TE-YX 3/4\"-13\""},{"$f":"'Productos adicionales'!D54","v":"3/4\""},{"$f":"'Productos adicionales'!E54","v":"13\""},{"$f":"'Productos adicionales'!F54","v":"4 gavilanes"},{"$f":"'Productos adicionales'!G54","v":1},{"$f":"'Productos adicionales'!H54","v":0},"",null,null,""," "]
[{"$error":"#REF!"},{"$f":"'Productos adicionales'!#REF!","v":{"$error":"#REF!"}},{"$f":"'Productos adicionales'!#REF!","v":{"$error":"#REF!"}},{"$f":"'Productos adicionales'!#REF!","v":{"$error":"#REF!"}},{"$f":"'Productos adicionales'!#REF!","v":{"$error":"#REF!"}},{"$f":"'Productos adicionales'!#REF!","v":{"$error":"#REF!"}},{"$f":"'Productos adicionales'!#REF!","v":{"$error":"#REF!"}},{"$f":"'Productos adicionales'!#REF!","v":{"$error":"#REF!"}},{"$error":"#REF!"},null,null,""," "]
[{"$error":"#REF!"},{"$f":"'Productos adicionales'!B55","v":2165900},{"$f":"'Productos adicionales'!C55","v":"Broca para taladro TE-YX 3/4\"-21\""},{"$f":"'Productos adicionales'!D55","v":"3/4\""},{"$f":"'Productos adicionales'!E55","v":"21\""},{"$f":"'Productos adicionales'!F55","v":"4 gavilanes"},{"$f":"'Productos adicionales'!G55","v":1},{"$f":"'Productos adicionales'!H55","v":0},"",null,null,""," "]
[{"$error":"#REF!"},{"$f":"'Productos adicionales'!#REF!","v":{"$error":"#REF!"}},{"$f":"'Productos adicionales'!#REF!","v":{"$error":"#REF!"}},{"$f":"'Productos adicionales'!#REF!","v":{"$error":"#REF!"}},{"$f":"'Productos adicionales'!#REF!","v":{"$error":"#REF!"}},{"$f":"'Productos adicionales'!#REF!","v":{"$error":"#REF!"}},{"$f":"'Productos adicionales'!#REF!","v":{"$error":"#REF!"}},{"$f":"'Productos adicionales'!#REF!","v":{"$error":"#REF!"}},{"$error":"#REF!"},null,null,{"$f":"IF(ISNUMBER(I311),IF($I311 <> \"\",ROW(),\"\"),\"\")","v":""}," "]
[{"$error":"#REF!"},{"$f":"'Productos adicionales'!B56","v":293474},{"$f":"'Productos adicionales'!C56","v":"Broca para taladro TE-YX 3/4\"-36\""},{"$f":"'Productos adicionales'!D56","v":"3/4\""},{"$f":"'Productos adicionales'!E56","v":"36\""},{"$f":"'Productos adicionales'!F56","v":"4 gavilanes"},{"$f":"'Productos adicionales'!G56","v":1},{"$f":"'Productos adicionales'!H56","v":0},"",null,null,""," "]
[{"$error":"#REF!"},{"$f":"'Productos adicionales'!B57","v":2165902},{"$f":"'Productos adicionales'!C57","v":"Broca para taladro TE-YX 13/16\"-21\""},{"$f":"'Productos adicionales'!D57","v":"13/16\""},{"$f":"'Productos adicionales'!E57","v":"21\""},{"$f":"'Productos adicionales'!F57","v":"4 gavilanes"},{"$f":"'Productos adicionales'!G57","v":1},{"$f":"'Productos adicionales'!H57","v":0},"",null,null,""," "]
[{"$error":"#REF!"},{"$f":"'Productos adicionales'!B58","v":2165903},{"$f":"'Productos adicionales'!C58","v":"Broca para taladro TE-YX 27/32\"-13\""},{"$f":"'Productos adicionales'!D58","v":"27/32\""},{"$f":"'Productos adicionales'!E58","v":"13\""},{"$f":"'Productos adicionales'!F58","v":"4 gavilanes"},{"$f":"'Productos adicionales'!G58","v":1},{"$f":"'Productos adicionales'!H58","v":0},"",null,null,""," "]
[{"$f":"A314+1","v":{"$error":"#REF!"}},{"$f":"'Productos adicionales'!B59","v":2165904},{"$f":"'Productos adicionales'!C59","v":"Broca para taladro TE-YX 27/32\"-21\""},{"$f":"'Productos adicionales'!D59","v":"27/32\""},{"$f":"'Productos adicionales'!E59","v":"21\""},{"$f":"'Productos adicionales'!F59","v":"4 gavilanes"},{"$f":"'Productos adicionales'!G59","v":1},{"$f":"'Productos adicionales'!H59","v":0},"",null,null,""," "]
[{"$error":"#REF!"},{"$f":"'Productos adicionales'!B60","v":2165905},{"$f":"'Productos adicionales'!C60","v":"Broca para taladro TE-YX 7/8\"-13\""},{"$f":"'Productos adicionales'!D60","v":"7/8\""},{"$f":"'Productos adicionales'!E60","v":"13\""},{"$f":"'Productos adicionales'!F60","v":"4 gavilanes"},{"$f":"'Productos adicionales'!G60","v":1},{"$f":"'Productos adicionales'!H60","v":0},"",null,null,""," "]
[{"$error":"#REF!"},{"$f":"'Productos adicionales'!#REF!","v":{"$error":"#REF!"}},{"$f":"'Productos adicionales'!#REF!","v":{"$error":"#REF!"}},{"$f":"'Productos adicionales'!#REF!","v":{"$error":"#REF!"}},{"$f":"'Productos adicionales'!#REF!","v":{"$error":"#REF!"}},{"$f":"'Productos adicionales'!#REF!","v":{"$error":"#REF!"}},{"$f":"'Productos adicionales'!#REF!","v":{"$error":"#REF!"}},{"$f":"'Productos adicionales'!#REF!","v":{"$error":"#REF!"}},{"$error":"#REF!"},null,null,""," "]
[{"$error":"#REF!"},{"$f":"'Productos adicionales'!B61","v":2165906},{"$f":"'Productos adicionales'!C61","v":"Broca para taladro TE-YX 7/8\"-21\""},{"$f":"'Productos adicionales'!D61","v":"7/8\""},{"$f":"'Productos adicionales'!E61","v":"21\""},{"$f":"'Productos adicionales'!F61","v":"4 gavilanes"},{"$f":"'Productos adicionales'!G61","v":1},{"$f":"'Productos adicionales'!H61","v":0},"",null,null,""," "]
[{"$error":"#REF!"},{"$f":"'Productos adicionales'!#REF!","v":{"$error":"#REF!"}},{"$f":"'Productos adicionales'!#REF!","v":{"$error":"#REF!"}},{"$f":"'Productos adicionales'!#REF!","v":{"$error":"#REF!"}},{"$f":"'Productos adicionales'!#REF!","v":{"$error":"#REF!"}},{"$f":"'Productos adicionales'!#REF!","v":{"$error":"#REF!"}},{"$f":"'Productos adicionales'!#REF!","v":{"$error":"#REF!"}},{"$f":"'Productos adicionales'!#REF!","v":{"$error":"#REF!"}},{"$error":"#REF!"},null,null,""," "]
[{"$error":"#REF!"},{"$f":"'Productos adicionales'!B62","v":293480},{"$f":"'Productos adicionales'!C62","v":"Broca para taladro TE-YX 7/8\"-36\""},{"$f":"'Productos adicionales'!D62","v":"7/8\""},{"$f":"'Productos adicionales'!E62","v":"36\""},{"$f":"'Productos adicionales'!F62","v":"4 gavilanes"},{"$f":"'Productos adicionales'!G62","v":1},{"$f":"'Productos adicionales'!H62","v":0},"",null,null,""," "]
[{"$error":"#REF!"},{"$f":"'Productos adicionales'!B64","v":2165909},{"$f":"'Productos adicionales'!C64","v":"Broca para taladro TE-YX 26/52 1\"-21\""},{"$f":"'Productos adicionales'!D64","v":"1\""},{"$f":"'Productos adicionales'!E64","v":"21\""},{"$f":"'Productos adicionales'!F64","v":"4 gavilanes"},{"$f":"'Productos adicionales'!G64","v":1},{"$f":"'Productos adicionales'!H64","v":0},"",null,null,"",{"$f":"IFERROR(OFFSET($B$1,SMALL(L:L,$A321 )-1,0),\"\")&\" \"&IFERROR(OFFSET($I$1,SMALL(L:L,$A321 )-1,0),\"\")","v":" "}]
[{"$error":"#REF!"},{"$f":"'Productos adicionales'!#REF!","v":{"$error":"#REF!"}},{"$f":"'Productos adicionales'!#REF!","v":{"$error":"#REF!"}},{"$f":"'Productos adicionales'!#REF!","v":{"$error":"#REF!"}},{"$f":"'Productos adicionales'!#REF!","v":{"$error":"#REF!"}},{"$f":"'Productos adicionales'!#REF!","v":{"$error":"#REF!"}},{"$f":"'Productos adicionales'!#REF!","v":{"$error":"#REF!"}},{"$f":"'Productos adicionales'!#REF!","v":{"$error":"#REF!"}},{"$error":"#REF!"},null,null,""," "]
[{"$error":"#REF!"},{"$f":"'Productos adicionales'!B65","v":292918},{"$f":"'Productos adicionales'!C65","v":"Broca para taladro TE-YX 1\"-36\""},{"$f":"'Productos adicionales'!D65","v":"1\""},{"$f":"'Productos adicionales'!E65","v":"36\""},{"$f":"'Productos adicionales'!F65","v":"4 gavilanes"},{"$f":"'Productos adicionales'!G65","v":1},{"$f":"'Productos adicionales'!H65","v":0},"",null,null,""," "]
[{"$error":"#REF!"},{"$f":"'Productos adicionales'!B66","v":2165911},{"$f":"'Productos adicionales'!C66","v":"Broca para taladro TE-YX 1 1/16\"-21\""},{"$f":"'Productos adicionales'!D66","v":"1 1/16\""},{"$f":"'Productos adicionales'!E66","v":"21\""},{"$f":"'Productos adicionales'!F66","v":"4 gavilanes"},{"$f":"'Productos adicionales'!G66","v":1},{"$f":"'Productos adicionales'!H66","v":0},"",null,null,""," "]
[{"$error":"#REF!"},{"$f":"'Productos adicionales'!B67","v":2165912},{"$f":"'Productos adicionales'!C67","v":"Broca para taladro TE-YX 1 1/8\"-13\""},{"$f":"'Productos adicionales'!D67","v":"1 1/8\""},{"$f":"'Productos adicionales'!E67","v":"13\""},{"$f":"'Productos adicionales'!F67","v":"4 gavilanes"},{"$f":"'Productos adicionales'!G67","v":1},{"$f":"'Productos adicionales'!H67","v":0},"",null,null,""," "]
[{"$error":"#REF!"},{"$f":"'Productos adicionales'!#REF!","v":{"$error":"#REF!"}},{"$f":"'Productos adicionales'!#REF!","v":{"$error":"#REF!"}},{"$f":"'Productos adicionales'!#REF!","v":{"$error":"#REF!"}},{"$f":"'Productos adicionales'!#REF!","v":{"$error":"#REF!"}},{"$f":"'Productos adicionales'!#REF!","v":{"$error":"#REF!"}},{"$f":"'Productos adicionales'!#REF!","v":{"$error":"#REF!"}},{"$f":"'Productos adicionales'!#REF!","v":{"$error":"#REF!"}},{"$error":"#REF!"},null,null,""," "]
[{"$error":"#REF!"},{"$f":"'Productos adicionales'!B68","v":2165913},{"$f":"'Productos adicionales'!C68","v":"Broca para taladro TE-YX 1 1/8\"-21\""},{"$f":"'Productos adicionales'!D68","v":"1 1/8\""},{"$f":"'Productos adicionales'!E68","v":"21\""},{"$f":"'Productos adicionales'!F68","v":"4 gavilanes"},{"$f":"'Productos adicionales'!G68","v":1},{"$f":"'Productos adicionales'!H68","v":0},"",null,null,""," "]
[{"$error":"#REF!"},{"$f":"'Productos adicionales'!#REF!","v":{"$error":"#REF!"}},{"$f":"'Productos adicionales'!#REF!","v":{"$error":"#REF!"}},{"$f":"'Productos adicionales'!#REF!","v":{"$error":"#REF!"}},{"$f":"'Productos adicionales'!#REF!","v":{"$error":"#REF!"}},{"$f":"'Productos adicionales'!#REF!","v":{"$error":"#REF!"}},{"$f":"'Productos adicionales'!#REF!","v":{"$error":"#REF!"}},{"$f":"'Productos adicionales'!#REF!","v":{"$error":"#REF!"}},{"$error":"#REF!"},null,null,""," "]
[{"$error":"#REF!"},{"$f":"'Productos adicionales'!B69","v":292981},{"$f":"'Productos adicionales'!C69","v":"Broca para taladro TE-YX 1 1/8\"-36\""},{"$f":"'Productos adicionales'!D69","v":"1 1/8\""},{"$f":"'Productos adicionales'!E69","v":"36\""},{"$f":"'Productos adicionales'!F69","v":"4 gavilanes"},{"$f":"'Productos adicionales'!G69","v":1},{"$f":"'Productos adicionales'!H69","v":0},"",null,null,""," "]
[{"$error":"#REF!"},{"$f":"'Productos adicionales'!B70","v":2165915},{"$f":"'Productos adicionales'!C70","v":"Broca para taladro TE-YX 1 1/4\"-15\""},{"$f":"'Productos adicionales'!D70","v":"1 1/4\""},{"$f":"'Productos adicionales'!E70","v":"15\""},{"$f":"'Productos adicionales'!F70","v":"4 gavilanes"},{"$f":"'Productos adicionales'!G70","v":1},{"$f":"'Productos adicionales'!H70","v":0},"",null,null,""," "]
[{"$error":"#REF!"},{"$f":"'Productos adicionales'!#REF!","v":{"$error":"#REF!"}},{"$f":"'Productos adicionales'!#REF!","v":{"$error":"#REF!"}},{"$f":"'Productos adicionales'!#REF!","v":{"$error":"#REF!"}},{"$f":"'Productos adicionales'!#REF!","v":{"$error":"#REF!"}},{"$f":"'Productos adicionales'!#REF!","v":{"$error":"#REF!"}},{"$f":"'Productos adicionales'!#REF!","v":{"$error":"#REF!"}},{"$f":"'Productos adicionales'!#REF!","v":{"$error":"#REF!"}},{"$error":"#REF!"},null,null,""," "]
[{"$error":"#REF!"},{"$f":"'Productos adicionales'!B71","v":2165916},{"$f":"'Productos adicionales'!C71","v":"Broca para taladro TE-YX 1 1/4\"-23\""},{"$f":"'Productos adicionales'!D71","v":"1 1/4\""},{"$f":"'Productos adicionales'!E71","v":"23\""},{"$f":"'Productos adicionales'!F71","v":"4 gavilanes"},{"$f":"'Productos adicionales'!G71","v":1},{"$f":"'Productos adicionales'!H71","v":0},"",null,null,""," "]
[{"$error":"#REF!"},{"$f":"'Productos adicionales'!#REF!","v":{"$error":"#REF!"}},{"$f":"'Productos adicionales'!#REF!","v":{"$error":"#REF!"}},{"$f":"'Productos adicionales'!#REF!","v":{"$error":"#REF!"}},{"$f":"'Productos adicionales'!#REF!","v":{"$error":"#REF!"}},{"$f":"'Productos adicionales'!#REF!","v":{"$error":"#REF!"}},{"$f":"'Productos adicionales'!#REF!","v":{"$error":"#REF!"}},{"$f":"'Productos adicionales'!#REF!","v":{"$error":"#REF!"}},{"$error":"#REF!"},null,null,""," "]
[{"$error":"#REF!"},{"$f":"'Productos adicionales'!B72","v":293027},{"$f":"'Productos adicionales'!C72","v":"Broca para taladro TE-YX 1 1/4\"-36\""},{"$f":"'Productos adicionales'!D72","v":"1 1/4\""},{"$f":"'Productos adicionales'!E72","v":"36\""},{"$f":"'Productos adicionales'!F72","v":"4 gavilanes"},{"$f":"'Productos adicionales'!G72","v":1},{"$f":"'Productos adicionales'!H72","v":0},"",null,null,""," "]
[{"$error":"#REF!"},{"$f":"'Productos adicionales'!B73","v":2165918},{"$f":"'Productos adicionales'!C73","v":"Broca para taladro TE-YX 1 3/8\"-23\""},{"$f":"'Productos adicionales'!D73","v":"1 3/8\""},{"$f":"'Productos adicionales'!E73","v":"23\""},{"$f":"'Productos adicionales'!F73","v":"4 gavilanes"},{"$f":"'Productos adicionales'!G73","v":1},{"$f":"'Productos adicionales'!H73","v":0},"",null,null,""," "]
[{"$error":"#REF!"},{"$f":"'Productos adicionales'!#REF!","v":{"$error":"#REF!"}},{"$f":"'Productos adicionales'!#REF!","v":{"$error":"#REF!"}},{"$f":"'Productos adicionales'!#REF!","v":{"$error":"#REF!"}},{"$f":"'Productos adicionales'!#REF!","v":{"$error":"#REF!"}},{"$f":"'Productos adicionales'!#REF!","v":{"$error":"#REF!"}},{"$f":"'Productos adicionales'!#REF!","v":{"$error":"#REF!"}},{"$f":"'Productos adicionales'!#REF!","v":{"$error":"#REF!"}},{"$error":"#REF!"},null,null,""," "]
[{"$error":"#REF!"},{"$f":"'Productos adicionales'!B74","v":2165919},{"$f":"'Productos adicionales'!C74","v":"Broca para taladro TE-YX 1 3/8\"-36\""},{"$f":"'Productos adicionales'!D74","v":"1 3/8\""},{"$f":"'Productos adicionales'!E74","v":"36\""},{"$f":"'Productos adicionales'!F74","v":"4 gavilanes"},{"$f":"'Productos adicionales'!G74","v":1},{"$f":"'Productos adicionales'!H74","v":0},"",null,null,""," "]
[{"$error":"#REF!"},{"$f":"'Productos adicionales'!B75","v":2165920},{"$f":"'Productos adicionales'!C75","v":"Broca para taladro TE-YX 1 1/2\"-15\""},{"$f":"'Productos adicionales'!D75","v":"1 1/2\""},{"$f":"'Productos adicionales'!E75","v":"15\""},{"$f":"'Productos adicionales'!F75","v":"4 gavilanes"},{"$f":"'Productos adicionales'!G75","v":1},{"$f":"'Productos adicionales'!H75","v":0},"",null,null,""," "]
[{"$error":"#REF!"},{"$f":"'Productos adicionales'!#REF!","v":{"$error":"#REF!"}},{"$f":"'Productos adicionales'!#REF!","v":{"$error":"#REF!"}},{"$f":"'Productos adicionales'!#REF!","v":{"$error":"#REF!"}},{"$f":"'Productos adicionales'!#REF!","v":{"$error":"#REF!"}},{"$f":"'Productos adicionales'!#REF!","v":{"$error":"#REF!"}},{"$f":"'Productos adicionales'!#REF!","v":{"$error":"#REF!"}},{"$f":"'Productos adicionales'!#REF!","v":{"$error":"#REF!"}},{"$error":"#REF!"},null,null,""," "]
[{"$error":"#REF!"},{"$f":"'Productos adicionales'!B76","v":2165921},{"$f":"'Productos adicionales'!C76","v":"Broca para taladro TE-YX 1 1/2\"-23\""},{"$f":"'Productos adicionales'!D76","v":"1 1/2\""},{"$f":"'Productos adicionales'!E76","v":"23\""},{"$f":"'Productos adicionales'!F76","v":"4 gavilanes"},{"$f":"'Productos adicionales'!G76","v":1},{"$f":"'Productos adicionales'!H76","v":0},"",null,null,""," "]
[{"$error":"#REF!"},{"$f":"'Productos adicionales'!#REF!","v":{"$error":"#REF!"}},{"$f":"'Productos adicionales'!#REF!","v":{"$error":"#REF!"}},{"$f":"'Productos adicionales'!#REF!","v":{"$error":"#REF!"}},{"$f":"'Productos adicionales'!#REF!","v":{"$error":"#REF!"}},{"$f":"'Productos adicionales'!#REF!","v":{"$error":"#REF!"}},{"$f":"'Productos adicionales'!#REF!","v":{"$error":"#REF!"}},{"$f":"'Productos adicionales'!#REF!","v":{"$error":"#REF!"}},{"$error":"#REF!"},null,null,""," "]
[{"$error":"#REF!"},{"$f":"'Productos adicionales'!B78","v":2122290},{"$f":"'Productos adicionales'!C78","v":"Broca para taladro TE-YX 18/32 (Métrica)"},{"$f":"'Productos adicionales'!D78","v":"18mm"},{"$f":"'Productos adicionales'!E78","v":"32cm"},{"$f":"'Productos adicionales'!F78","v":"4 gavilanes"},{"$f":"'Productos adicionales'!G78","v":1},{"$f":"'Productos adicionales'!H78","v":0},"",null,null,""," "]
[{"$error":"#REF!"},{"$f":"'Productos adicionales'!B79","v":2122292},{"$f":"'Productos adicionales'!C79","v":"Broca para taladro TE-YX 18/52 (Métrica)"},{"$f":"'Productos adicionales'!D79","v":"18mm"},{"$f":"'Productos adicionales'!E79","v":"52cm"},{"$f":"'Productos adicionales'!F79","v":"4 gavilanes"},{"$f":"'Productos adicionales'!G79","v":1},{"$f":"'Productos adicionales'!H79","v":0},"",null,null,""," "]
[{"$error":"#REF!"},{"$f":"'Productos adicionales'!B80","v":2122295},{"$f":"'Productos adicionales'!C80","v":"Broca para taladro TE-YX 20/32 (Métrica)"},{"$f":"'Productos adicionales'!D80","v":"20mm"},{"$f":"'Productos adicionales'!E80","v":"32cm"},{"$f":"'Productos adicionales'!F80","v":"4 gavilanes"},{"$f":"'Productos adicionales'!G80","v":1},{"$f":"'Productos adicionales'!H80","v":0},"",null,null,""," "]
[{"$error":"#REF!"},{"$f":"'Productos adicionales'!B81","v":2122302},{"$f":"'Productos adicionales'!C81","v":"Broca para taladro TE-YX 22/52 (Métrica)"},{"$f":"'Productos adicionales'!D81","v":"22mm"},{"$f":"'Productos adicionales'!E81","v":"52cm"},{"$f":"'Productos adicionales'!F81","v":"4 gavilanes"},{"$f":"'Productos adicionales'!G81","v":1},{"$f":"'Productos adicionales'!H81","v":0},"",null,null,""," "]
[{"$error":"#REF!"},{"$f":"'Productos adicionales'!B82","v":2122303},{"$f":"'Productos adicionales'!C82","v":"Broca para taladro TE-YX 22/52 MP4 (Métrica)"},{"$f":"'Productos adicionales'!D82","v":"22mm"},{"$f":"'Productos adicionales'!E82","v":"52cm"},{"$f":"'Productos adicionales'!F82","v":"4 gavilanes"},{"$f":"'Productos adicionales'!G82","v":1},{"$f":"'Productos adicionales'!H82","v":0},"",null,null,""," "]
[{"$error":"#REF!"},{"$f":"'Productos adicionales'!B83","v":427847},{"$f":"'Productos adicionales'!C83","v":"Broca para taladro TE-YX 22/72 (Métrica)"},{"$f":"'Productos adicionales'!D83","v":"22mm"},{"$f":"'Productos adicionales'!E83","v":"72cm"},{"$f":"'Productos adicionales'!F83","v":"4 gavilanes"},{"$f":"'Productos adicionales'!G83","v":1},{"$f":"'Productos adicionales'!H83","v":0},"",null,null,""," "]
[{"$error":"#REF!"},{"$f":"'Productos adicionales'!B84","v":293180},{"$f":"'Productos adicionales'!C84","v":"Broca para taladro TE-YX 22/130 (Métrica)"},{"$f":"'Productos adicionales'!D84","v":"22mm"},{"$f":"'Productos adicionales'!E84","v":"130cm"},{"$f":"'Productos adicionales'!F84","v":"4 gavilanes"},{"$f":"'Productos adicionales'!G84","v":1},{"$f":"'Productos adicionales'!H84","v":0},"",null,null,""," "]
[{"$error":"#REF!"},{"$f":"'Productos adicionales'!B85","v":2122216},{"$f":"'Productos adicionales'!C85","v":"Broca para taladro TE-YX 24/32 (Métrica)"},{"$f":"'Productos adicionales'!D85","v":"24mm"},{"$f":"'Productos adicionales'!E85","v":"32cm"},{"$f":"'Productos adicionales'!F85","v":"4 gavilanes"},{"$f":"'Productos adicionales'!G85","v":1},{"$f":"'Productos adicionales'!H85","v":0},"",null,null,""," "]
[{"$error":"#REF!"},{"$f":"'Productos adicionales'!B86","v":2122218},{"$f":"'Productos adicionales'!C86","v":"Broca para taladro TE-YX 24/52 (Métrica)"},{"$f":"'Productos adicionales'!D86","v":"24mm"},{"$f":"'Productos adicionales'!E86","v":"52cm"},{"$f":"'Productos adicionales'!F86","v":"4 gavilanes"},{"$f":"'Productos adicionales'!G86","v":1},{"$f":"'Productos adicionales'!H86","v":0},"",null,null,""," "]
[{"$error":"#REF!"},{"$f":"'Productos adicionales'!B87","v":2122274},{"$f":"'Productos adicionales'!C87","v":"Broca para taladro TE-YX 25/32 (Métrica)"},{"$f":"'Productos adicionales'!D87","v":"25mm"},{"$f":"'Productos adicionales'!E87","v":"32cm"},{"$f":"'Productos adicionales'!F87","v":"4 gavilanes"},{"$f":"'Productos adicionales'!G87","v":1},{"$f":"'Productos adicionales'!H87","v":0},"",null,null,""," "]
[{"$error":"#REF!"},{"$f":"'Productos adicionales'!B88","v":2122276},{"$f":"'Productos adicionales'!C88","v":"Broca para taladro TE-YX 25/52 (Métrica)"},{"$f":"'Productos adicionales'!D88","v":"25mm"},{"$f":"'Productos adicionales'!E88","v":"52cm"},{"$f":"'Productos adicionales'!F88","v":"4 gavilanes"},{"$f":"'Productos adicionales'!G88","v":1},{"$f":"'Productos adicionales'!H88","v":0},"",null,null,""," "]
[{"$error":"#REF!"},{"$f":"'Productos adicionales'!B89","v":2122287},{"$f":"'Productos adicionales'!C89","v":"Broca para taladro TE-YX 26/32, 1\"- 13\" (Metrica)"},{"$f":"'Productos adicionales'!D89","v":"26mm"},{"$f":"'Productos adicionales'!E89","v":"32cm"},{"$f":"'Productos adicionales'!F89","v":"4 gavilanes"},{"$f":"'Productos adicionales'!G89","v":1},{"$f":"'Productos adicionales'!H89","v":0},"",null,null,"",{"$f":"IFERROR(OFFSET($B$1,SMALL(L:L,$A353 )-1,0),\"\")&\" \"&IFERROR(OFFSET($I$1,SMALL(L:L,$A353 )-1,0),\"\")","v":" "}]
[{"$error":"#REF!"},{"$f":"'Productos adicionales'!#REF!","v":{"$error":"#REF!"}},{"$f":"'Productos adicionales'!#REF!","v":{"$error":"#REF!"}},{"$f":"'Productos adicionales'!#REF!","v":{"$error":"#REF!"}},{"$f":"'Productos adicionales'!#REF!","v":{"$error":"#REF!"}},{"$f":"'Productos adicionales'!#REF!","v":{"$error":"#REF!"}},{"$f":"'Productos adicionales'!#REF!","v":{"$error":"#REF!"}},{"$f":"'Productos adicionales'!#REF!","v":{"$error":"#REF!"}},{"$error":"#REF!"},null,null,""," "]
[{"$error":"#REF!"},{"$f":"'Productos adicionales'!B90","v":2122279},{"$f":"'Productos adicionales'!C90","v":"Broca para taladro TE-YX 28/32 (Métrica)"},{"$f":"'Productos adicionales'!D90","v":"28mm"},{"$f":"'Productos adicionales'!E90","v":"32cm"},{"$f":"'Productos adicionales'!F90","v":"4 gavilanes"},{"$f":"'Productos adicionales'!G90","v":1},{"$f":"'Productos adicionales'!H90","v":0},"",null,null,""," "]
[{"$error":"#REF!"},{"$f":"'Productos adicionales'!B91","v":2122280},{"$f":"'Productos adicionales'!C91","v":"Broca para taladro TE-YX 28/52 (Métrica)"},{"$f":"'Productos adicionales'!D91","v":"28mm"},{"$f":"'Productos adicionales'!E91","v":"52cm"},{"$f":"'Productos adicionales'!F91","v":"4 gavilanes"},{"$f":"'Productos adicionales'!G91","v":1},{"$f":"'Productos adicionales'!H91","v":0},"",null,null,""," "]
[{"$error":"#REF!"},{"$f":"'Productos adicionales'!B92","v":2122283},{"$f":"'Productos adicionales'!C92","v":"Broca para taladro TE-YX 30/57 (Métrica)"},{"$f":"'Productos adicionales'!D92","v":"30mm"},{"$f":"'Productos adicionales'!E92","v":"57cm"},{"$f":"'Productos adicionales'!F92","v":"4 gavilanes"},{"$f":"'Productos adicionales'!G92","v":1},{"$f":"'Productos adicionales'!H92","v":0},"",null,null,""," "]
[{"$error":"#REF!"},{"$f":"'Productos adicionales'!B93","v":2122284},{"$f":"'Productos adicionales'!C93","v":"Broca para taladro TE-YX 32/37 (Métrica)"},{"$f":"'Productos adicionales'!D93","v":"32mm"},{"$f":"'Productos adicionales'!E93","v":"37cm"},{"$f":"'Productos adicionales'!F93","v":"4 gavilanes"},{"$f":"'Productos adicionales'!G93","v":1},{"$f":"'Productos adicionales'!H93","v":0},"",null,null,""," "]
[{"$error":"#REF!"},{"$f":"'Productos adicionales'!B94","v":2120420},{"$f":"'Productos adicionales'!C94","v":"Broca para taladro TE-YX 37/37 (Métrica)"},{"$f":"'Productos adicionales'!D94","v":"37mm"},{"$f":"'Productos adicionales'!E94","v":"37cm"},{"$f":"'Productos adicionales'!F94","v":"4 gavilanes"},{"$f":"'Productos adicionales'!G94","v":1},{"$f":"'Productos adicionales'!H94","v":0},"",null,null,""," "]
[{"$error":"#REF!"},{"$f":"'Productos adicionales'!B95","v":2120421},{"$f":"'Productos adicionales'!C95","v":"Broca para taladro TE-YX 37/57 (Métrica)"},{"$f":"'Productos adicionales'!D95","v":"37mm"},{"$f":"'Productos adicionales'!E95","v":"57cm"},{"$f":"'Productos adicionales'!F95","v":"4 gavilanes"},{"$f":"'Productos adicionales'!G95","v":1},{"$f":"'Productos adicionales'!H95","v":0},"",null,null,""," "]
[{"$error":"#REF!"},{"$f":"'Productos adicionales'!B96","v":2120422},{"$f":"'Productos adicionales'!C96","v":"Broca para taladro TE-YX 37/92 (Métrica)"},{"$f":"'Productos adicionales'!D96","v":"37mm"},{"$f":"'Productos adicionales'!E96","v":"92cm"},{"$f":"'Productos adicionales'!F96","v":"4 gavilanes"},{"$f":"'Productos adicionales'!G96","v":1},{"$f":"'Productos adicionales'!H96","v":0},"",null,null,""," "]
[{"$error":"#REF!"},{"$f":"'Productos adicionales'!B97","v":2120423},{"$f":"'Productos adicionales'!C97","v":"Broca para taladro TE-YX 37/130 (Métrica)"},{"$f":"'Productos adicionales'!D97","v":"37mm"},{"$f":"'Productos adicionales'!E97","v":"130cm"},{"$f":"'Productos adicionales'!F97","v":"4 gavilanes"},{"$f":"'Productos adicionales'!G97","v":1},{"$f":"'Productos adicionales'!H97","v":0},"",null,null,""," "]
[{"$error":"#REF!"},{"$f":"'Productos adicionales'!#REF!","v":{"$error":"#REF!"}},{"$f":"'Productos adicionales'!#REF!","v":{"$error":"#REF!"}},{"$f":"'Productos adicionales'!#REF!","v":{"$error":"#REF!"}},{"$f":"'Productos adicionales'!#REF!","v":{"$error":"#REF!"}},{"$f":"'Productos adicionales'!#REF!","v":{"$error":"#REF!"}},{"$f":"'Productos adicionales'!#REF!","v":{"$error":"#REF!"}},{"$f":"'Productos adicionales'!#REF!","v":{"$error":"#REF!"}},{"$error":"#REF!"},null,null,""," "]
[{"$error":"#REF!"},{"$f":"'Productos adicionales'!B98","v":2120425},{"$f":"'Productos adicionales'!C98","v":"Broca para taladro TE-YX 40/37 1 9/16-15"},{"$f":"'Productos adicionales'!D98","v":"40mm"},{"$f":"'Productos adicionales'!E98","v":"37cm"},{"$f":"'Productos adicionales'!F98","v":"4 gavilanes"},{"$f":"'Productos adicionales'!G98","v":1},{"$f":"'Productos adicionales'!H98","v":0},"",null,null,""," "]
[{"$error":"#REF!"},{"$f":"'Productos adicionales'!B99","v":2120427},{"$f":"'Productos adicionales'!C99","v":"Broca para taladro TE-YX 40/57 1 9/16-23"},{"$f":"'Productos adicionales'!D99","v":"40mm"},{"$f":"'Productos adicionales'!E99","v":"57cm"},{"$f":"'Productos adicionales'!F99","v":"4 gavilanes"},{"$f":"'Productos adicionales'!G99","v":1},{"$f":"'Productos adicionales'!H99","v":0},{"$f":"IF(CEILING(H365,G365)=0,\"\",CEILING(H365,G365))","v":""},null,null,""," "]
[{"$error":"#REF!"},{"$f":"'Productos adicionales'!B101","v":2120431},{"$f":"'Productos adicionales'!C101","v":"Broca para taladro TE-YX 55/57 2 3/16-23"},{"$f":"'Productos adicionales'!D101","v":"55mm"},{"$f":"'Productos adicionales'!E101","v":"57cm"},{"$f":"'Productos adicionales'!F101","v":"4 gavilanes"},{"$f":"'Productos adicionales'!G101","v":1},{"$f":"'Productos adicionales'!H101","v":0},"",null,null,""," "]
[{"$error":"#REF!"},{"$f":"'Productos adicionales'!#REF!","v":{"$error":"#REF!"}},{"$f":"'Productos adicionales'!#REF!","v":{"$error":"#REF!"}},{"$f":"'Productos adicionales'!#REF!","v":{"$error":"#REF!"}},{"$f":"'Productos adicionales'!#REF!","v":{"$error":"#REF!"}},{"$f":"'Productos adicionales'!#REF!","v":{"$error":"#REF!"}},{"$f":"'Productos adicionales'!#REF!","v":{"$error":"#REF!"}},{"$f":"'Productos adicionales'!#REF!","v":{"$error":"#REF!"}},{"$error":"#REF!"},null,null,""," "]
[{"$error":"#REF!"},{"$f":"'Productos adicionales'!#REF!","v":{"$error":"#REF!"}},{"$f":"'Productos adicionales'!#REF!","v":{"$error":"#REF!"}},{"$f":"'Productos adicionales'!#REF!","v":{"$error":"#REF!"}},{"$f":"'Productos adicionales'!#REF!","v":{"$error":"#REF!"}},{"$f":"'Productos adicionales'!#REF!","v":{"$error":"#REF!"}},{"$f":"'Productos adicionales'!#REF!","v":{"$error":"#REF!"}},{"$f":"'Productos adicionales'!#REF!","v":{"$error":"#REF!"}},{"$error":"#REF!"},null,null,""," "]
[{"$error":"#REF!"},{"$f":"'Productos adicionales'!B102","v":428456},{"$f":"'Productos adicionales'!C102","v":"Broca para taladro TE-Y 1/2\"-14\""},{"$f":"'Productos adicionales'!D102","v":"1/2\""},{"$f":"'Productos adicionales'!E102","v":"14\""},{"$f":"'Productos adicionales'!F102","v":"2 gavilanes"},{"$f":"'Productos adicionales'!G102","v":1},{"$f":"'Productos adicionales'!H102","v":0},"",null,null,""," "]
[{"$error":"#REF!"},{"$f":"'Productos adicionales'!B103","v":428457},{"$f":"'Productos adicionales'!C103","v":"Broca para taladro TE-Y 1/2\"-22\""},{"$f":"'Productos adicionales'!D103","v":"1/2\""},{"$f":"'Productos adicionales'!E103","v":"22\""},{"$f":"'Productos adicionales'!F103","v":"2 gavilanes"},{"$f":"'Productos adicionales'!G103","v":1},{"$f":"'Productos adicionales'!H103","v":0},"",null,null,""," "]
[{"$error":"#REF!"},{"$f":"'Productos adicionales'!B104","v":428460},{"$f":"'Productos adicionales'!C104","v":"Broca para taladro TE-Y 5/8\"-14\""},{"$f":"'Productos adicionales'!D104","v":"5/8\""},{"$f":"'Productos adicionales'!E104","v":"14\""},{"$f":"'Productos adicionales'!F104","v":"2 gavilanes"},{"$f":"'Productos adicionales'!G104","v":1},{"$f":"'Productos adicionales'!H104","v":0},"",null,null,""," "]
[{"$error":"#REF!"},{"$f":"'Productos adicionales'!B105","v":428461},{"$f":"'Productos adicionales'!C105","v":"Broca para taladro TE-Y 5/8\"-22\""},{"$f":"'Productos adicionales'!D105","v":"5/8\""},{"$f":"'Productos adicionales'!E105","v":"22\""},{"$f":"'Productos adicionales'!F105","v":"2 gavilanes"},{"$f":"'Productos adicionales'!G105","v":1},{"$f":"'Productos adicionales'!H105","v":0},"",null,null,""," "]
[{"$error":"#REF!"},{"$f":"'Productos adicionales'!B106","v":428463},{"$f":"'Productos adicionales'!C106","v":"Broca para taladro TE-Y 3/4\"-13\""},{"$f":"'Productos adicionales'!D106","v":"3/4\""},{"$f":"'Productos adicionales'!E106","v":"13\""},{"$f":"'Productos adicionales'!F106","v":"2 gavilanes"},{"$f":"'Productos adicionales'!G106","v":1},{"$f":"'Productos adicionales'!H106","v":0},"",null,null,""," "]
[{"$error":"#REF!"},{"$f":"'Productos adicionales'!B107","v":428464},{"$f":"'Productos adicionales'!C107","v":"Broca para taladro TE-Y 3/4\"-21\""},{"$f":"'Productos adicionales'!D107","v":"3/4\""},{"$f":"'Productos adicionales'!E107","v":"21\""},{"$f":"'Productos adicionales'!F107","v":"2 gavilanes"},{"$f":"'Productos adicionales'!G107","v":1},{"$f":"'Productos adicionales'!H107","v":0},"",null,null,""," "]
[{"$error":"#REF!"},{"$f":"'Productos adicionales'!B108","v":428468},{"$f":"'Productos adicionales'!C108","v":"Broca para taladro TE-Y 7/8\"-13\""},{"$f":"'Productos adicionales'!D108","v":"7/8\""},{"$f":"'Productos adicionales'!E108","v":"13\""},{"$f":"'Productos adicionales'!F108","v":"2 gavilanes"},{"$f":"'Productos adicionales'!G108","v":1},{"$f":"'Productos adicionales'!H108","v":0},"",null,null,{"$f":"IF(ISNUMBER(I375),IF($I375 <> \"\",ROW(),\"\"),\"\")","v":""}," "]
[{"$error":"#REF!"},{"$f":"'Productos adicionales'!B109","v":428469},{"$f":"'Productos adicionales'!C109","v":"Broca para taladro TE-Y 7/8\"-21\""},{"$f":"'Productos adicionales'!D109","v":"7/8\""},{"$f":"'Productos adicionales'!E109","v":"21\""},{"$f":"'Productos adicionales'!F109","v":"2 gavilanes"},{"$f":"'Productos adicionales'!G109","v":1},{"$f":"'Productos adicionales'!H109","v":0},"",null,null,""," "]
[{"$error":"#REF!"},{"$f":"'Productos adicionales'!B110","v":428470},{"$f":"'Productos adicionales'!C110","v":"Broca para taladro TE-Y 1\"-13\""},{"$f":"'Productos adicionales'!D110","v":"1\""},{"$f":"'Productos adicionales'!E110","v":"13\""},{"$f":"'Productos adicionales'!F110","v":"2 gavilanes"},{"$f":"'Productos adicionales'!G110","v":1},{"$f":"'Productos adicionales'!H110","v":0},"",null,null,""," "]
[{"$error":"#REF!"},{"$f":"'Productos adicionales'!B111","v":428471},{"$f":"'Productos adicionales'!C111","v":"Broca para taladro TE-Y 1\"-21\""},{"$f":"'Productos adicionales'!D111","v":"1\""},{"$f":"'Productos adicionales'!E111","v":"21\""},{"$f":"'Productos adicionales'!F111","v":"2 gavilanes"},{"$f":"'Productos adicionales'!G111","v":1},{"$f":"'Productos adicionales'!H111","v":0},"",null,null,""," "]
[{"$f":"A378+1","v":{"$error":"#REF!"}},{"$f":"'Productos adicionales'!B112","v":428475},{"$f":"'Productos adicionales'!C112","v":"Broca para taladro TE-Y 1 1/4\"-23\""},{"$f":"'Productos adicionales'!D112","v":"1 1/4\""},{"$f":"'Productos adicionales'!E112","v":"23\""},{"$f":"'Productos adicionales'!F112","v":"2 gavilanes"},{"$f":"'Productos adicionales'!G112","v":1},{"$f":"'Productos adicionales'!H112","v":0},"",null,null,""," "]
[{"$error":"#REF!"},{"$f":"'Productos adicionales'!B100","v":2120430},{"$f":"'Productos adicionales'!C100","v":"Broca para taladro TE-YX 45/57 1 3/4-23\""},{"$f":"'Productos adicionales'!D100","v":"45mm"},{"$f":"'Productos adicionales'!E100","v":"57cm"},{"$f":"'Productos adicionales'!F100","v":"2 gavilanes"},{"$f":"'Productos adicionales'!G100","v":1},{"$f":"'Productos adicionales'!H100","v":0},"",null,null,""," "]
[{"$error":"#REF!"},{"$f":"'Productos adicionales'!B113","v":346629},{"$f":"'Productos adicionales'!C113","v":"Broca para taladro TE-Y 1 3/4\" - 23\""},{"$f":"'Productos adicionales'!D113","v":"1 3/4\""},{"$f":"'Productos adicionales'!E113","v":"23\""},{"$f":"'Productos adicionales'!F113","v":"2 gavilanes"},{"$f":"'Productos adicionales'!G113","v":1},{"$f":"'Productos adicionales'!H113","v":0},"",null,null,""," "]
[{"$error":"#REF!"},{"$f":"'Productos adicionales'!B114","v":418314},{"$f":"'Productos adicionales'!C114","v":"Broca para taladro TE-Y 22/52 (Métrica)"},{"$f":"'Productos adicionales'!D114","v":"22mm"},{"$f":"'Productos adicionales'!E114","v":"52cm"},{"$f":"'Productos adicionales'!F114","v":"2 gavilanes"},{"$f":"'Productos adicionales'!G114","v":1},{"$f":"'Productos adicionales'!H114","v":0},"",null,null,""," "]
[{"$error":"#REF!"},{"$f":"'Productos adicionales'!#REF!","v":{"$error":"#REF!"}},{"$f":"'Productos adicionales'!#REF!","v":{"$error":"#REF!"}},{"$f":"'Productos adicionales'!#REF!","v":{"$error":"#REF!"}},{"$f":"'Productos adicionales'!#REF!","v":{"$error":"#REF!"}},{"$f":"'Productos adicionales'!#REF!","v":{"$error":"#REF!"}},{"$f":"'Productos adicionales'!#REF!","v":{"$error":"#REF!"}},{"$f":"'Productos adicionales'!#REF!","v":{"$error":"#REF!"}},{"$error":"#REF!"},null,null,""," "]
[{"$error":"#REF!"},{"$f":"'Productos adicionales'!#REF!","v":{"$error":"#REF!"}},{"$f":"'Productos adicionales'!#REF!","v":{"$error":"#REF!"}},{"$f":"'Productos adicionales'!#REF!","v":{"$error":"#REF!"}},{"$f":"'Productos adicionales'!#REF!","v":{"$error":"#REF!"}},{"$f":"'Productos adicionales'!#REF!","v":{"$error":"#REF!"}},{"$f":"'Productos adicionales'!#REF!","v":{"$error":"#REF!"}},{"$f":"'Productos adicionales'!#REF!","v":{"$error":"#REF!"}},{"$error":"#REF!"},null,null,""," "]
[{"$error":"#REF!"},{"$f":"'Productos adicionales'!B115","v":2006308},{"$f":"'Productos adicionales'!C115","v":"Broca corona p. taladro TE-Y-BK 68/550"},{"$f":"'Productos adicionales'!D115","v":"68mm"},{"$f":"'Productos adicionales'!E115","v":"55cm"},{"$f":"'Productos adicionales'!F115","v":"Tipo corona"},{"$f":"'Productos adicionales'!G115","v":0},{"$f":"'Productos adicionales'!H115","v":0},"",null,null,"",{"$f":"IFERROR(OFFSET($B$1,SMALL(L:L,$A385 )-1,0),\"\")&\" \"&IFERROR(OFFSET($I$1,SMALL(L:L,$A385 )-1,0),\"\")","v":" "}]
[{"$error":"#REF!"},{"$f":"'Productos adicionales'!B116","v":2006309},{"$f":"'Productos adicionales'!C116","v":"Broca corona p. taladro TE-Y-BK 82/290"},{"$f":"'Productos adicionales'!D116","v":"82mm"},{"$f":"'Productos adicionales'!E116","v":"29cm"},{"$f":"'Productos adicionales'!F116","v":"Tipo corona"},{"$f":"'Productos adicionales'!G116","v":0},{"$f":"'Productos adicionales'!H116","v":0},"",null,null,""," "]
[{"$error":"#REF!"},{"$f":"'Productos adicionales'!B117","v":2006313},{"$f":"'Productos adicionales'!C117","v":"Broca corona p. taladro TE-Y-BK 100/550"},{"$f":"'Productos adicionales'!D117","v":"100mm"},{"$f":"'Productos adicionales'!E117","v":"55cm"},{"$f":"'Productos adicionales'!F117","v":"Tipo corona"},{"$f":"'Productos adicionales'!G117","v":0},{"$f":"'Productos adicionales'!H117","v":0},"",null,null,""," "]
[{"$error":"#REF!"},{"$f":"'Productos adicionales'!#REF!","v":{"$error":"#REF!"}},{"$f":"'Productos adicionales'!#REF!","v":{"$error":"#REF!"}},{"$f":"'Productos adicionales'!#REF!","v":{"$error":"#REF!"}},{"$f":"'Productos adicionales'!#REF!","v":{"$error":"#REF!"}},{"$f":"'Productos adicionales'!#REF!","v":{"$error":"#REF!"}},{"$f":"'Productos adicionales'!#REF!","v":{"$error":"#REF!"}},{"$f":"'Productos adicionales'!#REF!","v":{"$error":"#REF!"}},{"$error":"#REF!"},null,null,""," "]
[{"$error":"#REF!"},{"$f":"'Productos adicionales'!#REF!","v":{"$error":"#REF!"}},{"$f":"'Productos adicionales'!#REF!","v":{"$error":"#REF!"}},{"$f":"'Productos adicionales'!#REF!","v":{"$error":"#REF!"}},{"$f":"'Productos adicionales'!#REF!","v":{"$error":"#REF!"}},{"$f":"'Productos adicionales'!#REF!","v":{"$error":"#REF!"}},{"$f":"'Productos adicionales'!#REF!","v":{"$error":"#REF!"}},{"$f":"'Productos adicionales'!#REF!","v":{"$error":"#REF!"}},{"$error":"#REF!"},null,null,""," "]
[{"$error":"#REF!"},{"$f":"'Productos adicionales'!B118","v":2018958},{"$f":"'Productos adicionales'!C118","v":"Broca hueca para taladro TE-YD 3/4\"-24\""},{"$f":"'Productos adicionales'!D118","v":"3/4\""},{"$f":"'Productos adicionales'!E118","v":"24\""},{"$f":"'Productos adicionales'!F118","v":"Hueca-para aspiradora"},{"$f":"'Productos adicionales'!G118","v":0},{"$f":"'Productos adicionales'!H118","v":0},"",null,null,""," "]
[{"$error":"#REF!"},{"$f":"'Productos adicionales'!B119","v":2018961},{"$f":"'Productos adicionales'!C119","v":"Broca hueca para taladro TE-YD 7/8\"-24\""},{"$f":"'Productos adicionales'!D119","v":"7/8\""},{"$f":"'Productos adicionales'!E119","v":"24\""},{"$f":"'Productos adicionales'!F119","v":"Hueca-para aspiradora"},{"$f":"'Productos adicionales'!G119","v":0},{"$f":"'Productos adicionales'!H119","v":0},"",null,null,""," "]
[{"$error":"#REF!"},{"$f":"'Productos adicionales'!B121","v":"Brocas especiales encastre SDS-PLUS (C)"},{"$f":"'Productos adicionales'!C121","v":0},{"$f":"'Productos adicionales'!D121","v":0},{"$f":"'Productos adicionales'!E121","v":0},{"$f":"'Productos adicionales'!F121","v":0},{"$f":"'Productos adicionales'!G121","v":0},{"$f":"'Productos adicionales'!H121","v":0},"",null,null,""," "]
[{"$error":"#REF!"},{"$f":"'Productos adicionales'!B122","v":"Ítem #"},{"$f":"'Productos adicionales'!C122","v":"Descripción"},{"$f":"'Productos adicionales'!D122","v":"Diámetro"},{"$f":"'Productos adicionales'!E122","v":"Longitud utilizable"},{"$f":"'Productos adicionales'!F122","v":0},{"$f":"'Productos adicionales'!G122","v":"Tamaño embalaje"},{"$f":"'Productos adicionales'!H122","v":"Cantidad a ordenar"},{"$error":"#VALUE!"},null,null,""," "]
[{"$error":"#REF!"},{"$f":"'Productos adicionales'!B123","v":2018941},{"$f":"'Productos adicionales'!C123","v":"Broca hueca para taladro TE-CD 1/2\"-13\""},{"$f":"'Productos adicionales'!D123","v":"1/2\""},{"$f":"'Productos adicionales'!E123","v":"13\""},{"$f":"'Productos adicionales'!F123","v":"Hueca-para aspiradora"},{"$f":"'Productos adicionales'!G123","v":1},{"$f":"'Productos adicionales'!H123","v":0},"",null,null,""," "]
[{"$error":"#REF!"},{"$f":"'Productos adicionales'!B124","v":2018943},{"$f":"'Productos adicionales'!C124","v":"Broca hueca para taladro TE-CD 9/16\"-14\""},{"$f":"'Productos adicionales'!D124","v":"9/16\""},{"$f":"'Productos adicionales'!E124","v":"14\""},{"$f":"'Productos adicionales'!F124","v":"Hueca-para aspiradora"},{"$f":"'Productos adicionales'!G124","v":1},{"$f":"'Productos adicionales'!H124","v":0},"",null,null,""," "]
[{"$error":"#REF!"},{"$f":"'Productos adicionales'!B125","v":2018944},{"$f":"'Productos adicionales'!C125","v":"Broca hueca para taladro TE-CD 5/8\"-14\""},{"$f":"'Productos adicionales'!D125","v":"5/8\""},{"$f":"'Productos adicionales'!E125","v":"14\""},{"$f":"'Productos adicionales'!F125","v":"Hueca-para aspiradora"},{"$f":"'Productos adicionales'!G125","v":1},{"$f":"'Productos adicionales'!H125","v":0},"",null,null,""," "]
[{"$error":"#REF!"},{"$f":"'Productos adicionales'!B126","v":2018947},{"$f":"'Productos adicionales'!C126","v":"Broca hueca para taladro TE-CD 3/4\"-14\""},{"$f":"'Productos adicionales'!D126","v":"3/4\""},{"$f":"'Productos adicionales'!E126","v":"14\""},{"$f":"'Productos adicionales'!F126","v":"Hueca-para aspiradora"},{"$f":"'Productos adicionales'!G126","v":1},{"$f":"'Productos adicionales'!H126","v":0},"",null,null,""," "]
[{"$error":"#REF!"},{"$f":"'Productos adicionales'!B127","v":"339130"},{"$f":"'Productos adicionales'!C127","v":"Broca corona p. taladro TE-C-DS 68/130"},{"$f":"'Productos adicionales'!D127","v":"68mm"},{"$f":"'Productos adicionales'!E127","v":"130cm"},{"$f":"'Productos adicionales'!F127","v":"Tipo corona"},{"$f":"'Productos adicionales'!G127","v":1},{"$f":"'Productos adicionales'!H127","v":0},"",null,null,""," "]
[{"$error":"#REF!"},{"$f":"'Productos adicionales'!B129","v":"Brocas pala para madera "},{"$f":"'Productos adicionales'!C129","v":0},{"$f":"'Productos adicionales'!D129","v":0},{"$f":"'Productos adicionales'!E129","v":0},{"$f":"'Productos adicionales'!F129","v":0},{"$f":"'Productos adicionales'!G129","v":0},{"$f":"'Productos adicionales'!H129","v":0},"",null,null,""," "]
[{"$error":"#REF!"},{"$f":"'Productos adicionales'!B130","v":"Ítem #"},{"$f":"'Productos adicionales'!C130","v":"Descripción"},{"$f":"'Productos adicionales'!D130","v":"Diámetro"},{"$f":"'Productos adicionales'!E130","v":"Longitud utilizable"},{"$f":"'Productos adicionales'!F130","v":"Conexion"},{"$f":"'Productos adicionales'!G130","v":"Tamaño embalaje"},{"$f":"'Productos adicionales'!H130","v":"Cantidad a ordenar"},{"$error":"#VALUE!"},null,null,""," "]
[{"$error":"#REF!"},{"$f":"'Productos adicionales'!B131","v":2025584},{"$f":"'Productos adicionales'!C131","v":"Broca pala WDB-S-H1/4 1/4x6"},{"$f":"'Productos adicionales'!D131","v":"1/4\""},{"$f":"'Productos adicionales'!E131","v":"6\""},{"$f":"'Productos adicionales'!F131","v":"HEX 1/4\""},{"$f":"'Productos adicionales'!G131","v":3},{"$f":"'Productos adicionales'!H131","v":0},"",null,null,""]
[{"$error":"#REF!"},{"$f":"'Productos adicionales'!B132","v":2025585},{"$f":"'Productos adicionales'!C132","v":"Broca pala WDB-S-H1/4 3/8x6"},{"$f":"'Productos adicionales'!D132","v":"3/8\""},{"$f":"'Productos adicionales'!E132","v":"6\""},{"$f":"'Productos adicionales'!F132","v":"HEX 1/4\""},{"$f":"'Productos adicionales'!G132","v":3},{"$f":"'Productos adicionales'!H132","v":0},"",null,null,""]
[{"$error":"#REF!"},{"$f":"'Productos adicionales'!B133","v":2025586},{"$f":"'Productos adicionales'!C133","v":"Broca pala WDB-S-H1/4 1/2x6"},{"$f":"'Productos adicionales'!D133","v":"1/2\""},{"$f":"'Productos adicionales'!E133","v":"6\""},{"$f":"'Productos adicionales'!F133","v":"HEX 1/4\""},{"$f":"'Productos adicionales'!G133","v":3},{"$f":"'Productos adicionales'!H133","v":0},"",null,null,""]
[{"$error":"#REF!"},{"$f":"'Productos adicionales'!B134","v":2025587},{"$f":"'Productos adicionales'!C134","v":"Broca pala WDB-S-H1/4 9/16x6"},{"$f":"'Productos adicionales'!D134","v":"9/16\""},{"$f":"'Productos adicionales'!E134","v":"6\""},{"$f":"'Productos adicionales'!F134","v":"HEX 1/4\""},{"$f":"'Productos adicionales'!G134","v":3},{"$f":"'Productos adicionales'!H134","v":0},"",null,null,""]
[{"$error":"#REF!"},{"$f":"'Productos adicionales'!B135","v":2025588},{"$f":"'Productos adicionales'!C135","v":"Broca pala WDB-S-H1/4 5/8x6"},{"$f":"'Productos adicionales'!D135","v":"5/8\""},{"$f":"'Productos adicionales'!E135","v":"6\""},{"$f":"'Productos adicionales'!F135","v":"HEX 1/4\""},{"$f":"'Productos adicionales'!G135","v":3},{"$f":"'Productos adicionales'!H135","v":0},"",null,null,""]
[{"$error":"#REF!"},{"$f":"'Productos adicionales'!B136","v":2025589},{"$f":"'Productos adicionales'!C136","v":"Broca pala WDB-S-H1/4 3/4x6"},{"$f":"'Productos adicionales'!D136","v":"3/4\""},{"$f":"'Productos adicionales'!E136","v":"6\""},{"$f":"'Productos adicionales'!F136","v":"HEX 1/4\""},{"$f":"'Productos adicionales'!G136","v":3},{"$f":"'Productos adicionales'!H136","v":0},"",null,null,""]
[{"$error":"#REF!"},{"$f":"'Productos adicionales'!B137","v":2025591},{"$f":"'Productos adicionales'!C137","v":"Broca pala WDB-S-H1/4 7/8x6"},{"$f":"'Productos adicionales'!D137","v":"7/8\""},{"$f":"'Productos adicionales'!E137","v":"6\""},{"$f":"'Productos adicionales'!F137","v":"HEX 1/4\""},{"$f":"'Productos adicionales'!G137","v":3},{"$f":"'Productos adicionales'!H137","v":0},"",null,null,""]
[{"$error":"#REF!"},{"$f":"'Productos adicionales'!B138","v":2025592},{"$f":"'Productos adicionales'!C138","v":"Broca pala WDB-S-H1/4 1x6"},{"$f":"'Productos adicionales'!D138","v":"1\""},{"$f":"'Productos adicionales'!E138","v":"6\""},{"$f":"'Productos adicionales'!F138","v":"HEX 1/4\""},{"$f":"'Productos adicionales'!G138","v":3},{"$f":"'Productos adicionales'!H138","v":0},"",null,null,""]
[{"$error":"#REF!"},{"$f":"'Productos adicionales'!B139","v":2025593},{"$f":"'Productos adicionales'!C139","v":"Broca pala WDB-S-H1/4 1 1/8x6"},{"$f":"'Productos adicionales'!D139","v":"1 1/8\""},{"$f":"'Productos adicionales'!E139","v":"6\""},{"$f":"'Productos adicionales'!F139","v":"HEX 1/4\""},{"$f":"'Productos adicionales'!G139","v":3},{"$f":"'Productos adicionales'!H139","v":0},"",null,null,""]
[{"$error":"#REF!"},{"$f":"'Productos adicionales'!B140","v":2025594},{"$f":"'Productos adicionales'!C140","v":"Broca pala WDB-S-H1/4 1 1/4x6"},{"$f":"'Productos adicionales'!D140","v":"1 1/4\""},{"$f":"'Productos adicionales'!E140","v":"6\""},{"$f":"'Productos adicionales'!F140","v":"HEX 1/4\""},{"$f":"'Productos adicionales'!G140","v":3},{"$f":"'Productos adicionales'!H140","v":0},"",null,null,""]
[{"$error":"#REF!"},{"$f":"'Productos adicionales'!B141","v":2025595},{"$f":"'Productos adicionales'!C141","v":"Broca pala WDB-S-H1/4 1 3/8x6"},{"$f":"'Productos adicionales'!D141","v":"1 3/8\""},{"$f":"'Productos adicionales'!E141","v":"6\""},{"$f":"'Productos adicionales'!F141","v":"HEX 1/4\""},{"$f":"'Productos adicionales'!G141","v":3},{"$f":"'Productos adicionales'!H141","v":0},"",null,null,""]
[{"$error":"#REF!"},{"$f":"'Productos adicionales'!B142","v":2025596},{"$f":"'Productos adicionales'!C142","v":"Broca pala WDB-S-H1/4 1 1/2x6"},{"$f":"'Productos adicionales'!D142","v":"1 1/2\""},{"$f":"'Productos adicionales'!E142","v":"6\""},{"$f":"'Productos adicionales'!F142","v":"HEX 1/4\""},{"$f":"'Productos adicionales'!G142","v":3},{"$f":"'Productos adicionales'!H142","v":0},"",null,null,""]
[{"$error":"#REF!"},{"$f":"'Productos adicionales'!B143","v":2025597},{"$f":"'Productos adicionales'!C143","v":"Broca pala WDB-S-H1/4 6 juego"},{"$f":"'Productos adicionales'!D143","v":"Juego"},{"$f":"'Productos adicionales'!E143","v":"6\""},{"$f":"'Productos adicionales'!F143","v":"HEX 1/4\""},{"$f":"'Productos adicionales'!G143","v":1},{"$f":"'Productos adicionales'!H143","v":0},"",null,null,""]
[{"$error":"#REF!"},{"$f":"'Productos adicionales'!B145","v":"Brocas diamantadas especializadas"},{"$f":"'Productos adicionales'!C145","v":0},{"$f":"'Productos adicionales'!D145","v":0},{"$f":"'Productos adicionales'!E145","v":0},{"$f":"'Productos adicionales'!F145","v":0},{"$f":"'Productos adicionales'!G145","v":0},{"$f":"'Productos adicionales'!H145","v":0},"",null,null,""]
[{"$error":"#REF!"},{"$f":"'Productos adicionales'!B146","v":"Ítem #"},{"$f":"'Productos adicionales'!C146","v":"Descripción"},{"$f":"'Productos adicionales'!D146","v":"Diámetro"},{"$f":"'Productos adicionales'!E146","v":"Longitud utilizable"},{"$f":"'Productos adicionales'!F146","v":"Denominacion"},{"$f":"'Productos adicionales'!G146","v":"Tamaño embalaje"},{"$f":"'Productos adicionales'!H146","v":"Cantidad a ordenar"},{"$error":"#VALUE!"},null,null,""]
[{"$error":"#REF!"},{"$f":"'Productos adicionales'!B147","v":"2158228"},{"$f":"'Productos adicionales'!C147","v":"Broca B 52/450 SP-H abras."},{"$f":"'Productos adicionales'!D147","v":"52mm"},{"$f":"'Productos adicionales'!E147","v":"45cm"},{"$f":"'Productos adicionales'!F147","v":"Materiales abrasivo"},{"$f":"'Productos adicionales'!G147","v":1},{"$f":"'Productos adicionales'!H147","v":0},"",null,null,""]
[{"$error":"#REF!"},{"$f":"'Productos adicionales'!B148","v":"2158230"},{"$f":"'Productos adicionales'!C148","v":"Broca B 62/450 SP-H abras."},{"$f":"'Productos adicionales'!D148","v":"62mm"},{"$f":"'Productos adicionales'!E148","v":"45cm"},{"$f":"'Productos adicionales'!F148","v":"Materiales abrasivo"},{"$f":"'Productos adicionales'!G148","v":1},{"$f":"'Productos adicionales'!H148","v":0},"",null,null,""]
[{"$error":"#REF!"},{"$f":"'Productos adicionales'!B149","v":"2158233"},{"$f":"'Productos adicionales'!C149","v":"Broca B 77/450 SP-H abras."},{"$f":"'Productos adicionales'!D149","v":"77mm"},{"$f":"'Productos adicionales'!E149","v":"45cm"},{"$f":"'Productos adicionales'!F149","v":"Materiales abrasivo"},{"$f":"'Productos adicionales'!G149","v":1},{"$f":"'Productos adicionales'!H149","v":0},"",null,null,""]
[{"$error":"#REF!"},{"$f":"'Productos adicionales'!B150","v":"2158237"},{"$f":"'Productos adicionales'!C150","v":"Broca B 102/450 SP-H abras."},{"$f":"'Productos adicionales'!D150","v":"102mm"},{"$f":"'Productos adicionales'!E150","v":"45cm"},{"$f":"'Productos adicionales'!F150","v":"Materiales abrasivo"},{"$f":"'Productos adicionales'!G150","v":1},{"$f":"'Productos adicionales'!H150","v":0},"",null,null,""]
[{"$error":"#REF!"},{"$f":"'Productos adicionales'!B151","v":"2158243"},{"$f":"'Productos adicionales'!C151","v":"Broca B 152/450 SP-H abras."},{"$f":"'Productos adicionales'!D151","v":"152mm"},{"$f":"'Productos adicionales'!E151","v":"45cm"},{"$f":"'Productos adicionales'!F151","v":"Materiales abrasivo"},{"$f":"'Productos adicionales'!G151","v":1},{"$f":"'Productos adicionales'!H151","v":0},"",null,null,""]
[{"$error":"#REF!"},{"$f":"'Productos adicionales'!B152","v":"2199673"},{"$f":"'Productos adicionales'!C152","v":"Broca B 300/450 SP-H abras."},{"$f":"'Productos adicionales'!D152","v":"300mm"},{"$f":"'Productos adicionales'!E152","v":"45cm"},{"$f":"'Productos adicionales'!F152","v":"Materiales abrasivo"},{"$f":"'Productos adicionales'!G152","v":1},{"$f":"'Productos adicionales'!H152","v":0},"",null,null,""]
[{"$error":"#REF!"},{"$f":"'Productos adicionales'!B153","v":"2199674"},{"$f":"'Productos adicionales'!C153","v":"Broca B 350/450 SP-H abras."},{"$f":"'Productos adicionales'!D153","v":"350mm"},{"$f":"'Productos adicionales'!E153","v":"45cm"},{"$f":"'Productos adicionales'!F153","v":"Materiales abrasivo"},{"$f":"'Productos adicionales'!G153","v":1},{"$f":"'Productos adicionales'!H153","v":0},"",null,null,""]
[{"$error":"#REF!"},{"$f":"'Productos adicionales'!B154","v":"2199675"},{"$f":"'Productos adicionales'!C154","v":"Broca B 400/450 SP-H abras."},{"$f":"'Productos adicionales'!D154","v":"400mm"},{"$f":"'Productos adicionales'!E154","v":"45cm"},{"$f":"'Productos adicionales'!F154","v":"Materiales abrasivo"},{"$f":"'Productos adicionales'!G154","v":1},{"$f":"'Productos adicionales'!H154","v":0},"",null,null,""]
[{"$error":"#REF!"},{"$f":"'Productos adicionales'!B155","v":"2199676"},{"$f":"'Productos adicionales'!C155","v":"Broca B 450/450 SP-H abras."},{"$f":"'Productos adicionales'!D155","v":"450mm"},{"$f":"'Productos adicionales'!E155","v":"45cm"},{"$f":"'Productos adicionales'!F155","v":"Materiales abrasivo"},{"$f":"'Productos adicionales'!G155","v":1},{"$f":"'Productos adicionales'!H155","v":0},"",null,null,""]
[{"$error":"#REF!"},{"$f":"'Productos adicionales'!B156","v":"2199677"},{"$f":"'Productos adicionales'!C156","v":"Broca B 500/450 SP-H abras."},{"$f":"'Productos adicionales'!D156","v":"500mm"},{"$f":"'Productos adicionales'!E156","v":"45cm"},{"$f":"'Productos adicionales'!F156","v":"Materiales abrasivo"},{"$f":"'Productos adicionales'!G156","v":1},{"$f":"'Productos adicionales'!H156","v":0},"",null,null,""]
[{"$error":"#REF!"},{"$f":"'Productos adicionales'!B157","v":"2199678"},{"$f":"'Productos adicionales'!C157","v":"Broca B 600/450 SP-H abras."},{"$f":"'Productos adicionales'!D157","v":"600mm"},{"$f":"'Productos adicionales'!E157","v":"45cm"},{"$f":"'Productos adicionales'!F157","v":"Materiales abrasivo"},{"$f":"'Productos adicionales'!G157","v":1},{"$f":"'Productos adicionales'!H157","v":0},"",null,null,""]
[{"$error":"#REF!"},{"$f":"'Productos adicionales'!#REF!","v":{"$error":"#REF!"}},{"$f":"'Productos adicionales'!#REF!","v":{"$error":"#REF!"}},{"$f":"'Productos adicionales'!#REF!","v":{"$error":"#REF!"}},{"$f":"'Productos adicionales'!#REF!","v":{"$error":"#REF!"}},{"$f":"'Productos adicionales'!#REF!","v":{"$error":"#REF!"}},{"$f":"'Productos adicionales'!#REF!","v":{"$error":"#REF!"}},{"$f":"'Productos adicionales'!#REF!","v":{"$error":"#REF!"}},{"$error":"#REF!"},null,null,""]
[{"$error":"#REF!"},{"$f":"'Productos adicionales'!#REF!","v":{"$error":"#REF!"}},{"$f":"'Productos adicionales'!#REF!","v":{"$error":"#REF!"}},{"$f":"'Productos adicionales'!#REF!","v":{"$error":"#REF!"}},{"$f":"'Productos adicionales'!#REF!","v":{"$error":"#REF!"}},{"$f":"'Productos adicionales'!#REF!","v":{"$error":"#REF!"}},{"$f":"'Productos adicionales'!#REF!","v":{"$error":"#REF!"}},{"$f":"'Productos adicionales'!#REF!","v":{"$error":"#REF!"}},{"$error":"#REF!"},null,null,""]
[{"$error":"#REF!"},{"$f":"'Productos adicionales'!B158","v":336854},{"$f":"'Productos adicionales'!C158","v":"Broca corona diam DD-C 1/2\"-6\" T4"},{"$f":"'Productos adicionales'!D158","v":"1/2\""},{"$f":"'Productos adicionales'!E158","v":"6\""},{"$f":"'Productos adicionales'!F158","v":"Para perforadora EC1"},{"$f":"'Productos adicionales'!G158","v":1},{"$f":"'Productos adicionales'!H158","v":0},{"$f":"IF(CEILING(H429,G429)=0,\"\",CEILING(H429,G429))","v":""},null,null,""]
[{"$error":"#REF!"},{"$f":"'Productos adicionales'!B159","v":336862},{"$f":"'Productos adicionales'!C159","v":"Broca corona diam DD-C 16/300 T4"},{"$f":"'Productos adicionales'!D159","v":"16mm"},{"$f":"'Productos adicionales'!E159","v":"30cm"},{"$f":"'Productos adicionales'!F159","v":"Para perforadora EC1"},{"$f":"'Productos adicionales'!G159","v":1},{"$f":"'Productos adicionales'!H159","v":0},"",null,null,""]
[{"$error":"#REF!"},{"$f":"'Productos adicionales'!B160","v":336864},{"$f":"'Productos adicionales'!C160","v":"Broca corona diam DD-C 18/300 T4"},{"$f":"'Productos adicionales'!D160","v":"18mm"},{"$f":"'Productos adicionales'!E160","v":"30cm"},{"$f":"'Productos adicionales'!F160","v":"Para perforadora EC1"},{"$f":"'Productos adicionales'!G160","v":1},{"$f":"'Productos adicionales'!H160","v":0},"",null,null,""]
[{"$error":"#REF!"},{"$f":"'Productos adicionales'!B161","v":336866},{"$f":"'Productos adicionales'!C161","v":"Broca corona diam DD-C 3/4\"-12\" T4"},{"$f":"'Productos adicionales'!D161","v":"3/4\""},{"$f":"'Productos adicionales'!E161","v":"12\""},{"$f":"'Productos adicionales'!F161","v":"Para perforadora EC1"},{"$f":"'Productos adicionales'!G161","v":1},{"$f":"'Productos adicionales'!H161","v":0},"",null,null,""]
[{"$error":"#REF!"},{"$f":"'Productos adicionales'!B162","v":336873},{"$f":"'Productos adicionales'!C162","v":"Broca corona diam DD-C 22/300 T4"},{"$f":"'Productos adicionales'!D162","v":"22mm"},{"$f":"'Productos adicionales'!E162","v":"30cm"},{"$f":"'Productos adicionales'!F162","v":"Para perforadora EC1"},{"$f":"'Productos adicionales'!G162","v":1},{"$f":"'Productos adicionales'!H162","v":0},"",null,null,""]
[{"$error":"#REF!"},{"$f":"'Productos adicionales'!B163","v":336877},{"$f":"'Productos adicionales'!C163","v":"Broca corona diam DD-C 1\"-12\" T4"},{"$f":"'Productos adicionales'!D163","v":"1\""},{"$f":"'Productos adicionales'!E163","v":"12\""},{"$f":"'Productos adicionales'!F163","v":"Para perforadora EC1"},{"$f":"'Productos adicionales'!G163","v":1},{"$f":"'Productos adicionales'!H163","v":0},"",null,null,""]
[{"$error":"#REF!"},{"$f":"'Productos adicionales'!B164","v":336882},{"$f":"'Productos adicionales'!C164","v":"Broca corona diam DD-C 1 1/4\"-12\" T4"},{"$f":"'Productos adicionales'!D164","v":"1 1/4\""},{"$f":"'Productos adicionales'!E164","v":"12\""},{"$f":"'Productos adicionales'!F164","v":"Para perforadora EC1"},{"$f":"'Productos adicionales'!G164","v":1},{"$f":"'Productos adicionales'!H164","v":0},"",null,null,""]
[{"$error":"#REF!"},{"$f":"'Productos adicionales'!B165","v":336886},{"$f":"'Productos adicionales'!C165","v":"Broca corona diam DD-C 3/8\"-6\" T2"},{"$f":"'Productos adicionales'!D165","v":"3/8\""},{"$f":"'Productos adicionales'!E165","v":"6\""},{"$f":"'Productos adicionales'!F165","v":"Para perforadora EC1"},{"$f":"'Productos adicionales'!G165","v":1},{"$f":"'Productos adicionales'!H165","v":0},"",null,null,""]
[{"$error":"#REF!"},{"$f":"'Productos adicionales'!#REF!","v":{"$error":"#REF!"}},{"$f":"'Productos adicionales'!#REF!","v":{"$error":"#REF!"}},{"$f":"'Productos adicionales'!#REF!","v":{"$error":"#REF!"}},{"$f":"'Productos adicionales'!#REF!","v":{"$error":"#REF!"}},{"$f":"'Productos adicionales'!#REF!","v":{"$error":"#REF!"}},{"$f":"'Productos adicionales'!#REF!","v":{"$error":"#REF!"}},{"$f":"'Productos adicionales'!#REF!","v":{"$error":"#REF!"}},{"$error":"#REF!"},null,null,""]
[{"$error":"#REF!"},{"$f":"'Productos adicionales'!#REF!","v":{"$error":"#REF!"}},{"$f":"'Productos adicionales'!#REF!","v":{"$error":"#REF!"}},{"$f":"'Productos adicionales'!#REF!","v":{"$error":"#REF!"}},{"$f":"'Productos adicionales'!#REF!","v":{"$error":"#REF!"}},{"$f":"'Productos adicionales'!#REF!","v":{"$error":"#REF!"}},{"$f":"'Productos adicionales'!#REF!","v":{"$error":"#REF!"}},{"$f":"'Productos adicionales'!#REF!","v":{"$error":"#REF!"}},{"$error":"#REF!"},null,null,""]
[{"$error":"#REF!"},{"$f":"'Productos adicionales'!B166","v":"2076282"},{"$f":"'Productos adicionales'!C166","v":"Broca C+ 3/8\"/6\" SPX-T"},{"$f":"'Productos adicionales'!D166","v":"3/8\""},{"$f":"'Productos adicionales'!E166","v":"6\""},{"$f":"'Productos adicionales'!F166","v":"Para perforadora DD30"},{"$f":"'Productos adicionales'!G166","v":1},{"$f":"'Productos adicionales'!H166","v":0},"",null,null,{"$f":"IF(ISNUMBER(I439),IF($I439 <> \"\",ROW(),\"\"),\"\")","v":""}]
[{"$error":"#REF!"},{"$f":"'Productos adicionales'!B167","v":"2076286"},{"$f":"'Productos adicionales'!C167","v":"Broca C+ 1/2\"/6\" SPX-T"},{"$f":"'Productos adicionales'!D167","v":"1/2\""},{"$f":"'Productos adicionales'!E167","v":"6\""},{"$f":"'Productos adicionales'!F167","v":"Para perforadora DD30"},{"$f":"'Productos adicionales'!G167","v":1},{"$f":"'Productos adicionales'!H167","v":0},"",null,null,""]
[{"$error":"#REF!"},{"$f":"'Productos adicionales'!B168","v":"2076288"},{"$f":"'Productos adicionales'!C168","v":"Broca C+ 9/16\"/6\" SPX-T"},{"$f":"'Productos adicionales'!D168","v":"9/16\""},{"$f":"'Productos adicionales'!E168","v":"6\""},{"$f":"'Productos adicionales'!F168","v":"Para perforadora DD30"},{"$f":"'Productos adicionales'!G168","v":1},{"$f":"'Productos adicionales'!H168","v":0},"",null,null,""]
[{"$error":"#REF!"},{"$f":"'Productos adicionales'!B169","v":"2076503"},{"$f":"'Productos adicionales'!C169","v":"Broca C+ 16/300 SPX-T"},{"$f":"'Productos adicionales'!D169","v":"16mm"},{"$f":"'Productos adicionales'!E169","v":"30cm"},{"$f":"'Productos adicionales'!F169","v":"Para perforadora DD30"},{"$f":"'Productos adicionales'!G169","v":1},{"$f":"'Productos adicionales'!H169","v":0},"",null,null,""]
[{"$f":"A442+1","v":{"$error":"#REF!"}},{"$f":"'Productos adicionales'!B170","v":"2076504"},{"$f":"'Productos adicionales'!C170","v":"Broca C+ 18/300 SPX-T"},{"$f":"'Productos adicionales'!D170","v":"18mm"},{"$f":"'Productos adicionales'!E170","v":"30cm"},{"$f":"'Productos adicionales'!F170","v":"Para perforadora DD30"},{"$f":"'Productos adicionales'!G170","v":1},{"$f":"'Productos adicionales'!H170","v":0},"",null,null,""]
[{"$error":"#REF!"},{"$f":"'Productos adicionales'!B171","v":"2076505"},{"$f":"'Productos adicionales'!C171","v":"Broca C+ 3/4\"/12\" SPX-T"},{"$f":"'Productos adicionales'!D171","v":"3/4\""},{"$f":"'Productos adicionales'!E171","v":"12\""},{"$f":"'Productos adicionales'!F171","v":"Para perforadora DD30"},{"$f":"'Productos adicionales'!G171","v":1},{"$f":"'Productos adicionales'!H171","v":0},"",null,null,""]
[{"$error":"#REF!"},{"$f":"'Productos adicionales'!B172","v":"2076508"},{"$f":"'Productos adicionales'!C172","v":"Broca C+ 22/300 SPX-T"},{"$f":"'Productos adicionales'!D172","v":"22mm"},{"$f":"'Productos adicionales'!E172","v":"30cm"},{"$f":"'Productos adicionales'!F172","v":"Para perforadora DD30"},{"$f":"'Productos adicionales'!G172","v":1},{"$f":"'Productos adicionales'!H172","v":0},"",null,null,""]
[{"$error":"#REF!"},{"$f":"'Productos adicionales'!B173","v":"2076511"},{"$f":"'Productos adicionales'!C173","v":"Broca C+ 1\"/12\" SPX-T"},{"$f":"'Productos adicionales'!D173","v":"1\""},{"$f":"'Productos adicionales'!E173","v":"12\""},{"$f":"'Productos adicionales'!F173","v":"Para perforadora DD30"},{"$f":"'Productos adicionales'!G173","v":1},{"$f":"'Productos adicionales'!H173","v":0},"",null,null,""]
[{"$error":"#REF!"},{"$f":"'Productos adicionales'!B174","v":"2076513"},{"$f":"'Productos adicionales'!C174","v":"Broca C+ 1-1/8\"/12\" SPX-T"},{"$f":"'Productos adicionales'!D174","v":"1 1/8\""},{"$f":"'Productos adicionales'!E174","v":"12\""},{"$f":"'Productos adicionales'!F174","v":"Para perforadora DD30"},{"$f":"'Productos adicionales'!G174","v":1},{"$f":"'Productos adicionales'!H174","v":0},"",null,null,""]
[{"$error":"#REF!"},{"$f":"'Productos adicionales'!B189","v":"Discos para sierra circular de madera"},{"$f":"'Productos adicionales'!C189","v":0},{"$f":"'Productos adicionales'!D189","v":0},{"$f":"'Productos adicionales'!E189","v":0},{"$f":"'Productos adicionales'!F189","v":0},{"$f":"'Productos adicionales'!G189","v":0},{"$f":"'Productos adicionales'!H189","v":0},"",null,null,""]
[{"$error":"#REF!"},{"$f":"'Productos adicionales'!B190","v":"Ítem #"},{"$f":"'Productos adicionales'!C190","v":"Descripción"},{"$f":"'Productos adicionales'!D190","v":"Diámetro"},{"$f":"'Productos adicionales'!E190","v":"Longitud utilizable"},{"$f":"'Productos adicionales'!F190","v":"# dientes"},{"$f":"'Productos adicionales'!G190","v":"Tamaño embalaje"},{"$f":"'Productos adicionales'!H190","v":"Cantidad a ordenar"},{"$error":"#VALUE!"},null,null,""]
[{"$error":"#REF!"},{"$f":"'Productos adicionales'!B191","v":2037951},{"$f":"'Productos adicionales'!C191","v":"Hoja sierra circ. SCB WU 165x20 z24 A"},{"$f":"'Productos adicionales'!D191","v":"165mm"},{"$f":"'Productos adicionales'!E191","v":"20mm"},{"$f":"'Productos adicionales'!F191","v":24},{"$f":"'Productos adicionales'!G191","v":1},{"$f":"'Productos adicionales'!H191","v":0},"",null,null,""]
[{"$error":"#REF!"},{"$f":"'Productos adicionales'!B193","v":"Copas diamantadas de desbaste"},{"$f":"'Productos adicionales'!C193","v":0},{"$f":"'Productos adicionales'!D193","v":0},{"$f":"'Productos adicionales'!E193","v":0},{"$f":"'Productos adicionales'!F193","v":0},{"$f":"'Productos adicionales'!G193","v":0},{"$f":"'Productos adicionales'!H193","v":0},"",null,null,""]
[{"$error":"#REF!"},{"$f":"'Productos adicionales'!B194","v":"Ítem #"},{"$f":"'Productos adicionales'!C194","v":"Descripción"},{"$f":"'Productos adicionales'!D194","v":"Diámetro"},{"$f":"'Productos adicionales'!E194","v":"Equipo"},{"$f":"'Productos adicionales'!F194","v":"Denominacion"},{"$f":"'Productos adicionales'!G194","v":"Tamaño embalaje"},{"$f":"'Productos adicionales'!H194","v":"Cantidad a ordenar"},{"$error":"#VALUE!"},null,null,""]
[{"$error":"#REF!"},{"$f":"'Productos adicionales'!B195","v":"2163567"},{"$f":"'Productos adicionales'!C195","v":"Diamond cup 150/6\" SPX  univ"},{"$f":"'Productos adicionales'!D195","v":"6\"(150mm)"},{"$f":"'Productos adicionales'!E195","v":"DG150"},{"$f":"'Productos adicionales'!F195","v":"Universal"},{"$f":"'Productos adicionales'!G195","v":1},{"$f":"'Productos adicionales'!H195","v":0},"",null,null,""]
[{"$error":"#REF!"},{"$f":"'Productos adicionales'!B196","v":"2163568"},{"$f":"'Productos adicionales'!C196","v":"Diamond Cup 150/6\" SPX (6) univ"},{"$f":"'Productos adicionales'!D196","v":"6\"(150mm)"},{"$f":"'Productos adicionales'!E196","v":"DG150"},{"$f":"'Productos adicionales'!F196","v":"Universal"},{"$f":"'Productos adicionales'!G196","v":6},{"$f":"'Productos adicionales'!H196","v":0},"",null,null,""]
[{"$error":"#REF!"},{"$f":"'Productos adicionales'!B197","v":"2163722"},{"$f":"'Productos adicionales'!C197","v":"Vaso diamantado 150/6\" SPX acabado fino"},{"$f":"'Productos adicionales'!D197","v":"6\"(150mm)"},{"$f":"'Productos adicionales'!E197","v":"DG150"},{"$f":"'Productos adicionales'!F197","v":"Acabado fino"},{"$f":"'Productos adicionales'!G197","v":1},{"$f":"'Productos adicionales'!H197","v":0},"",null,null,""]
[{"$error":"#REF!"},{"$f":"'Productos adicionales'!B198","v":360527},{"$f":"'Productos adicionales'!C198","v":"Vaso diamantado DG-CW 180/22.2/SPx2"},{"$f":"'Productos adicionales'!D198","v":"7\"(180mm)"},{"$f":"'Productos adicionales'!E198","v":"Esmeril 7\""},{"$f":"'Productos adicionales'!F198","v":"Super performance"},{"$f":"'Productos adicionales'!G198","v":2},{"$f":"'Productos adicionales'!H198","v":0},"",null,null,""]
[{"$error":"#REF!"},{"$f":"'Productos adicionales'!B199","v":2118428},{"$f":"'Productos adicionales'!C199","v":"Vaso diamantado DG-CW 100/22.2 P (2)"},{"$f":"'Productos adicionales'!D199","v":"4\"(100mm)"},{"$f":"'Productos adicionales'!E199","v":"Esmeril 4\"-5\""},{"$f":"'Productos adicionales'!F199","v":"Performance"},{"$f":"'Productos adicionales'!G199","v":2},{"$f":"'Productos adicionales'!H199","v":0},"",null,null,""]
[{"$error":"#REF!"},{"$f":"'Productos adicionales'!B200","v":"2163738"},{"$f":"'Productos adicionales'!C200","v":"Vaso diamantado DG-CW 115/22.2 P (2)"},{"$f":"'Productos adicionales'!D200","v":"4.5\"(115mm)"},{"$f":"'Productos adicionales'!E200","v":"Esmeril 4.5\"-5\""},{"$f":"'Productos adicionales'!F200","v":"Performance"},{"$f":"'Productos adicionales'!G200","v":2},{"$f":"'Productos adicionales'!H200","v":0},"",null,null,""]
[{"$error":"#REF!"},{"$f":"'Productos adicionales'!B201","v":"2163740"},{"$f":"'Productos adicionales'!C201","v":"Vaso diamantado DG-CW 180/22.2 P (2)"},{"$f":"'Productos adicionales'!D201","v":"7\"(180mm)"},{"$f":"'Productos adicionales'!E201","v":"Esmeril 7\""},{"$f":"'Productos adicionales'!F201","v":"Performance"},{"$f":"'Productos adicionales'!G201","v":2},{"$f":"'Productos adicionales'!H201","v":0},"",null,null,""]
[{"$error":"#REF!"},{"$f":"'Productos adicionales'!B204","v":"Ítem #"},{"$f":"'Productos adicionales'!C204","v":"Descripción"},{"$f":"'Productos adicionales'!D204","v":"Diámetro"},{"$f":"'Productos adicionales'!E204","v":"Eje"},{"$f":"'Productos adicionales'!F204","v":"Denominacion"},{"$f":"'Productos adicionales'!G204","v":"Tamaño embalaje"},{"$f":"'Productos adicionales'!H204","v":"Cantidad a ordenar"},{"$error":"#VALUE!"},null,null,""]
[{"$error":"#REF!"},{"$f":"'Productos adicionales'!B205","v":436735},{"$f":"'Productos adicionales'!C205","v":"Disco de corte AC-D 14\"x3/32\"x1\" ST UP"},{"$f":"'Productos adicionales'!D205","v":"14\""},{"$f":"'Productos adicionales'!E205","v":"3/32\""},{"$f":"'Productos adicionales'!F205","v":"Estandar"},{"$f":"'Productos adicionales'!G205","v":0},{"$f":"'Productos adicionales'!H205","v":0},"",null,null,""]
[{"$error":"#REF!"},{"$f":"'Productos adicionales'!#REF!","v":{"$error":"#REF!"}},{"$f":"'Productos adicionales'!#REF!","v":{"$error":"#REF!"}},{"$f":"'Productos adicionales'!#REF!","v":{"$error":"#REF!"}},{"$f":"'Productos adicionales'!#REF!","v":{"$error":"#REF!"}},{"$f":"'Productos adicionales'!#REF!","v":{"$error":"#REF!"}},{"$f":"'Productos adicionales'!#REF!","v":{"$error":"#REF!"}},{"$f":"'Productos adicionales'!#REF!","v":{"$error":"#REF!"}},{"$error":"#REF!"},null,null,""]
[{"$error":"#REF!"},{"$f":"'Productos adicionales'!#REF!","v":{"$error":"#REF!"}},{"$f":"'Productos adicionales'!#REF!","v":{"$error":"#REF!"}},{"$f":"'Productos adicionales'!#REF!","v":{"$error":"#REF!"}},{"$f":"'Productos adicionales'!#REF!","v":{"$error":"#REF!"}},{"$f":"'Productos adicionales'!#REF!","v":{"$error":"#REF!"}},{"$f":"'Productos adicionales'!#REF!","v":{"$error":"#REF!"}},{"$f":"'Productos adicionales'!#REF!","v":{"$error":"#REF!"}},{"$error":"#REF!"},null,null,""]
[{"$error":"#REF!"},{"$f":"'Productos adicionales'!B175","v":"2199625"},{"$f":"'Productos adicionales'!C175","v":"Broca B 40/320 SP-L"},{"$f":"'Productos adicionales'!D175","v":"40mm"},{"$f":"'Productos adicionales'!E175","v":"32cm"},{"$f":"'Productos adicionales'!F175","v":"Para perforadora D120"},{"$f":"'Productos adicionales'!G175","v":1},{"$f":"'Productos adicionales'!H175","v":0},"",null,null,""]
[{"$error":"#REF!"},{"$f":"'Productos adicionales'!B176","v":"2199631"},{"$f":"'Productos adicionales'!C176","v":"Broca B 47/320 SP-L"},{"$f":"'Productos adicionales'!D176","v":"47mm"},{"$f":"'Productos adicionales'!E176","v":"32cm"},{"$f":"'Productos adicionales'!F176","v":"Para perforadora D120"},{"$f":"'Productos adicionales'!G176","v":1},{"$f":"'Productos adicionales'!H176","v":0},"",null,null,""]
[{"$error":"#REF!"},{"$f":"'Productos adicionales'!B177","v":"2185562"},{"$f":"'Productos adicionales'!C177","v":"Broca B 52/320 SP-L"},{"$f":"'Productos adicionales'!D177","v":"52mm"},{"$f":"'Productos adicionales'!E177","v":"32cm"},{"$f":"'Productos adicionales'!F177","v":"Para perforadora D120"},{"$f":"'Productos adicionales'!G177","v":1},{"$f":"'Productos adicionales'!H177","v":0},"",null,null,""]
[{"$error":"#REF!"},{"$f":"'Productos adicionales'!B178","v":"2185564"},{"$f":"'Productos adicionales'!C178","v":"Broca B 62/320 SP-L"},{"$f":"'Productos adicionales'!D178","v":"62mm"},{"$f":"'Productos adicionales'!E178","v":"32cm"},{"$f":"'Productos adicionales'!F178","v":"Para perforadora D120"},{"$f":"'Productos adicionales'!G178","v":1},{"$f":"'Productos adicionales'!H178","v":0},"",null,null,""]
[{"$error":"#REF!"},{"$f":"'Productos adicionales'!B179","v":"2185565"},{"$f":"'Productos adicionales'!C179","v":"Broca B 67/320 SP-L"},{"$f":"'Productos adicionales'!D179","v":"67mm"},{"$f":"'Productos adicionales'!E179","v":"32cm"},{"$f":"'Productos adicionales'!F179","v":"Para perforadora D120"},{"$f":"'Productos adicionales'!G179","v":1},{"$f":"'Productos adicionales'!H179","v":0},"",null,null,""]
[{"$error":"#REF!"},{"$f":"'Productos adicionales'!B180","v":"2185566"},{"$f":"'Productos adicionales'!C180","v":"Broca B 72/320 SP-L"},{"$f":"'Productos adicionales'!D180","v":"72mm"},{"$f":"'Productos adicionales'!E180","v":"32cm"},{"$f":"'Productos adicionales'!F180","v":"Para perforadora D120"},{"$f":"'Productos adicionales'!G180","v":1},{"$f":"'Productos adicionales'!H180","v":0},"",null,null,""]
[{"$error":"#REF!"},{"$f":"'Productos adicionales'!B181","v":"2185567"},{"$f":"'Productos adicionales'!C181","v":"Broca B 77/320 SP-L"},{"$f":"'Productos adicionales'!D181","v":"77mm"},{"$f":"'Productos adicionales'!E181","v":"32cm"},{"$f":"'Productos adicionales'!F181","v":"Para perforadora D120"},{"$f":"'Productos adicionales'!G181","v":1},{"$f":"'Productos adicionales'!H181","v":0},"",null,null,""]
[{"$error":"#REF!"},{"$f":"'Productos adicionales'!B182","v":"2185568"},{"$f":"'Productos adicionales'!C182","v":"Broca B 82/320 SP-L"},{"$f":"'Productos adicionales'!D182","v":"82mm"},{"$f":"'Productos adicionales'!E182","v":"32cm"},{"$f":"'Productos adicionales'!F182","v":"Para perforadora D120"},{"$f":"'Productos adicionales'!G182","v":1},{"$f":"'Productos adicionales'!H182","v":0},"",null,null,""]
[{"$error":"#REF!"},{"$f":"'Productos adicionales'!B183","v":"2185570"},{"$f":"'Productos adicionales'!C183","v":"Broca B 92/320 SP-L"},{"$f":"'Productos adicionales'!D183","v":"92mm"},{"$f":"'Productos adicionales'!E183","v":"32cm"},{"$f":"'Productos adicionales'!F183","v":"Para perforadora D120"},{"$f":"'Productos adicionales'!G183","v":1},{"$f":"'Productos adicionales'!H183","v":0},"",null,null,""]
[{"$error":"#REF!"},{"$f":"'Productos adicionales'!B184","v":"2185571"},{"$f":"'Productos adicionales'!C184","v":"Broca B 102/320 SP-L"},{"$f":"'Productos adicionales'!D184","v":"102mm"},{"$f":"'Productos adicionales'!E184","v":"32cm"},{"$f":"'Productos adicionales'!F184","v":"Para perforadora D120"},{"$f":"'Productos adicionales'!G184","v":1},{"$f":"'Productos adicionales'!H184","v":0},"",null,null,""]
[{"$error":"#REF!"},{"$f":"'Productos adicionales'!B185","v":"2185573"},{"$f":"'Productos adicionales'!C185","v":"Broca B 112/320 SP-L"},{"$f":"'Productos adicionales'!D185","v":"112mm"},{"$f":"'Productos adicionales'!E185","v":"32cm"},{"$f":"'Productos adicionales'!F185","v":"Para perforadora D120"},{"$f":"'Productos adicionales'!G185","v":1},{"$f":"'Productos adicionales'!H185","v":0},"",null,null,""]
[{"$error":"#REF!"},{"$f":"'Productos adicionales'!B186","v":"2185574"},{"$f":"'Productos adicionales'!C186","v":"Broca B 122/320 SP-L"},{"$f":"'Productos adicionales'!D186","v":"122mm"},{"$f":"'Productos adicionales'!E186","v":"32cm"},{"$f":"'Productos adicionales'!F186","v":"Para perforadora D120"},{"$f":"'Productos adicionales'!G186","v":1},{"$f":"'Productos adicionales'!H186","v":0},"",null,null,""]
[{"$error":"#REF!"},{"$f":"'Productos adicionales'!B187","v":"2185575"},{"$f":"'Productos adicionales'!C187","v":"Broca B 132/320 SP-L"},{"$f":"'Productos adicionales'!D187","v":"132mm"},{"$f":"'Productos adicionales'!E187","v":"32cm"},{"$f":"'Productos adicionales'!F187","v":"Para perforadora D120"},{"$f":"'Productos adicionales'!G187","v":1},{"$f":"'Productos adicionales'!H187","v":0},"",null,null,""]
[{"$error":"#REF!"},{"$f":"'Productos adicionales'!B208","v":"Ítem #"},{"$f":"'Productos adicionales'!C208","v":"Descripción"},{"$f":"'Productos adicionales'!D208","v":"Diámetro"},{"$f":"'Productos adicionales'!E208","v":"Dientes x pulgada"},{"$f":"'Productos adicionales'!F208","v":"Denominacion"},{"$f":"'Productos adicionales'!G208","v":"Tamaño embalaje"},{"$f":"'Productos adicionales'!H208","v":"Cantidad a ordenar"},{"$error":"#VALUE!"},null,null,""]
[{"$error":"#REF!"},{"$f":"'Productos adicionales'!B209","v":2099412},{"$f":"'Productos adicionales'!C209","v":"Hoja sierra sable WD 15 6 (5)"},{"$f":"'Productos adicionales'!D209","v":"15cm"},{"$f":"'Productos adicionales'!E209","v":"6TPI"},{"$f":"'Productos adicionales'!F209","v":"Madera premium"},{"$f":"'Productos adicionales'!G209","v":5},{"$f":"'Productos adicionales'!H209","v":0},"",null,null,""]
[{"$error":"#REF!"},{"$f":"'Productos adicionales'!B210","v":2099414},{"$f":"'Productos adicionales'!C210","v":"Hoja sierra sable WD 30 6 (5)"},{"$f":"'Productos adicionales'!D210","v":"30cm"},{"$f":"'Productos adicionales'!E210","v":"6TPI"},{"$f":"'Productos adicionales'!F210","v":"Madera premium"},{"$f":"'Productos adicionales'!G210","v":5},{"$f":"'Productos adicionales'!H210","v":0},"",null,null,""]
[{"$error":"#REF!"},{"$f":"'Productos adicionales'!B211","v":2099415},{"$f":"'Productos adicionales'!C211","v":"Hoja sierra sable WB 15 6 (5)"},{"$f":"'Productos adicionales'!D211","v":"15cm"},{"$f":"'Productos adicionales'!E211","v":"6TPI"},{"$f":"'Productos adicionales'!F211","v":"Madera bvasico"},{"$f":"'Productos adicionales'!G211","v":5},{"$f":"'Productos adicionales'!H211","v":0},"",null,null,""]
[{"$error":"#REF!"},{"$f":"'Productos adicionales'!B212","v":0},{"$f":"'Productos adicionales'!C212","v":0},{"$f":"'Productos adicionales'!D212","v":0},{"$f":"'Productos adicionales'!E212","v":0},{"$f":"'Productos adicionales'!F212","v":0},{"$f":"'Productos adicionales'!G212","v":0},{"$f":"'Productos adicionales'!H212","v":0},"",null,null,""]
[{"$error":"#REF!"},{"$f":"'Productos adicionales'!B213","v":0},{"$f":"'Productos adicionales'!C213","v":0},{"$f":"'Productos adicionales'!D213","v":0},{"$f":"'Productos adicionales'!E213","v":0},{"$f":"'Productos adicionales'!F213","v":0},{"$f":"'Productos adicionales'!G213","v":0},{"$f":"'Productos adicionales'!H213","v":0},"",null,null,""]
[{"$error":"#REF!"},{"$f":"'Productos adicionales'!B214","v":0},{"$f":"'Productos adicionales'!C214","v":0},{"$f":"'Productos adicionales'!D214","v":0},{"$f":"'Productos adicionales'!E214","v":0},{"$f":"'Productos adicionales'!F214","v":0},{"$f":"'Productos adicionales'!G214","v":0},{"$f":"'Productos adicionales'!H214","v":0},"",null,null,""]
[{"$error":"#REF!"},{"$f":"'Productos adicionales'!B215","v":0},{"$f":"'Productos adicionales'!C215","v":0},{"$f":"'Productos adicionales'!D215","v":0},{"$f":"'Productos adicionales'!E215","v":0},{"$f":"'Productos adicionales'!F215","v":0},{"$f":"'Productos adicionales'!G215","v":0},{"$f":"'Productos adicionales'!H215","v":0},"",null,null,""]
[{"$error":"#REF!"},{"$f":"'Productos adicionales'!B216","v":0},{"$f":"'Productos adicionales'!C216","v":0},{"$f":"'Productos adicionales'!D216","v":0},{"$f":"'Productos adicionales'!E216","v":0},{"$f":"'Productos adicionales'!F216","v":0},{"$f":"'Productos adicionales'!G216","v":0},{"$f":"'Productos adicionales'!H216","v":0},"",null,null,""]
[{"$error":"#REF!"},{"$f":"'Productos adicionales'!B217","v":0},{"$f":"'Productos adicionales'!C217","v":0},{"$f":"'Productos adicionales'!D217","v":0},{"$f":"'Productos adicionales'!E217","v":0},{"$f":"'Productos adicionales'!F217","v":0},{"$f":"'Productos adicionales'!G217","v":0},{"$f":"'Productos adicionales'!H217","v":0},"",null,null,""]
[{"$error":"#REF!"},{"$f":"'Productos adicionales'!B218","v":0},{"$f":"'Productos adicionales'!C218","v":0},{"$f":"'Productos adicionales'!D218","v":0},{"$f":"'Productos adicionales'!E218","v":0},{"$f":"'Productos adicionales'!F218","v":0},{"$f":"'Productos adicionales'!G218","v":0},{"$f":"'Productos adicionales'!H218","v":0},"",null,null,""]
[{"$error":"#REF!"},{"$f":"'Productos adicionales'!B219","v":0},{"$f":"'Productos adicionales'!C219","v":0},{"$f":"'Productos adicionales'!D219","v":0},{"$f":"'Productos adicionales'!E219","v":0},{"$f":"'Productos adicionales'!F219","v":0},{"$f":"'Productos adicionales'!G219","v":0},{"$f":"'Productos adicionales'!H219","v":0},"",null,null,""]
[{"$error":"#REF!"},{"$f":"'Productos adicionales'!B220","v":0},{"$f":"'Productos adicionales'!C220","v":0},{"$f":"'Productos adicionales'!D220","v":0},{"$f":"'Productos adicionales'!E220","v":0},{"$f":"'Productos adicionales'!F220","v":0},{"$f":"'Productos adicionales'!G220","v":0},{"$f":"'Productos adicionales'!H220","v":0},"",null,null,""]
[{"$error":"#REF!"},{"$f":"'Productos adicionales'!B221","v":0},{"$f":"'Productos adicionales'!C221","v":0},{"$f":"'Productos adicionales'!D221","v":0},{"$f":"'Productos adicionales'!E221","v":0},{"$f":"'Productos adicionales'!F221","v":0},{"$f":"'Productos adicionales'!G221","v":0},{"$f":"'Productos adicionales'!H221","v":0},"",null,null,""]
[{"$error":"#REF!"},{"$f":"'Productos adicionales'!B222","v":0},{"$f":"'Productos adicionales'!C222","v":0},{"$f":"'Productos adicionales'!D222","v":0},{"$f":"'Productos adicionales'!E222","v":0},{"$f":"'Productos adicionales'!F222","v":0},{"$f":"'Productos adicionales'!G222","v":0},{"$f":"'Productos adicionales'!H222","v":0},"",null,null,""]
[{"$error":"#REF!"},{"$f":"'Productos adicionales'!B223","v":0},{"$f":"'Productos adicionales'!C223","v":0},{"$f":"'Productos adicionales'!D223","v":0},{"$f":"'Productos adicionales'!E223","v":0},{"$f":"'Productos adicionales'!F223","v":0},{"$f":"'Productos adicionales'!G223","v":0},{"$f":"'Productos adicionales'!H223","v":0},"",null,null,""]
[{"$error":"#REF!"},{"$f":"'Productos adicionales'!B224","v":0},{"$f":"'Productos adicionales'!C224","v":0},{"$f":"'Productos adicionales'!D224","v":0},{"$f":"'Productos adicionales'!E224","v":0},{"$f":"'Productos adicionales'!F224","v":0},{"$f":"'Productos adicionales'!G224","v":0},{"$f":"'Productos adicionales'!H224","v":0},{"$f":"IF(CEILING(H493,G493)=0,\"\",CEILING(H493,G493))","v":""},null,null,""]
[{"$error":"#REF!"},{"$f":"'Productos adicionales'!B225","v":0},{"$f":"'Productos adicionales'!C225","v":0},{"$f":"'Productos adicionales'!D225","v":0},{"$f":"'Productos adicionales'!E225","v":0},{"$f":"'Productos adicionales'!F225","v":0},{"$f":"'Productos adicionales'!G225","v":0},{"$f":"'Productos adicionales'!H225","v":0},"",null,null,""]
[{"$error":"#REF!"},{"$f":"'Productos adicionales'!B226","v":0},{"$f":"'Productos adicionales'!C226","v":0},{"$f":"'Productos adicionales'!D226","v":0},{"$f":"'Productos adicionales'!E226","v":0},{"$f":"'Productos adicionales'!F226","v":0},{"$f":"'Productos adicionales'!G226","v":0},{"$f":"'Productos adicionales'!H226","v":0},"",null,null,""]
[{"$error":"#REF!"},{"$f":"'Productos adicionales'!B227","v":0},{"$f":"'Productos adicionales'!C227","v":0},{"$f":"'Productos adicionales'!D227","v":0},{"$f":"'Productos adicionales'!E227","v":0},{"$f":"'Productos adicionales'!F227","v":0},{"$f":"'Productos adicionales'!G227","v":0},{"$f":"'Productos adicionales'!H227","v":0},"",null,null,""]
[{"$error":"#REF!"},{"$f":"'Productos adicionales'!B228","v":0},{"$f":"'Productos adicionales'!C228","v":0},{"$f":"'Productos adicionales'!D228","v":0},{"$f":"'Productos adicionales'!E228","v":0},{"$f":"'Productos adicionales'!F228","v":0},{"$f":"'Productos adicionales'!G228","v":0},{"$f":"'Productos adicionales'!H228","v":0},""]
[{"$error":"#REF!"},{"$f":"'Productos adicionales'!B229","v":0},{"$f":"'Productos adicionales'!C229","v":0},{"$f":"'Productos adicionales'!D229","v":0},{"$f":"'Productos adicionales'!E229","v":0},{"$f":"'Productos adicionales'!F229","v":0},{"$f":"'Productos adicionales'!G229","v":0},{"$f":"'Productos adicionales'!H229","v":0},""]
[{"$error":"#REF!"},{"$f":"'Productos adicionales'!B230","v":0},{"$f":"'Productos adicionales'!C230","v":0},{"$f":"'Productos adicionales'!D230","v":0},{"$f":"'Productos adicionales'!E230","v":0},{"$f":"'Productos adicionales'!F230","v":0},{"$f":"'Productos adicionales'!G230","v":0},{"$f":"'Productos adicionales'!H230","v":0},""]
[{"$error":"#REF!"},{"$f":"'Productos adicionales'!B231","v":0},{"$f":"'Productos adicionales'!C231","v":0},{"$f":"'Productos adicionales'!D231","v":0},{"$f":"'Productos adicionales'!E231","v":0},{"$f":"'Productos adicionales'!F231","v":0},{"$f":"'Productos adicionales'!G231","v":0},{"$f":"'Productos adicionales'!H231","v":0},""]
[{"$error":"#REF!"},{"$f":"'Productos adicionales'!B232","v":0},{"$f":"'Productos adicionales'!C232","v":0},{"$f":"'Productos adicionales'!D232","v":0},{"$f":"'Productos adicionales'!E232","v":0},{"$f":"'Productos adicionales'!F232","v":0},{"$f":"'Productos adicionales'!G232","v":0},{"$f":"'Productos adicionales'!H232","v":0},""]
[{"$error":"#REF!"},{"$f":"'Productos adicionales'!B233","v":0},{"$f":"'Productos adicionales'!C233","v":0},{"$f":"'Productos adicionales'!D233","v":0},{"$f":"'Productos adicionales'!E233","v":0},{"$f":"'Productos adicionales'!F233","v":0},{"$f":"'Productos adicionales'!G233","v":0},{"$f":"'Productos adicionales'!H233","v":0},""]
[{"$error":"#REF!"},{"$f":"'Productos adicionales'!B234","v":0},{"$f":"'Productos adicionales'!C234","v":0},{"$f":"'Productos adicionales'!D234","v":0},{"$f":"'Productos adicionales'!E234","v":0},{"$f":"'Productos adicionales'!F234","v":0},{"$f":"'Productos adicionales'!G234","v":0},{"$f":"'Productos adicionales'!H234","v":0},""]
[{"$error":"#REF!"},{"$f":"'Productos adicionales'!B235","v":0},{"$f":"'Productos adicionales'!C235","v":0},{"$f":"'Productos adicionales'!D235","v":0},{"$f":"'Productos adicionales'!E235","v":0},{"$f":"'Productos adicionales'!F235","v":0},{"$f":"'Productos adicionales'!G235","v":0},{"$f":"'Productos adicionales'!H235","v":0},""]
[{"$error":"#REF!"},{"$f":"'Productos adicionales'!B236","v":0},{"$f":"'Productos adicionales'!C236","v":0},{"$f":"'Productos adicionales'!D236","v":0},{"$f":"'Productos adicionales'!E236","v":0},{"$f":"'Productos adicionales'!F236","v":0},{"$f":"'Productos adicionales'!G236","v":0},{"$f":"'Productos adicionales'!H236","v":0},""]
[{"$error":"#REF!"},{"$f":"'Productos adicionales'!B237","v":0},{"$f":"'Productos adicionales'!C237","v":0},{"$f":"'Productos adicionales'!D237","v":0},{"$f":"'Productos adicionales'!E237","v":0},{"$f":"'Productos adicionales'!F237","v":0},{"$f":"'Productos adicionales'!G237","v":0},{"$f":"'Productos adicionales'!H237","v":0},""]
[{"$f":"A506+1","v":{"$error":"#REF!"}},{"$f":"'Productos adicionales'!B238","v":0},{"$f":"'Productos adicionales'!C238","v":0},{"$f":"'Productos adicionales'!D238","v":0},{"$f":"'Productos adicionales'!E238","v":0},{"$f":"'Productos adicionales'!F238","v":0},{"$f":"'Productos adicionales'!G238","v":0},{"$f":"'Productos adicionales'!H238","v":0},""]
[{"$error":"#REF!"},{"$f":"'Productos adicionales'!B239","v":0},{"$f":"'Productos adicionales'!C239","v":0},{"$f":"'Productos adicionales'!D239","v":0},{"$f":"'Productos adicionales'!E239","v":0},{"$f":"'Productos adicionales'!F239","v":0},{"$f":"'Productos adicionales'!G239","v":0},{"$f":"'Productos adicionales'!H239","v":0},""]
[{"$error":"#REF!"},{"$f":"'Productos adicionales'!B240","v":0},{"$f":"'Productos adicionales'!C240","v":0},{"$f":"'Productos adicionales'!D240","v":0},{"$f":"'Productos adicionales'!E240","v":0},{"$f":"'Productos adicionales'!F240","v":0},{"$f":"'Productos adicionales'!G240","v":0},{"$f":"'Productos adicionales'!H240","v":0},""]
[{"$f":"A509+1","v":{"$error":"#REF!"}},{"$f":"'Productos adicionales'!B241","v":0},{"$f":"'Productos adicionales'!C241","v":0},{"$f":"'Productos adicionales'!D241","v":0},{"$f":"'Productos adicionales'!E241","v":0},{"$f":"'Productos adicionales'!F241","v":0},{"$f":"'Productos adicionales'!G241","v":0},{"$f":"'Productos adicionales'!H241","v":0},""]
[{"$f":"A510+1","v":{"$error":"#REF!"}},{"$f":"'Productos adicionales'!B242","v":0},{"$f":"'Productos adicionales'!C242","v":0},{"$f":"'Productos adicionales'!D242","v":0},{"$f":"'Productos adicionales'!E242","v":0},{"$f":"'Productos adicionales'!F242","v":0},{"$f":"'Productos adicionales'!G242","v":0},{"$f":"'Productos adicionales'!H242","v":0},""]

{"sheet":"Productos adicionales","index":4,"n_rows":307,"n_cols":10,"rows_kept":307,"cut":false,"hidden":false,"merged":[[5,1,5,6]]}
[]
[]
[]
[null,"PLANTILLA DE PEDIDO RÁPIDO"]
[null,"PRODUCTOS ADICIONALES"]
[null,"MECÁNICO ELÉCTRICO"]
[]
[null,"Cinceles"]
[null,"Ítem #","Descripción","Tipo de punta","Longitud utilizable","Encastre","Tamaño embalaje","Cantidad a ordenar","Cantidad ajustada a embalaje","Código de barras"]
[null,2126923,"TE-H28P SM-FM40 SET","Juego","40cm","H28",1,null,{"$f":"IF(CEILING(H10,G10)=0,\"\",CEILING(H10,G10))","v":""}]
[null,2126924,"TE-H28P SM-FM50 SET","Juego","50cm","H28",1,null,{"$f":"IF(CEILING(H11,G11)=0,\"\",CEILING(H11,G11))","v":""}]
[null,417826,"Cincel plano TE-H28P FM 40","Plano","40cm","H28",1,null,{"$f":"IF(CEILING(H12,G12)=0,\"\",CEILING(H12,G12))","v":""}]
[null,417827,"Cincel plano TE-H28P FM 50","Plano","50cm","H28",1,null,""]
[null,417834,"Cincel plano TE-H28P FM 40 MP4","Plano","40cm","H28",4,null,""]
[null,417835,"Cincel plano TE-H28P FM 50 MP4","Plano","50cm","H28",4,null,""]
[null,2126919,"Cincel puntero TE-H28P SM40 Wave","Puntero","40cm","H28",1,null,""]
[null,2126920,"Cincel puntero TE-H28P SM50 Wave","Puntero","50cm","H28",1,null,""]
[null,2126921,"Cincel puntero TE-H28P SM40 Wave MP4","Puntero","40cm","H28",4,null,""]
[null,2126922,"Cincel puntero TE-H28P SM50 Wave MP4","Puntero","50cm","H28",4,null,""]
[null,417828,"Cincel espátula TE-H28P SPM 8/40","Puntero","40cm","H28",1,null,""]
[null,2017604,"Cincel espátula TE-H28P SPMA 125/38","Espátula","38cm","H28",1,null,""]
[null,"2168874","Cincel TE-SPX FM 36 cincel plano","Plano","36cm","S",1,null,""]
[null,2168875,"Cincel plano TE-SPX FM 43","Plano","43cm","S",1,null,""]
[null,2168876,"Cincel TE-SPX FM 50 cincel plano","Plano","50cm","S",1,null,""]
[null,2168877,"Cincel TE-SPX FM 70 cincel plano","Plano","70cm","S",1,null,""]
[null,"2168870","Cincel TE-SPX SM 36 cincel puntero","Puntero","36cm","S",1,null,""]
[null,2168871,"Cincel puntero TE-SPX SM 43","Puntero","43cm","S",1,null,""]
[null,"2168872","Cincel TE-SPX SM 50 cincel puntero","Puntero","50cm","S",1,null,""]
[null,"2168873","Cincel TE-SPX SM 70 cincel puntero","Puntero","70cm","S",1,null,""]
[null,"2065559","Cincel puntero TE SP SM 36 MP4","Puntero","36cm","S",4,null,""]
[null,2168888,"Cincel puntero TE-SPX SM 43 MP4","Puntero","43cm","S",4,null,""]
[null,"2168889","Cincel TE-SPX SM 50 MP4 cincel puntero","Puntero","50cm","S",4,null,""]
[null,"2168890","Cincel TE-SPX FM 36 MP4","Plano","36cm","S",4,null,""]
[null,2168878,"Cincel TE-SPX SPM 5/36 cincel espátula","Espatula","36cm","S",1,null,""]
[null,2168885,"Cincel TE-SPX SPM 8/50 cincel espátula","Espatula","50cm","S",1,null,""]
[null,2168886,"Cincel TE-SPX SPM 12/50 cincel espátula","Espatula","50cm","S",1,null,""]
[null,2168894,"Cincel TE-SPX SM-FM 36 juego","Plano","36cm","S",1,null,""]
[null,2168895,"Cincel TE-SPX SM-FM 50 juego","Plano","50cm","S",1,null,""]
[null,1829,"Cabeza de bujarda TP-SKHM 40","Bujarda","40cm","S",1,null,""]
[null,312056,"Porta varilla TE-S-RD 5/8\"",null,null,"S",1,null,""]
[null,312057,"Porta varilla TE-S-RD 3/4\"",null,null,"S",1,null,""]
[]
[null,"Brocas encastre SDS-MAX (Y)"]
[null,"Ítem #","Descripción","Diámetro","Longitud utilizable","Denomicacion","Tamaño embalaje","Cantidad a ordenar","Cantidad ajustada a embalaje","Código de barras"]
[null,206509,"Broca para taladro TE-YX 1/2\"-14\"","1/2\"","14\"","4 gavilanes",1,null,{"$f":"IF(CEILING(H45,G45)=0,\"\",CEILING(H45,G45))","v":""}]
[null,206510,"Broca para taladro TE-YX 1/2\"-22\"","1/2\"","22\"","4 gavilanes",1,null,""]
[null,206511,"Broca para taladro TE-YX 9/16\"-14\"","9/16\"","14\"","4 gavilanes",1,null,""]
[null,206512,"Broca para taladro TE-YX 9/16\"-22\"","9/16\"","22\"","4 gavilanes",1,null,""]
[null,206513,"Broca para taladro TE-YX 5/8\"-14\"","5/8\"","14\"","4 gavilanes",1,null,""]
[null,206514,"Broca para taladro TE-YX 5/8\"-22\"","5/8\"","22\"","4 gavilanes",1,null,""]
[null,206515,"Broca para taladro TE-YX 5/8\"-36\"","5/8\"","36\"","4 gavilanes",1,null,""]
[null,2165747,"Broca para taladro TE-YX 11/16\"-13\"","11/16\"","13\"","4 gavilanes",1,null,""]
[null,2165748,"Broca para taladro TE-YX 11/16\"-21\"","11/16\"","21\"","4 gavilanes",1,null,""]
[null,2165749,"Broca para taladro TE-YX 3/4\"-13\"","3/4\"","13\"","4 gavilanes",1,null,""]
[null,2165900,"Broca para taladro TE-YX 3/4\"-21\"","3/4\"","21\"","4 gavilanes",1,null,""]
[null,293474,"Broca para taladro TE-YX 3/4\"-36\"","3/4\"","36\"","4 gavilanes",1,null,""]
[null,2165902,"Broca para taladro TE-YX 13/16\"-21\"","13/16\"","21\"","4 gavilanes",1,null,""]
[null,2165903,"Broca para taladro TE-YX 27/32\"-13\"","27/32\"","13\"","4 gavilanes",1,null,""]
[null,2165904,"Broca para taladro TE-YX 27/32\"-21\"","27/32\"","21\"","4 gavilanes",1,null,""]
[null,2165905,"Broca para taladro TE-YX 7/8\"-13\"","7/8\"","13\"","4 gavilanes",1,null,""]
[null,2165906,"Broca para taladro TE-YX 7/8\"-21\"","7/8\"","21\"","4 gavilanes",1,null,""]
[null,293480,"Broca para taladro TE-YX 7/8\"-36\"","7/8\"","36\"","4 gavilanes",1,null,""]
[null,2122287,"Broca para taladro TE-YX 26/32, 1\"- 13\"","1\"","13\"","4 gavilanes",1,null,""]
[null,2165909,"Broca para taladro TE-YX 26/52 1\"-21\"","1\"","21\"","4 gavilanes",1,null,""]
[null,292918,"Broca para taladro TE-YX 1\"-36\"","1\"","36\"","4 gavilanes",1,null,""]
[null,2165911,"Broca para taladro TE-YX 1 1/16\"-21\"","1 1/16\"","21\"","4 gavilanes",1,null,""]
[null,2165912,"Broca para taladro TE-YX 1 1/8\"-13\"","1 1/8\"","13\"","4 gavilanes",1,null,""]
[null,2165913,"Broca para taladro TE-YX 1 1/8\"-21\"","1 1/8\"","21\"","4 gavilanes",1,null,""]
[null,292981,"Broca para taladro TE-YX 1 1/8\"-36\"","1 1/8\"","36\"","4 gavilanes",1,null,""]
[null,2165915,"Broca para taladro TE-YX 1 1/4\"-15\"","1 1/4\"","15\"","4 gavilanes",1,null,""]
[null,2165916,"Broca para taladro TE-YX 1 1/4\"-23\"","1 1/4\"","23\"","4 gavilanes",1,null,""]
[null,293027,"Broca para taladro TE-YX 1 1/4\"-36\"","1 1/4\"","36\"","4 gavilanes",1,null,""]
[null,2165918,"Broca para taladro TE-YX 1 3/8\"-23\"","1 3/8\"","23\"","4 gavilanes",1,null,""]
[null,2165919,"Broca para taladro TE-YX 1 3/8\"-36\"","1 3/8\"","36\"","4 gavilanes",1,null,""]
[null,2165920,"Broca para taladro TE-YX 1 1/2\"-15\"","1 1/2\"","15\"","4 gavilanes",1,null,""]
[null,2165921,"Broca para taladro TE-YX 1 1/2\"-23\"","1 1/2\"","23\"","4 gavilanes",1,null,""]
[null,2120430,"Broca para taladro TE-YX 45/57 1 3/4-23\"","1 3/4\"","23\"","2 gavilanes",1,null,{"$f":"IF(CEILING(H77,G77)=0,\"\",CEILING(H77,G77))","v":""}]
[null,2122290,"Broca para taladro TE-YX 18/32 (Métrica)","18mm","32cm","4 gavilanes",1,null,""]
[null,2122292,"Broca para taladro TE-YX 18/52 (Métrica)","18mm","52cm","4 gavilanes",1,null,""]
[null,2122295,"Broca para taladro TE-YX 20/32 (Métrica)","20mm","32cm","4 gavilanes",1,null,""]
[null,2122302,"Broca para taladro TE-YX 22/52 (Métrica)","22mm","52cm","4 gavilanes",1,null,""]
[null,2122303,"Broca para taladro TE-YX 22/52 MP4 (Métrica)","22mm","52cm","4 gavilanes",1,null,""]
[null,427847,"Broca para taladro TE-YX 22/72 (Métrica)","22mm","72cm","4 gavilanes",1,null,""]
[null,293180,"Broca para taladro TE-YX 22/130 (Métrica)","22mm","130cm","4 gavilanes",1,null,""]
[null,2122216,"Broca para taladro TE-YX 24/32 (Métrica)","24mm","32cm","4 gavilanes",1,null,""]
[null,2122218,"Broca para taladro TE-YX 24/52 (Métrica)","24mm","52cm","4 gavilanes",1,null,""]
[null,2122274,"Broca para taladro TE-YX 25/32 (Métrica)","25mm","32cm","4 gavilanes",1,null,""]
[null,2122276,"Broca para taladro TE-YX 25/52 (Métrica)","25mm","52cm","4 gavilanes",1,null,""]
[null,2122287,"Broca para taladro TE-YX 26/32, 1\"- 13\" (Metrica)","26mm","32cm","4 gavilanes",1,null,""]
[null,2122279,"Broca para taladro TE-YX 28/32 (Métrica)","28mm","32cm","4 gavilanes",1,null,""]
[null,2122280,"Broca para taladro TE-YX 28/52 (Métrica)","28mm","52cm","4 gavilanes",1,null,""]
[null,2122283,"Broca para taladro TE-YX 30/57 (Métrica)","30mm","57cm","4 gavilanes",1,null,""]
[null,2122284,"Broca para taladro TE-YX 32/37 (Métrica)","32mm","37cm","4 gavilanes",1,null,""]
[null,2120420,"Broca para taladro TE-YX 37/37 (Métrica)","37mm","37cm","4 gavilanes",1,null,""]
[null,2120421,"Broca para taladro TE-YX 37/57 (Métrica)","37mm","57cm","4 gavilanes",1,null,""]
[null,2120422,"Broca para taladro TE-YX 37/92 (Métrica)","37mm","92cm","4 gavilanes",1,null,""]
[null,2120423,"Broca para taladro TE-YX 37/130 (Métrica)","37mm","130cm","4 gavilanes",1,null,""]
[null,2120425,"Broca para taladro TE-YX 40/37 1 9/16-15","40mm","37cm","4 gavilanes",1,null,""]
[null,2120427,"Broca para taladro TE-YX 40/57 1 9/16-23","40mm","57cm","4 gavilanes",1,null,""]
[null,2120430,"Broca para taladro TE-YX 45/57 1 3/4-23\"","45mm","57cm","2 gavilanes",1,null,""]
[null,2120431,"Broca para taladro TE-YX 55/57 2 3/16-23","55mm","57cm","4 gavilanes",1,null,""]
[null,428456,"Broca para taladro TE-Y 1/2\"-14\"","1/2\"","14\"","2 gavilanes",1,null,""]
[null,428457,"Broca para taladro TE-Y 1/2\"-22\"","1/2\"","22\"","2 gavilanes",1,null,""]
[null,428460,"Broca para taladro TE-Y 5/8\"-14\"","5/8\"","14\"","2 gavilanes",1,null,""]
[null,428461,"Broca para taladro TE-Y 5/8\"-22\"","5/8\"","22\"","2 gavilanes",1,null,""]
[null,428463,"Broca para taladro TE-Y 3/4\"-13\"","3/4\"","13\"","2 gavilanes",1,null,""]
[null,428464,"Broca para taladro TE-Y 3/4\"-21\"","3/4\"","21\"","2 gavilanes",1,null,""]
[null,428468,"Broca para taladro TE-Y 7/8\"-13\"","7/8\"","13\"","2 gavilanes",1,null,""]
[null,428469,"Broca para taladro TE-Y 7/8\"-21\"","7/8\"","21\"","2 gavilanes",1,null,""]
[null,428470,"Broca para taladro TE-Y 1\"-13\"","1\"","13\"","2 gavilanes",1,null,""]
[null,428471,"Broca para taladro TE-Y 1\"-21\"","1\"","21\"","2 gavilanes",1,null,""]
[null,428475,"Broca para taladro TE-Y 1 1/4\"-23\"","1 1/4\"","23\"","2 gavilanes",1,null,""]
[null,346629,"Broca para taladro TE-Y 1 3/4\" - 23\"","1 3/4\"","23\"","2 gavilanes",1,null,""]
[null,418314,"Broca para taladro TE-Y 22/52 (Métrica)","22mm","52cm","2 gavilanes",1,null,""]
[null,2006308,"Broca corona p. taladro TE-Y-BK 68/550","68mm","55cm","Tipo corona",null,null,""]
[null,2006309,"Broca corona p. taladro TE-Y-BK 82/290","82mm","29cm","Tipo corona",null,null,""]
[null,2006313,"Broca corona p. taladro TE-Y-BK 100/550","100mm","55cm","Tipo corona",null,null,""]
[null,2018958,"Broca hueca para taladro TE-YD 3/4\"-24\"","3/4\"","24\"","Hueca-para aspiradora",null,null,""]
[null,2018961,"Broca hueca para taladro TE-YD 7/8\"-24\"","7/8\"","24\"","Hueca-para aspiradora",null,null,""]
[]
[null,"Brocas especiales encastre SDS-PLUS (C)"]
[null,"Ítem #","Descripción","Diámetro","Longitud utilizable",null,"Tamaño embalaje","Cantidad a ordenar","Cantidad ajustada a embalaje","Código de barras"]
[null,2018941,"Broca hueca para taladro TE-CD 1/2\"-13\"","1/2\"","13\"","Hueca-para aspiradora",1,null,{"$f":"IF(CEILING(H123,G123)=0,\"\",CEILING(H123,G123))","v":""}]
[null,2018943,"Broca hueca para taladro TE-CD 9/16\"-14\"","9/16\"","14\"","Hueca-para aspiradora",1,null,""]
[null,2018944,"Broca hueca para taladro TE-CD 5/8\"-14\"","5/8\"","14\"","Hueca-para aspiradora",1,null,""]
[null,2018947,"Broca hueca para taladro TE-CD 3/4\"-14\"","3/4\"","14\"","Hueca-para aspiradora",1,null,""]
[null,"339130","Broca corona p. taladro TE-C-DS 68/130","68mm","130cm","Tipo corona",1,null,""]
[]
[null,"Brocas pala para madera "]
[null,"Ítem #","Descripción","Diámetro","Longitud utilizable","Conexion","Tamaño embalaje","Cantidad a ordenar","Cantidad ajustada a embalaje","Código de barras"]
[null,2025584,"Broca pala WDB-S-H1/4 1/4x6","1/4\"","6\"","HEX 1/4\"",3,null,""]
[null,2025585,"Broca pala WDB-S-H1/4 3/8x6","3/8\"","6\"","HEX 1/4\"",3,null,""]
[null,2025586,"Broca pala WDB-S-H1/4 1/2x6","1/2\"","6\"","HEX 1/4\"",3,null,""]
[null,2025587,"Broca pala WDB-S-H1/4 9/16x6","9/16\"","6\"","HEX 1/4\"",3,null,""]
[null,2025588,"Broca pala WDB-S-H1/4 5/8x6","5/8\"","6\"","HEX 1/4\"",3,null,""]
[null,2025589,"Broca pala WDB-S-H1/4 3/4x6","3/4\"","6\"","HEX 1/4\"",3,null,""]
[null,2025591,"Broca pala WDB-S-H1/4 7/8x6","7/8\"","6\"","HEX 1/4\"",3,null,""]
[null,2025592,"Broca pala WDB-S-H1/4 1x6","1\"","6\"","HEX 1/4\"",3,null,""]
[null,2025593,"Broca pala WDB-S-H1/4 1 1/8x6","1 1/8\"","6\"","HEX 1/4\"",3,null,""]
[null,2025594,"Broca pala WDB-S-H1/4 1 1/4x6","1 1/4\"","6\"","HEX 1/4\"",3,null,""]
[null,2025595,"Broca pala WDB-S-H1/4 1 3/8x6","1 3/8\"","6\"","HEX 1/4\"",3,null,""]
[null,2025596,"Broca pala WDB-S-H1/4 1 1/2x6","1 1/2\"","6\"","HEX 1/4\"",3,null,""]
[null,2025597,"Broca pala WDB-S-H1/4 6 juego","Juego","6\"","HEX 1/4\"",1,null,""]
[]
[null,"Brocas diamantadas especializadas"]
[null,"Ítem #","Descripción","Diámetro","Longitud utilizable","Denominacion","Tamaño embalaje","Cantidad a ordenar","Cantidad ajustada a embalaje","Código de barras"]
[null,"2158228","Broca B 52/450 SP-H abras.","52mm","45cm","Materiales abrasivo",1,null,""]
[null,"2158230","Broca B 62/450 SP-H abras.","62mm","45cm","Materiales abrasivo",1,null,""]
[null,"2158233","Broca B 77/450 SP-H abras.","77mm","45cm","Materiales abrasivo",1,null,""]
[null,"2158237","Broca B 102/450 SP-H abras.","102mm","45cm","Materiales abrasivo",1,null,""]
[null,"2158243","Broca B 152/450 SP-H abras.","152mm","45cm","Materiales abrasivo",1,null,""]
[null,"2199673","Broca B 300/450 SP-H abras.","300mm","45cm","Materiales abrasivo",1,null,""]
[null,"2199674","Broca B 350/450 SP-H abras.","350mm","45cm","Materiales abrasivo",1,null,""]
[null,"2199675","Broca B 400/450 SP-H abras.","400mm","45cm","Materiales abrasivo",1,null,""]
[null,"2199676","Broca B 450/450 SP-H abras.","450mm","45cm","Materiales abrasivo",1,null,""]
[null,"2199677","Broca B 500/450 SP-H abras.","500mm","45cm","Materiales abrasivo",1,null,""]
[null,"2199678","Broca B 600/450 SP-H abras.","600mm","45cm","Materiales abrasivo",1,null,""]
[null,336854,"Broca corona diam DD-C 1/2\"-6\" T4","1/2\"","6\"","Para perforadora EC1",1,null,""]
[null,336862,"Broca corona diam DD-C 16/300 T4","16mm","30cm","Para perforadora EC1",1,null,""]
[null,336864,"Broca corona diam DD-C 18/300 T4","18mm","30cm","Para perforadora EC1",1,null,""]
[null,336866,"Broca corona diam DD-C 3/4\"-12\" T4","3/4\"","12\"","Para perforadora EC1",1,null,""]
[null,336873,"Broca corona diam DD-C 22/300 T4","22mm","30cm","Para perforadora EC1",1,null,""]
[null,336877,"Broca corona diam DD-C 1\"-12\" T4","1\"","12\"","Para perforadora EC1",1,null,""]
[null,336882,"Broca corona diam DD-C 1 1/4\"-12\" T4","1 1/4\"","12\"","Para perforadora EC1",1,null,""]
[null,336886,"Broca corona diam DD-C 3/8\"-6\" T2","3/8\"","6\"","Para perforadora EC1",1,null,""]
[null,"2076282","Broca C+ 3/8\"/6\" SPX-T","3/8\"","6\"","Para perforadora DD30",1,null,""]
[null,"2076286","Broca C+ 1/2\"/6\" SPX-T","1/2\"","6\"","Para perforadora DD30",1,null,""]
[null,"2076288","Broca C+ 9/16\"/6\" SPX-T","9/16\"","6\"","Para perforadora DD30",1,null,""]
[null,"2076503","Broca C+ 16/300 SPX-T","16mm","30cm","Para perforadora DD30",1,null,""]
[null,"2076504","Broca C+ 18/300 SPX-T","18mm","30cm","Para perforadora DD30",1,null,""]
[null,"2076505","Broca C+ 3/4\"/12\" SPX-T","3/4\"","12\"","Para perforadora DD30",1,null,""]
[null,"2076508","Broca C+ 22/300 SPX-T","22mm","30cm","Para perforadora DD30",1,null,""]
[null,"2076511","Broca C+ 1\"/12\" SPX-T","1\"","12\"","Para perforadora DD30",1,null,""]
[null,"2076513","Broca C+ 1-1/8\"/12\" SPX-T","1 1/8\"","12\"","Para perforadora DD30",1,null,""]
[null,"2199625","Broca B 40/320 SP-L","40mm","32cm","Para perforadora D120",1,null,{"$f":"IF(CEILING(H175,G175)=0,\"\",CEILING(H175,G175))","v":""}]
[null,"2199631","Broca B 47/320 SP-L","47mm","32cm","Para perforadora D120",1,null,""]
[null,"2185562","Broca B 52/320 SP-L","52mm","32cm","Para perforadora D120",1,null,""]
[null,"2185564","Broca B 62/320 SP-L","62mm","32cm","Para perforadora D120",1,null,""]
[null,"2185565","Broca B 67/320 SP-L","67mm","32cm","Para perforadora D120",1,null,""]
[null,"2185566","Broca B 72/320 SP-L","72mm","32cm","Para perforadora D120",1,null,""]
[null,"2185567","Broca B 77/320 SP-L","77mm","32cm","Para perforadora D120",1,null,""]
[null,"2185568","Broca B 82/320 SP-L","82mm","32cm","Para perforadora D120",1,null,""]
[null,"2185570","Broca B 92/320 SP-L","92mm","32cm","Para perforadora D120",1,null,""]
[null,"2185571","Broca B 102/320 SP-L","102mm","32cm","Para perforadora D120",1,null,""]
[null,"2185573","Broca B 112/320 SP-L","112mm","32cm","Para perforadora D120",1,null,""]
[null,"2185574","Broca B 122/320 SP-L","122mm","32cm","Para perforadora D120",1,null,""]
[null,"2185575","Broca B 132/320 SP-L","132mm","32cm","Para perforadora D120",1,null,""]
[]
[null,"Discos para sierra circular de madera"]
[null,"Ítem #","Descripción","Diámetro","Longitud utilizable","# dientes","Tamaño embalaje","Cantidad a ordenar","Cantidad ajustada a embalaje","Código de barras"]
[null,2037951,"Hoja sierra circ. SCB WU 165x20 z24 A","165mm","20mm",24,1,null,{"$f":"IF(CEILING(H191,G191)=0,\"\",CEILING(H191,G191))","v":""}]
[]
[null,"Copas diamantadas de desbaste"]
[null,"Ítem #","Descripción","Diámetro","Equipo","Denominacion","Tamaño embalaje","Cantidad a ordenar","Cantidad ajustada a embalaje","Código de barras"]
[null,"2163567","Diamond cup 150/6\" SPX  univ","6\"(150mm)","DG150","Universal",1,null,""]
[null,"2163568","Diamond Cup 150/6\" SPX (6) univ","6\"(150mm)","DG150","Universal",6,null,""]
[null,"2163722","Vaso diamantado 150/6\" SPX acabado fino","6\"(150mm)","DG150","Acabado fino",1,null,""]
[null,360527,"Vaso diamantado DG-CW 180/22.2/SPx2","7\"(180mm)","Esmeril 7\"","Super performance",2,null,""]
[null,2118428,"Vaso diamantado DG-CW 100/22.2 P (2)","4\"(100mm)","Esmeril 4\"-5\"","Performance",2,null,""]
[null,"2163738","Vaso diamantado DG-CW 115/22.2 P (2)","4.5\"(115mm)","Esmeril 4.5\"-5\"","Performance",2,null,{"$f":"IF(CEILING(H200,G200)=0,\"\",CEILING(H200,G200))","v":""}]
[null,"2163740","Vaso diamantado DG-CW 180/22.2 P (2)","7\"(180mm)","Esmeril 7\"","Performance",2,null,""]
[]
[null,"Discos abrasivos para sierra de banco 14\""]
[null,"Ítem #","Descripción","Diámetro","Eje","Denominacion","Tamaño embalaje","Cantidad a ordenar","Cantidad ajustada a embalaje","Código de barras"]
[null,436735,"Disco de corte AC-D 14\"x3/32\"x1\" ST UP","14\"","3/32\"","Estandar",null,null,{"$f":"IF(CEILING(H205,G205)=0,\"\",CEILING(H205,G205))","v":""}]
[]
[null,"Hojas sierra sable (reciprocante)"]
[null,"Ítem #","Descripción","Diámetro","Dientes x pulgada","Denominacion","Tamaño embalaje","Cantidad a ordenar","Cantidad ajustada a embalaje","Código de barras"]
[null,2099412,"Hoja sierra sable WD 15 6 (5)","15cm","6TPI","Madera premium",5,null,""]
[null,2099414,"Hoja sierra sable WD 30 6 (5)","30cm","6TPI","Madera premium",5,null,""]
[null,2099415,"Hoja sierra sable WB 15 6 (5)","15cm","6TPI","Madera bvasico",5,null,""]
[null,null,null,null,null,null,null,null,""]
[null,null,null,null,null,null,null,null,""]
[null,null,null,null,null,null,null,null,""]
[null,null,null,null,null,null,null,null,""]
[null,null,null,null,null,null,null,null,""]
[null,null,null,null,null,null,null,null,""]
[null,null,null,null,null,null,null,null,""]
[null,null,null,null,null,null,null,null,""]
[null,null,null,null,null,null,null,null,""]
[null,null,null,null,null,null,null,null,""]
[null,null,null,null,null,null,null,null,""]
[null,null,null,null,null,null,null,null,""]
[null,null,null,null,null,null,null,null,""]
[null,null,null,null,null,null,null,null,""]
[null,null,null,null,null,null,null,null,""]
[null,null,null,null,null,null,null,null,""]
[null,null,null,null,null,null,null,null,""]
[null,null,null,null,null,null,null,null,""]
[null,null,null,null,null,null,null,null,""]
[null,null,null,null,null,null,null,null,""]
[null,null,null,null,null,null,null,null,""]
[null,null,null,null,null,null,null,null,""]
[null,null,null,null,null,null,null,null,""]
[null,null,null,null,null,null,null,null,""]
[null,null,null,null,null,null,null,null,""]
[null,null,null,null,null,null,null,null,""]
[null,null,null,null,null,null,null,null,""]
[null,null,null,null,null,null,null,null,""]
[null,null,null,null,null,null,null,null,""]
[null,null,null,null,null,null,null,null,""]
[null,null,null,null,null,null,null,null,""]
[null,null,null,null,null,null,null,null,""]
[null,null,null,null,null,null,null,null,""]
[null,null,null,null,null,null,null,null,""]
[null,null,null,null,null,null,null,null,""]
[null,null,null,null,null,null,null,null,""]
[null,null,null,null,null,null,null,null,""]
[null,null,null,null,null,null,null,null,""]
[null,null,null,null,null,null,null,null,""]
[null,null,null,null,null,null,null,null,""]
[null,null,null,null,null,null,null,null,""]
[null,null,null,null,null,null,null,null,{"$f":"IF(CEILING(H253,G253)=0,\"\",CEILING(H253,G253))","v":""}]
[null,null,null,null,null,null,null,null,""]
[null,null,null,null,null,null,null,null,""]
[null,null,null,null,null,null,null,null,""]
[null,null,null,null,null,null,null,null,""]
[null,null,null,null,null,null,null,null,""]
[null,null,null,null,null,null,null,null,""]
[null,null,null,null,null,null,null,null,""]
[null,null,null,null,null,null,null,null,""]
[null,null,null,null,null,null,null,null,""]
[null,null,null,null,null,null,null,null,""]
[null,null,null,null,null,null,null,null,""]
[null,null,null,null,null,null,null,null,""]
[null,null,null,null,null,null,null,null,""]
[null,null,null,null,null,null,null,null,""]
[null,null,null,null,null,null,null,null,""]
[null,null,null,null,null,null,null,null,""]
[null,null,null,null,null,null,null,null,""]
[null,null,null,null,null,null,null,null,""]
[null,null,null,null,null,null,null,null,""]
[null,null,null,null,null,null,null,null,""]
[null,null,null,null,null,null,null,null,""]
[null,null,null,null,null,null,null,null,""]
[null,null,null,null,null,null,null,null,""]
[null,null,null,null,null,null,null,null,""]
[null,null,null,null,null,null,null,null,""]
[null,null,null,null,null,null,null,null,""]
[null,null,null,null,null,null,null,null,""]
[null,null,null,null,null,null,null,null,""]
[null,null,null,null,null,null,null,null,""]
[null,null,null,null,null,null,null,null,""]
[null,null,null,null,null,null,null,null,""]
[null,null,null,null,null,null,null,null,""]
[null,null,null,null,null,null,null,null,""]
[null,null,null,null,null,null,null,null,""]
[null,null,null,null,null,null,null,null,""]
[null,null,null,null,null,null,null,null,""]
[null,null,null,null,null,null,null,null,""]
[null,null,null,null,null,null,null,null,""]
[null,null,null,null,null,null,null,null,""]
[null,null,null,null,null,null,null,null,""]
[null,null,null,null,null,null,null,null,""]
[null,null,null,null,null,null,null,null,""]
[null,null,null,null,null,null,null,null,""]
[null,null,null,null,null,null,null,null,""]
[null,null,null,null,null,null,null,null,""]
[null,null,null,null,null,null,null,null,""]
[null,null,null,null,null,null,null,null,""]
[null,null,null,null,null,null,null,null,""]
[null,null,null,null,null,null,null,null,""]
[null,null,null,null,null,null,null,null,""]
[null,null,null,null,null,null,null,null,""]
[null,null,null,null,null,null,null,null,""]
[null,null,null,null,null,null,null,null,""]
[null,null,null,null,null,null,null,null,""]